{"text_format":"1","workbook":"xlsx","n_sheets":26,"sheets":["свод_ПОДРЯД","1632-2021-2.1.2,2.1.7-АР1","1632-2021-2.2.1-АР","1632-2021-2.2.6-АР","1632-2021-2.2.2-АР","1632-2021-2.2.7-АР","1632-2021-2.1.1-АР","1632-2021-1.1,1.2,2.1.0-АР","1632-2021-2.2.4,2.1.6-АР","1632-2021-2.2.5,2.1.13 -АР","2-1632-2021-1.1,1.2,2.1.0-АР","1632-2021-2.2.3-АР","1-1632-2021-2.1.2,2.1.7-АР1","1632-2021-2.1.11-АР","1632-2021-2.1.2,2.1.7-АР3","1632-2021-2.1.2,2.1.7-АР2","1632-2021-3.1-АС","1632-2021-3.3-АР.СУБ","3-1632-2021-2.1.2,2.1.7-АР2","1632-2021-3.1-АР","1632-2021-2.1.4-АР","1-1632-2021-2.1.2,2.1.7-АР3","1632-2021-2.1.5-АР","1632-2021-2.1.12-АР","1632-2021-2.1.3","1632-2021-3.3.9-АР"],"not_rendered":{"charts":0,"images":0,"macros":1,"external_links":0,"defined_names":50,"comments":0,"pivot_tables":0},"unopened":[],"bounds":{"document_bytes":16777216,"sheet_cells":100000,"rows_first":2000,"rows_last":500,"rows_between":2000,"halvings":0,"cell_chars":16384,"cell_head_chars":4096},"cells_cut":0,"cells_raw":0,"read":"whole","date_system":"1900"}

{"sheet":"свод_ПОДРЯД","index":0,"n_rows":37,"n_cols":5,"rows_kept":37,"cut":false,"hidden":false,"merged":[[34,3,34,4],[35,3,35,4],[36,3,36,4],[0,0,0,1],[0,2,0,4],[1,0,1,1],[3,0,3,1],[4,0,4,1],[6,3,6,4]]}
["Наименование закупки: ",null,"Выполнение комплекса архитектурно-строительных работ на объектах Транспортно-конвейерной системы, Купольного склада и Крытого слада №1 в рамках реализации проекта «Терминал по перевалке минеральных удобрений в МТП Усть-Луга. Береговые объекты терминала»\n"]
["Исх. № ______________ от __.__.2025г."]
[]
["Наименование Участника:"]
["ИНН Участника "]
[]
["№ п/п","Наименование","Требование ООО «ЕТУ»","Предложение Участника, руб без НДС"]
[null,null,null,"Материалы","Работы"]
[1,"1632-2021-2.1.2, 2.1.7-АР1-07.04.046-П-00-00","Архитектурные решения, Конвейерная галерея №7",{"$f":"'1632-2021-2.1.2,2.1.7-АР1'!I84","v":0},{"$f":"'1632-2021-2.1.2,2.1.7-АР1'!G84","v":0}]
[2,"1632-2021-2.2.1-АР_07.04.020-П-00-00","Архитектурные решения, Пересыпная станция № 1",{"$f":"'1632-2021-2.2.1-АР'!I153","v":0},{"$f":"'1632-2021-2.2.1-АР'!G153","v":0}]
[3,"1632-2021-2.2.6-АР_07.04.025-П-00-00","Архитектурные решения, 07.04.025 Пересыпная станция №6 (код SAP 01.02.020) код ГП 2.2.6",{"$f":"'1632-2021-2.2.6-АР'!I92","v":0},{"$f":"'1632-2021-2.2.6-АР'!G92","v":0}]
[4,"1632-2021-2.2.2 -АР_07.04.021-П-00-01","Архитектурные решения, Пересыпная станция № 2",{"$f":"'1632-2021-2.2.2-АР'!I101","v":0},{"$f":"'1632-2021-2.2.2-АР'!G101","v":0}]
[5,"1632-2021-2.2.7- АР_07.04.026-П-00-02","Архитектурные решения, 07.04.026 Приводная станция  (код SAP 01.02.005) код ГП 2.2.7",{"$f":"'1632-2021-2.2.7-АР'!I104","v":0},{"$f":"'1632-2021-2.2.7-АР'!G104","v":0}]
[6,"1632-2021-2.1.1-АР_07.04.040-П-00-00","Архитектурные решения, 07.04.040 Конвейерная галерея №1 (код SAP 01.02.006) код ГП 2.1.1",{"$f":"'1632-2021-2.1.1-АР'!I38","v":0},{"$f":"'1632-2021-2.1.1-АР'!G38","v":0}]
[7,"1632-2021-1.1,1.2,2.1.0-АР_07.02.010_07.04.030-П-00-00","Архитектурные решения, 07.02.010 Станция разгрузки вагонов (код SAP 01.04.001) код ГП 1.1\n07.04.030 Тоннель код ГП 2.1.0",{"$f":"'1632-2021-1.1,1.2,2.1.0-АР'!I322","v":0},{"$f":"'1632-2021-1.1,1.2,2.1.0-АР'!G322","v":0}]
[8,"1632-2021-2.2.4,2.1.6-АР_07.04.023-П-01-02","Архитектурные решения, 07.04.023 Пересыпная станция №4 (код SAP 01.02.004) код ГП 2.2.4",{"$f":"'1632-2021-2.2.4,2.1.6-АР'!I82","v":0},{"$f":"'1632-2021-2.2.4,2.1.6-АР'!G82","v":0}]
[9,"1632-2021-2.2.5,2.1.13-АР_07.04.024_07.04.052-П-00-01","Архитектурные решения, 07.04.024 Пересыпная станция №5 (код SAP 01.02.019) код ГП 2.2.5\n07.04.052 Конвейерная галерея №13 (код SAP 01.02.009) код ГП 2.1.13",{"$f":"'1632-2021-2.2.5,2.1.13 -АР'!I100","v":0},{"$f":"'1632-2021-2.2.5,2.1.13 -АР'!G100","v":0}]
[10,"1632-2021-1.1,1.2,2.1.0-АР_07.02.011_П-00-01","Архитектурные решения, 07.02.011 Здание трансбордера код ГП 1.2",{"$f":"'2-1632-2021-1.1,1.2,2.1.0-АР'!I89","v":0},{"$f":"'2-1632-2021-1.1,1.2,2.1.0-АР'!G89","v":0}]
[11,"1632-2021-2.2.3-АР_07.04.022-П-00-00","Архитектурные решения, Пересыпная станция № 3",{"$f":"'1632-2021-2.2.3-АР'!I107","v":0},{"$f":"'1632-2021-2.2.3-АР'!G107","v":0}]
[12,"1632-2021-2.1.2, 2.1.7-АР1_07.04.041-П-00-00","Архитектурные решения, 07.04.041 Конвейерная галерея №2 (код SAP 01.02.010) код ГП 2.1.2",{"$f":"'1-1632-2021-2.1.2,2.1.7-АР1'!I29","v":0},{"$f":"'1-1632-2021-2.1.2,2.1.7-АР1'!G29","v":0}]
[13,"1632-2021-2.1.11-АР_07.04.050-П-00-00","Архитектурные решения, 07.04.050 Конвейерная галерея №11 (код SAP 01.02.008) код ГП 2.1.11",{"$f":"'1632-2021-2.1.11-АР'!I32","v":0},{"$f":"'1632-2021-2.1.11-АР'!G32","v":0}]
[14,"1632-2021-2.1.2, 2.1.7-АР3_07.04.041-П-00-00","Архитектурные решения, 07.04.041 Конвейерная галерея №2 (код SAP 01.02.010) код ГП 2.1.2",{"$f":"'1632-2021-2.1.2,2.1.7-АР3'!I30","v":0},{"$f":"'1632-2021-2.1.2,2.1.7-АР3'!G30","v":0}]
[15,"1632-2021-2.1.2, 2.1.7-АР2-07.04.041-П-00-00","Архитектурные решения, 07.04.041 Конвейерная галерея №2 (код SAP 01.02.010) код ГП 2.1.2",{"$f":"'1632-2021-2.1.2,2.1.7-АР2'!I30","v":0},{"$f":"'1632-2021-2.1.2,2.1.7-АР2'!G30","v":0}]
[16,"1632-2021-3.1-АС_07.03.010-П-00-00","Архитектурно-строительные решения, 07.03.010 Крытый склад № 1 (код SAP 01.01.001) код ГП 3.1",{"$f":"'1632-2021-3.1-АС'!I70","v":0},{"$f":"'1632-2021-3.1-АС'!G70","v":0}]
[17,"1632-2021-3.3-АР.СУБ_07.03.012-П-01-02","Архитектурные решения, 07.03.012 Купольный склад  (код SAP 01.01.005) код ГП 3.3.1",{"$f":"'1632-2021-3.3-АР.СУБ'!I102","v":0},{"$f":"'1632-2021-3.3-АР.СУБ'!G102","v":0}]
[18,"1632-2021-2.1.2, 2.1.7-АР2-07.04.046-П-00-02","Архитектурные решения, Конвейерная галерея №7 в осях 8-14",{"$f":"'3-1632-2021-2.1.2,2.1.7-АР2'!I58","v":0},{"$f":"'3-1632-2021-2.1.2,2.1.7-АР2'!G58","v":0}]
[19,"1632-2021-3.1-АР_07.03.010-П-00-00","Архитектурно-строительные решения, 07.03.010 Крытый склад № 1 (код SAP 01.01.001) код ГП 3.1",{"$f":"'1632-2021-3.1-АР'!I133","v":0},{"$f":"'1632-2021-3.1-АР'!G133","v":0}]
[20,"1632-2021-2.1.4-АР_07.04.043-П-01-01","Архитектурные решения, 07.04.040 Конвейерная галерея №1 (код SAP 01.02.006) код ГП 2.1.1",{"$f":"'1632-2021-2.1.4-АР'!I31","v":0},{"$f":"'1632-2021-2.1.4-АР'!G31","v":0}]
[21,"1632-2021-2.1.2, 2.1.7-АР3_07.04.046-П-00-00","Архитектурные решения, Конвейерная галерея №7",{"$f":"'1-1632-2021-2.1.2,2.1.7-АР3'!I96","v":0},{"$f":"'1-1632-2021-2.1.2,2.1.7-АР3'!G96","v":0}]
[22,"1632-2021-2.1.5-АР_07.04.044-П-00-00","Архитектурные решения, 07.04.040 Конвейерная галерея №1 (код SAP 01.02.006) код ГП 2.1.1",{"$f":"'1632-2021-2.1.5-АР'!I27","v":0},{"$f":"'1632-2021-2.1.5-АР'!G27","v":0}]
[23,"1632-2021-2.1.12-АР_07.04.051-П-00-00","Архитектурные решения, 07.04.051 Конвейрная галерея №12 (код SAP 01.02.015) код ГП 2.1.12",{"$f":"'1632-2021-2.1.12-АР'!I59","v":0},{"$f":"'1632-2021-2.1.12-АР'!G59","v":0}]
[24,"1632-2021-2.1.3-АР_07.04.043-П-01-01","Архитектурные решения, 07.04.042 Конвейерная галерея №3 (код SAP 01.02.011) код ГП 2.1.3",{"$f":"'1632-2021-2.1.3'!I41","v":0},{"$f":"'1632-2021-2.1.3'!G41","v":0}]
[25,"1632-2021-3.3.9-АР-03.02.080-П-00-00","Архитектурные решения, 03.02.080 Электропомещение купольного склада (ЭП-7) (код SAP 02.05.001.09) код ГП 3.3.9",{"$f":"'1632-2021-3.3.9-АР'!I77","v":0},{"$f":"'1632-2021-3.3.9-АР'!G77","v":0}]
[null,"Итоговая стоимость строительно-монтажных работ",null,{"$f":"SUM(D9:D33)","v":0},{"$f":"SUM(E9:E33)","v":0}]
[null,"ВСЕГО",null,{"$f":"D34+E34","v":0}]
[null,"НДС",0.2,{"$f":"D35*0.2","v":0}]
[null,"Итоговая стоимость СМР, руб с НДС",null,{"$f":"D35+D36","v":0}]

{"sheet":"1632-2021-2.1.2,2.1.7-АР1","index":1,"n_rows":84,"n_cols":10,"rows_kept":84,"cut":false,"hidden":false,"merged":[[3,0,3,4]]}
[]
["Терминал по перевалке минеральных удобрений в морском торговом порту Усть-Луга. Береговые объекты терминала"]
["(наименование стройки)"]
["1632-2021-2.1.2, 2.1.7-АР1-07.04.046-П-00-00"]
["(локальная смета)"]
["на Архитектурные решения, Конвейерная галерея №7"]
["(наименование работ и затрат, наименование объекта)"]
[null,"Основание:","1632-2021-2.1.2, 2.1.7-АР1_0_0_RU_IFС"]
[]
["№ п/п","Обоснование","Наименование работ и затрат","Ед. изм.","Кол-во","Цена за ед.измерения работ, руб. с НДС","Всего, стоимость работ,руб. с НДС","Цена за ед.измерения материалов, руб. с НДС","Всего, стоимость материалов, руб. с НДС","Итого, руб. с НДС"]
[1,2,3,4,5,6,7,8,9,10]
["Раздел 2. Кровля",null,null,null,null,null,null,null,null,{"$f":"G12+I12","v":0}]
["Монтаж кровельного покрытия  из профнастила учтен в разделе КМ",null,null,null,null,null,null,null,null,0]
["1632-2021-2.1.2, 2.1.7-АР1.  ( в осях 1-7 )",null,null,null,null,null,null,null,null,0]
["Кровля плоская",null,null,null,null,null,null,null,null,0]
["1","ТЕР11-01-009-02","Устройство тепло- и звукоизоляции сплошной из плит: древесноволокнистых // прим. ЦСП","100 м2 изолируемой поверхности",1.9630000000000001,null,null,null,null,0]
["2","ТЦ_01.6.01.10_78_7810994931_08.02.2024_02","ЦСП 13200х1200х8","м2",404.38,null,null,null,null,0]
["3","ТЕР12-01-002-09","Устройство кровель плоских из наплавляемых материалов: в два слоя","100 м2 кровли",1.9630000000000001,null,null,null,null,0]
["4","ТЦ_12.0.00.00_78_7826181040_08.02.2024_02","Техноэласт Пламя Стоп","м2",223.78,null,null,null,null,0]
["5","ТЦ_12.0.00.00_78_7826181040_08.02.2024_02","Техноэласт ЭПП","м2",227.71,null,null,null,null,0]
["6","ТЕР12-01-009-02","Устройство желобов: подвесных","100 м желобов",0.74350000000000005,null,null,null,null,0]
["7","ТЦ_12.1.01.00_78_7804606806_25.01.2024_02","Желоб водосточный D185х3000","шт",25,null,null,null,null,0]
["8","ТЦ_12.1.01.00_78_7804606806_25.01.2024_02","Держатель желоба","шт",130,null,null,null,null,0]
["9","ТЕР12-01-008-01","Устройство обделок на фасадах (наружные подоконники, пояски, балконы и др.): включая водосточные трубы, с изготовлением элементов труб// прим.","100 м2фасада (без вычета проемов)",6.8906000000000001,null,null,null,null,0]
["10","ТЦ_12.1.01.00_78_7804606806_25.01.2024_02","Труба водосточная D150х2000мм","шт",93,null,null,null,null,0]
["11","ТЦ_12.1.01.00_78_7804606806_25.01.2024_02","Крепление трубы","шт",195,null,null,null,null,0]
["12","ТЦ_12.1.01.00_78_7804606806_25.01.2024_02","Колено гофрированное","шт",30,null,null,null,null,0]
["13","ТЦ_12.1.01.00_78_7804606806_25.01.2024_02","Заглушка","шт",10,null,null,null,null,0]
["14","ТЦ_12.1.01.00_78_7804606806_25.01.2024_02","Колено сливное  D150","шт",12,null,null,null,null,0]
["15","ТЦ_12.1.01.00_78_7804606806_25.01.2024_02","Воронки выпускные D185/150","шт",12,null,null,null,null,0]
["16","ТЕР12-01-012-01","Ограждение кровель перилами // прим.","100 м ограждения",0.74,null,null,null,null,0]
["17","ТЦ_12.1.01.00_78_7804606806_25.01.2024_02","Снегозадержатель трубчатый (L=3 м. в комплекте с креплением)","шт",25,null,null,null,null,0]
["18",null,"Ограждение кровли h=600 мм. учтено в разделе КМ","м",194.9,null,null,null,null,0]
["Раздел 3. Окна",null,null,null,null,null,null,null,null,0]
["1632-2021-2.1.2, 2.1.7-АР1.  ( в осях 1-7 )",null,null,null,null,null,null,null,null,0]
["19","ТЕР10-01-034-05","Установка в жилых и общественных зданиях оконных блоков из ПВХ профилей: поворотных (откидных, поворотно-откидных) с площадью проема до 2 м2 двухстворчатых","100 м2 проемов",1.8064,null,null,null,null,0]
["20","ТЦ_07.1.02.00_78_7840318754_30.01.2024_02","ОК-1.,ОК-1* 1200х1400","шт",10,null,null,null,null,0]
["21","ТЦ_07.1.02.00_78_7840318754_30.01.2024_02","ОК-2.  1000х1400","шт",8,null,null,null,null,0]
["22","ТЦ_07.1.02.00_78_7840318754_30.01.2024_02","ОК-3.  1200х1200","шт",1,null,null,null,null,0]
["23","ТЕР15-01-070-01","Облицовка: оконных проемов в наружных стенах откосной планкой из оцинкованной стали с полимерным покрытием с устройством водоотлива оконного из оцинкованной стали с полимерным покрытием","1 м2 проемов",180.64,null,null,null,null,0]
["Раздел 4. Дверные проемы",null,null,null,null,null,null,null,null,0]
["1632-2021-2.1.2, 2.1.7-АР1.  ( в осях 1-7 )",null,null,null,null,null,null,null,null,0]
["24","ТЕР09-04-012-01","Установка металлических дверных блоков в готовые проемы","1 м2 проема",4.2,null,null,null,null,0]
["25","ТЦ_07.1.01.03_78_7841375755_25.01.2024_02","Дверь стальная внутренняя 1000х2100","шт",2,null,null,null,null,0]
["26","ТЕР09-04-013-01","Установка противопожарных дверей: однопольных глухих","1 м2 проема",12.6,null,null,null,null,0]
["27","ТЦ_07.1.01.03_78_7841375755_25.01.2024_02","Дверь противопожарная металлическая: однопольная ДПС-01/30, размером 1000х2100 мм","шт",2,null,null,null,null,0]
["28","ТЦ_07.1.01.03_78_7841375755_25.01.2024_02","Дверь противопожарная металлическая: однопольная ДПС-01/60, размером 1000х2100 мм","шт",4,null,null,null,null,0]
["29","ТЕР15-01-070-02","Облицовка: дверных проемов в наружных стенах откосной планкой из оцинкованной стали с полимерным покрытием с установкой наличников из оцинкованной стали с полимерным покрытием","1 м2 проемов",16.8,null,null,null,null,0]
["Раздел 5. Полы",null,null,null,null,null,null,null,null,{"$f":"G49+I49","v":0}]
["1632-2021-2.1.2, 2.1.7-АР1.  ( в осях 1-7 )",null,null,null,null,null,null,null,null,0]
["Тип 1.  S=4,67 м2.,  Тип 2.  S=1678,94 м2",null,null,null,null,null,null,null,null,0]
["30","ТЕР11-01-011-03","Устройство стяжек: бетонных толщиной 20 мм","100 м2 стяжки",16.836099999999998,null,null,null,null,0]
["31","ТЕР11-01-011-04","Устройство стяжек: на каждые 5 мм изменения толщины стяжки добавлять или исключать к расценке 11-01-011-03 // до толщ. 30 мм","100 м2 стяжки",16.836099999999998,null,null,null,null,0]
["32","ТЦ_59.1.04.01_47_4705078395_08.02.2024_02","Бетон  В22,5","м3",51.518000000000001,null,null,null,null,0]
["33","ТЕР11-01-020-03","Устройство покрытий поливинилацетатных: толщиной 3 мм // прим. покрытие полимерное","100 м2 покрытия",16.836099999999998,null,null,null,null,0]
["Тип 3.  S=346,0 м2",null,null,null,null,null,null,null,null,0]
["34","ТЕР11-01-011-03","Устройство стяжек: бетонных толщиной 20 мм","100 м2 стяжки",3.46,null,null,null,null,0]
["35","ТЕР11-01-011-04","Устройство стяжек: на каждые 5 мм изменения толщины стяжки добавлять или исключать к расценке 11-01-011-03","100 м2 стяжки",3.46,null,null,null,null,0]
["36","ТЦ_59.1.04.01_47_4705078395_08.02.2024_02","Бетон  В22,5","м3",26.469000000000001,null,null,null,null,0]
["37","ТЕР06-01-015-10","Армирование подстилающих слоев и набетонок","1 т",0.95150000000000001,null,null,null,null,0]
["38","ТЦ_08.4.02.05_78_7816587756_08.02.2024_02","Сетка арм. 100х100 5Вр1","м2",346,null,null,null,null,0]
["39","ТЕР11-01-020-03","Устройство покрытий поливинилацетатных: толщиной 3 мм // прим. покрытие полимерное","100 м2 покрытия",3.46,null,null,null,null,0]
["Тип 5.  S=11,60 м2",null,null,null,null,null,null,null,null,0]
["40","ТЕР11-01-011-03","Устройство стяжек: бетонных толщиной 20 мм","100 м2 стяжки",0.11600000000000001,null,null,null,null,0]
["41","ТЕР11-01-011-04","Устройство стяжек: на каждые 5 мм изменения толщины стяжки добавлять или исключать к расценке 11-01-011-03","100 м2 стяжки",0.11600000000000001,null,null,null,null,0]
["42","ТЦ_59.1.04.01_47_4705078395_08.02.2024_02","Бетон  В22,5","м3",1.1830000000000001,null,null,null,null,0]
["43","ТЕР11-01-020-03","Устройство покрытий поливинилацетатных: толщиной 3 мм // прим. покрытие полимерное","100 м2 покрытия",0.11600000000000001,null,null,null,null,0]
["Тип 7.  S=72,27 м2",null,null,null,null,null,null,null,null,0]
["44","ТЕР11-01-009-01","Устройство тепло- и звукоизоляции сплошной из плит: или матов минераловатных или стекловолокнистых","100 м2 изолируемой поверхности",0.72270000000000001,null,null,null,null,0]
["45","ТЕР11-01-050-01","Устройство пароизоляции из полиэтиленовой пленки в один слой насухо","100 м2 поверхности",0.72270000000000001,null,null,null,null,0]
["46","ТЕР11-01-011-03","Устройство стяжек: бетонных толщиной 20 мм","100 м2 стяжки",0.72270000000000001,null,null,null,null,0]
["47","ТЕР11-01-011-04","Устройство стяжек: на каждые 5 мм изменения толщины стяжки добавлять или исключать к расценке 11-01-011-03","100 м2 стяжки",0.72270000000000001,null,null,null,null,0]
["48","ТЦ_59.1.04.01_47_4705078395_08.02.2024_02","Бетон  В22,5","м3",4.7919999999999998,null,null,null,null,0]
["49","ТЕР06-01-015-10","Армирование подстилающих слоев и набетонок","1 т",0.126473,null,null,null,null,0]
["50","ТЦ_08.4.02.05_66_6686134976_08.02.2024_02","Сетка арм. 100х100 4Вр1","м2",72.27,null,null,null,null,{"$f":"G75+I75","v":0}]
["51","ТЕР11-01-020-03","Устройство покрытий поливинилацетатных: толщиной 3 мм // прим. покрытие полимерное","100 м2 покрытия",0.72270000000000001,null,null,null,null,0]
["Раздел 6. Отделка",null,null,null,null,null,null,null,null,0]
["Цоколь",null,null,null,null,null,null,null,null,0]
["1632-2021-2.1.2, 2.1.7-АР1.  ( в осях 1-7 )",null,null,null,null,null,null,null,null,0]
["52","ТЕР11-01-015-07","Шлифовка бетонных или металлоцементных покрытий // прим.","100 м2 покрытия",0.54,null,null,null,null,0]
["53","ТЕР15-04-015-02","Окраска фасадов с люлек с подготовкой поверхности: силикатная // прим.","100 м2 фасада",0.54,null,null,null,null,0]
["Окраска конструкций стен и потолков из профлиста, учтена в сметах к разделу КМ",null,null,null,null,null,null,null,null,0]
[null,null,"Всего, руб. с НДС",null,null,null,{"$f":"SUM(G12:G82)","v":0},null,{"$f":"SUM(I12:I82)","v":0},{"$f":"SUM(J12:J82)","v":0}]
[null,null,"Всего, руб. без НДС",null,null,null,{"$f":"G83/1.2","v":0},null,{"$f":"I83/1.2","v":0},{"$f":"J83/1.2","v":0}]

{"sheet":"1632-2021-2.2.1-АР","index":2,"n_rows":153,"n_cols":22,"rows_kept":153,"cut":false,"hidden":false,"merged":[[3,0,3,4]]}
[]
["Терминал по перевалке минеральных удобрений в морском торговом порту Усть-Луга. Береговые объекты терминала"]
["(наименование стройки)"]
["1632-2021-2.2.1-АР_07.04.020-П-00-00"]
["(локальная смета)"]
["на Архитектурные решения, Пересыпная станция № 1"]
["(наименование работ и затрат, наименование объекта)"]
[null,"Основание:","1632-2021-2.2.1-АР   Арх.№ 15689"]
[]
["№ п/п","Обоснование","Наименование работ и затрат","Ед. изм.","Кол-во","Цена за ед.измерения работ, руб. с НДС","Всего, стоимость работ,руб. с НДС","Цена за ед.измерения материалов, руб. с НДС","Всего, стоимость материалов, руб. с НДС","Итого, руб. с НДС"]
[1,2,3,4,5,6,7,8,9,10]
["Раздел 1. Фасадные работы",null,null,null,null,null,null,null,null,{"$f":"G12+I12","v":0}]
["Раздел 2. Перегородки",null,null,null,null,null,null,null,null,0]
["1","ТЕР10-04-011-04","Устройство перегородок высотой до 3 м в общественных зданиях с двусторонней обшивкой гипсокартонными листами или гипсоволокнистыми плитами: в два слоя с изоляцией","100 м2 перегородок (за вычетом проемов)",0.71,null,null,null,null,0]
["2","ТЦ_01.6.01.02_97_9706006145_22.02.2024_02","Листы гипсокартонные ГКЛВО","м2",298.2,null,null,null,null,0]
["3","ТССЦ-104-0150","Плиты из минеральной ваты: на синтетическом связующем М-75 // прим.","м3",7.3129999999999997,null,null,null,null,0]
["Раздел 3. Кровля",null,null,null,null,null,null,null,null,0]
["Монтаж кровельного покрытия  из профнастила учтен в разделе КМ",null,null,null,null,null,null,null,null,0]
["Мягкая кровля S=470 м2",null,null,null,null,null,null,null,null,0]
["4","ТЕР12-01-015-01","Устройство пароизоляции: оклеечной в один слой","100 м2 изолируемой поверхности",4.7,null,null,null,null,0]
["5","ТЕР12-01-013-01","Утепление покрытий плитами: из пенопласта  полистирольного на битумной мастике в один слой  ( толщ. 100 мм.)","100 м2 утепляемого покрытия",4.7,null,null,null,null,0]
["6","ТЕР12-01-013-02","Утепление покрытий плитами: на каждый последующий слой добавлять к расценке 12-01-013-01","100 м2 утепляемого покрытия",4.7,null,null,null,null,0]
["7","ТССЦ-104-1223","Пенополистирол экструдированный ТЕХНОНИКОЛЬ XPS CARBON 30-280 Стандарт","м3",48.41,null,null,null,null,0]
["8","ТЕР12-01-014-02","Утепление покрытий: керамзитом // толщ. слоя 20-80 мм","1 м3 утеплителя",23.5,null,null,null,null,0]
["9","ТЕР12-01-017-01","Устройство выравнивающих стяжек: цементно-песчаных толщиной  15 мм","100 м2 стяжки",4.7,null,null,null,null,0]
["10","ТЕР12-01-017-02","Устройство выравнивающих стяжек: на каждый 1 мм изменения толщины добавлять или исключать к расценке 12-01-017-01","100 м2 стяжки",4.7,null,null,null,null,0]
["11","ТЕР06-01-015-10","Армирование подстилающих слоев и набетонок","1 т",0.82250000000000001,null,null,null,null,0]
["12","ТЦ_08.4.02.05_66_6686134976_08.02.2024_02","Сетка арм. 100х100 4Вр1","м2",470,null,null,null,null,0]
["13","ТЕР12-01-016-02","Огрунтовка оснований из бетона или раствора под водоизоляционный кровельный ковер: готовой эмульсией битумной // праймер","100 м2 кровли",4.7,null,null,null,null,0]
["14","ТЕР12-01-007-10","Комплекс работ по устройству кровель из наплавляемых рулонных материалов для зданий шириной от 12 до 24 метров: в два слоя","100 м2 кровли",4.7,null,null,null,null,0]
["Асфальтовое покрытие кровли  S=62 м2",null,null,null,null,null,null,null,null,0]
["15","ТЕР12-01-015-04","Устройство пароизоляции: обмазочной в один слой","100 м2 изолируемой поверхности",0.62,null,null,null,null,0]
["16","ТЕР12-01-015-05","Устройство пароизоляции: на каждый последующий слой добавлять к расценке 12-01-015-04","100 м2 изолируемой поверхности",0.62,null,null,null,null,0]
["17","ТЕР12-01-013-01","Утепление покрытий плитами: из пенопласта  полистирольного на битумной мастике в один слой  ( толщ. 100 мм.)","100 м2 утепляемого покрытия",0.62,null,null,null,null,{"$f":"G34+I34","v":0}]
["18","ТЕР12-01-013-02","Утепление покрытий плитами: на каждый последующий слой добавлять к расценке 12-01-013-01","100 м2 утепляемого покрытия",0.62,null,null,null,null,0]
["19","ТССЦ-104-1223","Пенополистирол экструдированный ТЕХНОНИКОЛЬ XPS CARBON 30-280 Стандарт","м3",6.3860000000000001,null,null,null,null,0]
["20","ТЕР12-01-017-01","Устройство выравнивающих стяжек: цементно-песчаных толщиной  15 мм","100 м2 стяжки",0.62,null,null,null,null,0]
["21","ТЕР12-01-017-02","Устройство выравнивающих стяжек: на каждый 1 мм изменения толщины добавлять или исключать к расценке 12-01-017-01","100 м2 стяжки",0.62,null,null,null,null,0]
["22","ТЕР06-01-015-10","Армирование подстилающих слоев и набетонок","1 т",0.1085,null,null,null,null,0]
["23","ТЦ_08.4.02.05_66_6686134976_08.02.2024_02","Сетка арм. 100х100 4Вр1","м2",62,null,null,null,null,0]
["24","ТЕР12-01-016-02","Огрунтовка оснований из бетона или раствора под водоизоляционный кровельный ковер: готовой эмульсией битумной // праймер","100 м2 кровли",0.62,null,null,null,null,0]
["25","ТЕР12-01-017-03","Устройство выравнивающих стяжек: асфальтобетонных толщиной  15 мм","100 м2 стяжки",0.62,null,null,null,null,0]
["26","ТЕР12-01-017-04","Устройство выравнивающих стяжек: на каждый 1 мм изменения толщины добавлять или  исключать к расценке 12-01-017-03","100 м2 стяжки",0.62,null,null,null,null,0]
["27","ТЕР12-01-004-04","Устройство примыканий кровель из наплавляемых материалов к стенам и парапетам высотой: до 600 мм без фартуков","100 м примыканий",0.375,null,null,null,null,0]
["28","ТЕР12-01-009-02","Устройство желобов: подвесных","100 м желобов",0.78,null,null,null,null,0]
["29","ТЦ_12.1.01.00_78_7804606806_25.01.2024_02","Желоб водосточный D185х3000","шт",26,null,null,null,null,0]
["30","ТЦ_12.1.01.00_78_7804606806_25.01.2024_02","Держатель желоба","шт",130,null,null,null,null,0]
["31","ТЕР12-01-012-01","Ограждение кровель перилами // прим. Устройство труб водосточных","100 м ограждения",0.79500000000000004,null,null,null,null,0]
["32","ТЦ_12.1.01.00_78_7804606806_25.01.2024_02","Труба водосточная D150х2000мм","шт",40,null,null,null,null,0]
["33","ТЦ_12.1.01.00_78_7804606806_25.01.2024_02","Крепление трубы","шт",133,null,null,null,null,0]
["34","ТЦ_12.1.01.00_78_7804606806_25.01.2024_02","Воронки выпускные D185/150","шт",10,null,null,null,null,0]
["35","ТССЦ-301-3305","Воронка сливная диаметром: 150 мм","шт.",4,null,null,null,null,0]
["36","ТЕР12-01-012-01","Ограждение кровель перилами // прим.","100 м ограждения",0.76,null,null,null,null,0]
["37","ТЦ_12.1.01.00_78_7804606806_25.01.2024_02","Снегозадержатель трубчатый (L=3 м. в комплекте с креплением)","шт",25,null,null,null,null,0]
["38","ТЕР12-01-012-01","Ограждение кровель перилами","100 м ограждения",1.05,null,null,null,null,0]
["39","ТЦ_08.1.06.00_50_5047239058_14.02.2024_02","Ограждение кровли h=600 мм. ( 1,86 м/шт)","шт",57,null,null,null,null,0]
["Раздел 4. Окна",null,null,null,null,null,null,null,null,0]
["40","ТЕР10-01-034-03","Установка в жилых и общественных зданиях оконных блоков из ПВХ профилей: поворотных (откидных, поворотно-откидных) с площадью проема до 2 м2 одностворчатых","100 м2 проемов",0.152,null,null,null,null,0]
["41","ТЦ_07.1.02.00_78_7840318754_30.01.2024_02","ОК-1.  1000х1000","шт",9,null,null,null,null,0]
["42","ТЦ_07.1.02.00_78_7840318754_30.01.2024_02","ОК-2.  1000х1000","шт",3,null,null,null,null,0]
["43","ТЦ_07.1.02.00_78_7840318754_30.01.2024_02","ОК-3.  1600х1000","шт",1,null,null,null,null,0]
["44","ТЦ_07.1.02.00_78_7840318754_30.01.2024_02","ОК-4.  1600х1000","шт",1,null,null,null,null,0]
["45","ТЕР15-01-070-01","Облицовка: оконных проемов в наружных стенах откосной планкой из оцинкованной стали с полимерным покрытием с устройством водоотлива оконного из оцинкованной стали с полимерным покрытием","1 м2 проемов",15.2,null,null,null,null,0]
["Раздел 5. Дверные проемы и ворота",null,null,null,null,null,null,null,null,{"$f":"G64+I64","v":0}]
["46","ТЕР09-04-012-01","Установка металлических дверных блоков в готовые проемы","1 м2 проема",40.74,null,null,null,null,0]
["47","ТЦ_07.1.01.03_78_7841375755_25.01.2024_02","Дверной блок однопольный металлический, остекленный, правая навеска 1000х2100","шт",6,null,null,null,null,0]
["48","ТЦ_07.1.01.03_78_7841375755_25.01.2024_02","Дверной блок однопольный металлический, остекленный,утепленный, правая навеска 1000х2100","шт",12,null,null,null,null,0]
["49","ТЦ_07.1.01.03_78_7841375755_25.01.2024_02","Дверной блок двупольный металлический, остекленный,утепленный 1400х2100","шт",1,null,null,null,null,0]
["50","ТЕР15-01-070-02","Облицовка: дверных проемов в наружных стенах откосной планкой из оцинкованной стали с полимерным покрытием с установкой наличников из оцинкованной стали с полимерным покрытием","1 м2 проемов",40.74,null,null,null,null,0]
["Ворота",null,null,null,null,null,null,null,null,0]
["51","ТЕР09-04-011-01","Монтаж каркасов ворот большепролетных зданий, ангаров и др. без механизмов открывания","1 т конструкций",2.44,null,null,null,null,0]
["52","ТЕРм38-01-002-03","Монорельсы, балки и другие аналогичные конструкции промышленных зданий, сборка с помощью: лебедок электрических (с установкой и снятием их в процессе работы)","1 т конструкций",2.367,null,null,null,null,0]
["53","ТЕРм11-05-001-01","Механизм исполнительный, масса: до 20 кг","1 шт.",3,null,null,null,null,0]
["54","ТЦ_08.1.06.01_78_7814075047_27.02.2024_02","Ворота складчатые, металлические остекленные с калиткой   4500х4000мм  (57*18)/1000","шт",1,null,null,null,null,0]
["55","ТЦ_08.1.06.01_78_7804564218_19.02.2024_02","Ворота складчатые, металлические остекленные с калиткой   4000х4000мм  (57*16)/1000","шт",1,null,null,null,null,0]
["56","ТЦ_07.1.01.03_78_7810347194_06.02.2024_02","Ворота распашные, металлические остекленные утепленные    3000х2200мм ( 76*6,6)/1000","шт",1,null,null,null,null,0]
["Раздел 6. Полы",null,null,null,null,null,null,null,null,0]
["Тип 1.  S=230,0 м2",null,null,null,null,null,null,null,null,0]
["57","ТЕР11-01-011-03","Устройство стяжек: бетонных толщиной 20 мм","100 м2 стяжки",2.2999999999999998,null,null,null,null,0]
["58","ТЕР11-01-011-04","Устройство стяжек: на каждые 5 мм изменения толщины стяжки добавлять или исключать к расценке 11-01-011-03","100 м2 стяжки",2.2999999999999998,null,null,null,null,0]
["59","Прайс","Бетон  В15","м3",19.940999999999999,null,null,null,null,0]
["60","ТЕР11-01-020-03","Устройство покрытий поливинилацетатных: толщиной 3 мм // прим. гидроизоляция полимерная","100 м2 покрытия",3.3180000000000001,null,null,null,null,0]
["61","ТЕР11-01-011-03","Устройство стяжек: бетонных толщиной 20 мм // прим. покрытие полимерцементный бетон В25  толщ.15 мм","100 м2 стяжки",2.2999999999999998,null,null,null,null,0]
["62","Прайс","Ветон В25","м3",3.5190000000000001,null,null,null,null,0]
["63","ТССЦ-113-0378","Состав полимерцементный  ( 20% от массы бетона)","м3",0.70379999999999998,null,null,null,null,0]
["Тип 1а.  S=930,0 м2",null,null,null,null,null,null,null,null,0]
["64","ТЕР11-01-011-03","Устройство стяжек: бетонных толщиной 20 мм","100 м2 стяжки",9.3000000000000007,null,null,null,null,0]
["65","ТЕР11-01-011-04","Устройство стяжек: на каждые 5 мм изменения толщины стяжки добавлять или исключать к расценке 11-01-011-03","100 м2 стяжки",9.3000000000000007,null,null,null,null,0]
["66","Прайс","Бетон  В15","м3",37.944000000000003,null,null,null,null,{"$f":"G89+I89","v":0}]
["67","ТЕР11-01-020-03","Устройство покрытий поливинилацетатных: толщиной 3 мм // прим. гидроизоляция полимерная","100 м2 покрытия",9.3000000000000007,null,null,null,null,0]
["68","ТЕР11-01-011-03","Устройство стяжек: бетонных толщиной 20 мм // прим. покрытие полимерцементный бетон В25  толщ.15 мм","100 м2 стяжки",9.3000000000000007,null,null,null,null,0]
["69","Прайс","Ветон В25","м3",14.228999999999999,null,null,null,null,0]
["70","ТССЦ-113-0378","Состав полимерцементный  ( 20% от массы бетона)","м3",2.8458000000000001,null,null,null,null,0]
["Тип 2.  S=410,0 м2",null,null,null,null,null,null,null,null,0]
["71","ТЕР11-01-011-03","Устройство стяжек: бетонных толщиной 20 мм","100 м2 стяжки",4.0999999999999996,null,null,null,null,0]
["72","ТЕР11-01-011-04","Устройство стяжек: на каждые 5 мм изменения толщины стяжки добавлять или исключать к расценке 11-01-011-03","100 м2 стяжки",4.0999999999999996,null,null,null,null,0]
["73","Прайс","Бетон  В15","м3",35.546999999999997,null,null,null,null,0]
["74","ТЕР11-01-011-03","Устройство стяжек: бетонных толщиной 20 мм // прим. покрытие полимерцементный бетон В25  толщ.15 мм","100 м2 стяжки",4.0999999999999996,null,null,null,null,0]
["75","Прайс","Ветон В25","м3",6.2729999999999997,null,null,null,null,0]
["76","ТССЦ-113-0378","Состав полимерцементный  ( 20% от массы бетона)","м3",1.2545999999999999,null,null,null,null,0]
["Тип 3.  S=140,0 м2",null,null,null,null,null,null,null,null,0]
["77","ТЕР11-01-015-07","Шлифовка бетонных или металлоцементных покрытий","100 м2 покрытия",1.4,null,null,null,null,0]
["78","ТЕР11-01-015-08","Железнение цементных покрытий // прим.","100 м2 покрытия",1.4,null,null,null,null,0]
["Тип 4.  S=540,0 м2",null,null,null,null,null,null,null,null,0]
["79","ТЕР11-01-011-03","Устройство стяжек: бетонных толщиной 20 мм","100 м2 стяжки",5.4,null,null,null,null,0]
["80","ТЕР11-01-011-04","Устройство стяжек: на каждые 5 мм изменения толщины стяжки добавлять или исключать к расценке 11-01-011-03","100 м2 стяжки",5.4,null,null,null,null,0]
["81","Прайс","Бетон  В15","м3",19.277999999999999,null,null,null,null,0]
["82","ТЕР11-01-011-03","Устройство стяжек: бетонных толщиной 20 мм // прим. покрытие полимерцементный бетон В25  толщ.15 мм","100 м2 стяжки",5.4,null,null,null,null,0]
["83","Прайс","Ветон В25","м3",8.2620000000000005,null,null,null,null,0]
["84","ТССЦ-113-0378","Состав полимерцементный  ( 20% от массы бетона)","м3",1.6524000000000001,null,null,null,null,0]
["Раздел 7. Внутренняя отделка  (1632-2021-2.2.1-АР.  Ведомость отделки помещений, лист 1)",null,null,null,null,null,null,null,null,0]
["Потолок",null,null,null,null,null,null,null,null,0]
["85","ТЕР15-04-007-02","Окраска водно-дисперсионными акриловыми составами улучшенная: по штукатурке потолков","100 м2 окрашиваемой поверхности",17.98,null,null,null,null,0]
["Стены и перегородки",null,null,null,null,null,null,null,null,0]
["86","ТЕР15-04-007-01","Окраска водно-дисперсионными акриловыми составами улучшенная: по штукатурке стен","100 м2 окрашиваемой поверхности",18.809999999999999,null,null,null,null,0]
["87","ТЕР26-01-037-01","Изоляция изделиями из волокнистых и зернистых материалов на битуме холодных поверхностей: стен и колонн прямоугольных (план в осях А-А2, лист2)","1 м3 изоляции",4.51,null,null,null,null,0]
["88","ТЕР15-02-001-01","Улучшенная штукатурка фасадов цементно-известковым раствором по камню: стен // прим.","100 м2 оштукатуриваемой поверхности",0.45100000000000001,null,null,null,null,0]
["89","ТССЦ-402-0381","Штукатурка минеральная декоративная CERESIT CT 35 \"короед\", зерно 2,5 мм (цветная) // прим.","кг",117.26,null,null,null,null,0]
["Разрез 4-4., 3-3",null,null,null,null,null,null,null,null,{"$f":"G119+I119","v":0}]
["90","ТЕР26-01-037-01","Изоляция изделиями из волокнистых и зернистых материалов на битуме холодных поверхностей: стен и колонн прямоугольных","1 м3 изоляции",34.366,null,null,null,null,0]
["91","ТЕР15-02-036-01","Штукатурка по сетке без устройства каркаса: улучшенная стен // толщ. 25 мм","100 м2 оштукатуриваемой поверхности",3.4365999999999999,null,null,null,null,0]
["92","ТССЦ-402-0444","Смесь штукатурная цементно-песчаная \"БИРСС 55\" (марка М100) // 1600 кг/м3","т",13.7464,null,null,null,null,0]
["93","ТЕР26-01-037-01","Изоляция изделиями из волокнистых и зернистых материалов на битуме холодных поверхностей: стен и колонн прямоугольных","1 м3 изоляции",22.768000000000001,null,null,null,null,0]
["94","ТЕР15-02-036-01","Штукатурка по сетке без устройства каркаса: улучшенная стен // толщ. 25 мм","100 м2 оштукатуриваемой поверхности",2.2768000000000002,null,null,null,null,0]
["95","ТССЦ-402-0444","Смесь штукатурная цементно-песчаная \"БИРСС 55\" (марка М100) // 1600 кг/м3","т",9.11,null,null,null,null,0]
["Разрез 1а-1а",null,null,null,null,null,null,null,null,0]
["96","ТЕР26-01-037-01","Изоляция изделиями из волокнистых и зернистых материалов на битуме холодных поверхностей: стен и колонн прямоугольных","1 м3 изоляции",13.83,null,null,null,null,0]
["97","ТЕР15-02-036-01","Штукатурка по сетке без устройства каркаса: улучшенная стен // толщ. 25 мм","100 м2 оштукатуриваемой поверхности",1.383,null,null,null,null,0]
["98","ТССЦ-402-0444","Смесь штукатурная цементно-песчаная \"БИРСС 55\" (марка М100) // 1600 кг/м3","т",5.53,null,null,null,null,0]
["Цоколь",null,null,null,null,null,null,null,null,0]
["99","ТЕР26-01-037-01","Изоляция изделиями из волокнистых и зернистых материалов на битуме холодных поверхностей: стен и колонн прямоугольных","1 м3 изоляции",14.625,null,null,null,null,0]
["100","ТЕР15-02-036-01","Штукатурка по сетке без устройства каркаса: улучшенная стен // толщ. 25 мм","100 м2 оштукатуриваемой поверхности",1.6379999999999999,null,null,null,null,0]
["101","ТССЦ-402-0444","Смесь штукатурная цементно-песчаная \"БИРСС 55\" (марка М100) // 1600 кг/м3","т",6.55,null,null,null,null,0]
["Раздел 9. Отмостка  (Узел 12, лист6 )",null,null,null,null,null,null,null,null,0]
["102","ТЕР27-04-001-04","Устройство подстилающих и выравнивающих слоев оснований: из щебня","100 м3 материала основания (в плотном теле)",0.19939999999999999,null,null,null,null,0]
["103","ТССЦ-408-0015","Щебень из природного камня для строительных работ марка: 800, фракция 20-40 мм","м3",25.13,null,null,null,null,0]
["104","ТЕР27-04-001-01","Устройство подстилающих и выравнивающих слоев оснований: из песка","100 м3 материала основания (в плотном теле)",0.33239999999999997,null,null,null,null,0]
["105","ТЦ_02.3.01.00_77_7734465669_15.02.2024_02","Песок средний для строительных работ",null,36.564,null,null,null,null,0]
["106","ТЕР06-01-013-01","Устройство подливки толщиной  20 мм // прим. бетонное основание","100 м2 подливки под оборудование",2.2160000000000002,null,null,null,null,0]
["107","ТЕР06-01-013-02","На каждые 10 мм изменения толщины добавлять или исключать к расценке 06-01-013-01 // до 100 мм","100 м2 подливки под оборудование",2.2160000000000002,null,null,null,null,{"$f":"G140+I140","v":0}]
["108","Прайс","Бетон  В15","м3",22.603000000000002,null,null,null,null,0]
["109","ТЕР06-01-015-10","Армирование подстилающих слоев и набетонок","1 т",0.60940000000000005,null,null,null,null,0]
["110","ТЦ_08.4.02.05_78_7816587756_08.02.2024_02","Сетка арм. 100х100 5Вр1","м2",221.6,null,null,null,null,0]
["111","ТЕР06-01-013-01","Устройство подливки толщиной  20 мм // прим. бетонное покрытие отмостки","100 м2 подливки под оборудование",2.2160000000000002,null,null,null,null,0]
["112","ТЕР06-01-013-02","На каждые 10 мм изменения толщины добавлять или исключать к расценке 06-01-013-01 // до 30-130 мм","100 м2 подливки под оборудование",2.2160000000000002,null,null,null,null,0]
["113","Прайс","Бетон  В15","м3",18.082999999999998,null,null,null,null,0]
["114","ТЕР11-01-015-07","Шлифовка бетонных или металлоцементных покрытий","100 м2 покрытия",2.2160000000000002,null,null,null,null,0]
["115","ТЕР11-01-015-08","Железнение цементных покрытий","100 м2 покрытия",2.2160000000000002,null,null,null,null,0]
["116","ТЕР27-06-007-02","Устройство швов в бетоне: свежеуложенном","100 м шва",0.73870000000000002,null,null,null,null,0]
["117","ТЕР27-02-010-02","Установка бортовых камней бетонных: при других видах покрытий","100 м бортового камня",221.6,null,null,null,null,0]
["118","ТЦ_04.13.00.00_78_7842083836_15.02.2024_02","Камни бортовые БР100.20.8","шт",222,null,null,null,null,0]
[null,null,"Всего, руб. с НДС",null,null,null,{"$f":"SUM(G12:G151)","v":0},null,{"$f":"SUM(I12:I151)","v":0},{"$f":"SUM(J12:J151)","v":0},null,null,null,null,null,null,null,null,{"$f":"SUM(S151:S151)","v":0},null,{"$f":"SUM(U151:U151)","v":0},{"$f":"SUM(V151:V151)","v":0}]
[null,null,"Всего, руб. без НДС",null,null,null,{"$f":"G152/1.2","v":0},null,{"$f":"I152/1.2","v":0},{"$f":"J152/1.2","v":0},null,null,null,null,null,null,null,null,{"$f":"S152/1.2","v":0},null,{"$f":"U152/1.2","v":0},{"$f":"V152/1.2","v":0}]

{"sheet":"1632-2021-2.2.6-АР","index":3,"n_rows":92,"n_cols":22,"rows_kept":92,"cut":false,"hidden":false,"merged":[[3,0,3,4]]}
[]
["Терминал по перевалке минеральных удобрений в морском торговом порту Усть-Луга. Береговые объекты терминала"]
["(наименование стройки)"]
["1632-2021-2.2.6-АР_07.04.025-П-00-00"]
["(локальная смета)"]
["на Архитектурные решения, 07.04.025 Пересыпная станция №6 (код SAP 01.02.020) код ГП 2.2.6"]
["(наименование работ и затрат, наименование объекта)"]
[null,"Основание:","1632-2021-2.2.6-АР_0_0_RU_IFR"]
[]
["№ п/п","Обоснование","Наименование работ и затрат","Ед. изм.","Кол-во","Цена за ед.измерения работ, руб. с НДС","Всего, стоимость работ,руб. с НДС","Цена за ед.измерения материалов, руб. с НДС","Всего, стоимость материалов, руб. с НДС","Итого, руб. с НДС"]
[1,2,3,4,5,6,7,8,9,10]
["Раздел 1. Фасады, (1632-2021-2.2.6-АР, л. 4, Спецификация элементов ограждающих конструкций)",null,null,null,null,null,null,null,null,{"$f":"G12+I12","v":0}]
["Раздел 2. Кровля, (1632-2021-2.2.6-АР, л. 4, Спецификация элементов водосточной системы)",null,null,null,null,null,null,null,null,0]
["Монтаж кровельного покрытия  из профнастила учтен в разделе КМ",null,null,null,null,null,null,null,null,0]
["1","ТЕР12-01-009-02","Устройство желобов: подвесных","100 м желобов",0.161,null,null,null,null,0]
["2","ТЦ_12.1.01.00_78_7804606806_25.01.2024_02\nАналог ТССЦ-203-0960 5219,18/5114,28=2%","Водосточный желоб D185х3000","шт",5.37,null,null,null,null,{"$f":"G16+I16","v":0}]
["3","ТЦ_12.1.01.00_78_7804606806_25.01.2024_02\nАналог ТССЦ-203-0960 5219,18/5114,28=2%","Держатель желоба","шт",27,null,null,null,null,0]
["4","ТЦ_12.1.01.00_78_7804606806_25.01.2024_02\nАналог ТССЦ-203-0960 5219,18/5114,28=2%","Заглушка","шт",3,null,null,null,null,0]
["5","ТЕР12-01-008-01","Устройство обделок на фасадах (наружные подоконники, пояски, балконы и др.): включая водосточные трубы, с изготовлением элементов труб","100 м2фасада (без вычета проемов)",5.6775000000000002,null,null,null,null,0]
["6","ТЦ_12.1.01.00_78_7804606806_25.01.2024_02\nАналог ТССЦ-203-0960 5219,18/5114,28=2%","Труба водосточная D150х3000мм","шт",12.33,null,null,null,null,0]
["7","ТЦ_12.1.01.00_78_7804606806_25.01.2024_02\nАналог ТССЦ-203-0960 5219,18/5114,28=2%","Крепление трубы","шт",37,null,null,null,null,0]
["8","ТЦ_12.1.01.00_78_7804606806_25.01.2024_02\nАналог ТССЦ-203-0960 5219,18/5114,28=2%","Колено гофрированное","шт",6,null,null,null,null,0]
["9","ТЕР16-07-002-01","Установка воронок водосточных","1 воронка",2,null,null,null,null,0]
["10","ТЦ_12.1.01.05_78_7804550906_25.01.2024_02\nАналог ТССЦ-203-0960 5219,18/5114,28=2%","Воронка выпускная D185/150","шт",2,null,null,null,null,0]
["11","ТЕР12-01-012-01","Ограждение кровель перилами, (установка снегозадержателя, прим.)","100 м ограждения",0.15,null,null,null,null,0]
["12","ТЦ_12.1.01.00_78_7804606806_25.01.2024_02\nАналог ТССЦ-203-0960 5219,18/5114,28=2%","Снегозадержатель трубчатый, (L=3 м. в комплекте с креплением)","шт",5,null,null,null,null,0]
["Заполнение гофры профлиста негорючим утеплителем на 250 мм, (1632-2021-2.2.6-АР, л. 5)",null,null,null,null,null,null,null,null,0]
["13","ТЕР26-01-037-02","Изоляция изделиями из волокнистых и зернистых материалов на битуме холодных поверхностей: покрытий и перекрытий сверху // прим. расход 0,0072 м3 /м.п. примыкания","1 м3 изоляции",0.108,null,null,null,null,0]
["Раздел 3. Окна, (1632-2021-2.2.6-АР, л. 4, Спецификация элементов заполнения оконных проемов)",null,null,null,null,null,null,null,null,0]
["14","ТЕР10-01-034-03","Установка в жилых и общественных зданиях оконных блоков из ПВХ профилей: поворотных (откидных, поворотно-откидных) с площадью проема до 2 м2 одностворчатых","100 м2 проемов",8.4000000000000005E-2,null,null,null,null,0]
["15","ТЦ_11.3.02.02_78_7804550906_25.01.2024_02","Ок1. Оконный блок из ПВХ профилей с одинарным\nостеклением, с открывающейся створкой, ОП 1100-1400 (6M1) ГОСТ 30674-99","шт",6,null,null,null,null,0]
["Раздел 4. Дверные проемы и ворота, (1632-2021-2.2.6-АР, л. 4, Спецификация элементов заполнения дверных проемов)",null,null,null,null,null,null,null,null,0]
["Установка дверей",null,null,null,null,null,null,null,null,0]
["16","ТЕР09-04-012-01","Установка металлических дверных блоков в готовые проемы","1 м2 проема",8.4,null,null,null,null,0]
["17","ТЕР09-04-012-02","Установка дверного доводчика к металлическим дверям","1 шт.",4,null,null,null,null,0]
["18","ТЦ_07.1.01.03_78_7810347194_06.02.2024_02","ДСН, Оп, Л, Прг, Н, М3 1000Х2100(h)","шт",2,null,null,null,null,0]
["19","ТЦ_07.1.01.03_78_7810347194_06.02.2024_02","ДСН, Оп, Л, Прг, Н, М3 1000Х2100(h) утепленная","шт",2,null,null,null,null,0]
["20","ТЕР09-04-013-01","Установка противопожарных дверей: однопольных глухих","1 м2 проема",8.4,null,null,null,null,0]
["21","ТЦ_07.1.01.03_78_7841375755_25.01.2024_02","ДПС 01 2100-1000 правая EI30 ГОСТ Р 57327-2016","шт",1,null,null,null,null,0]
["22","ТЦ_07.1.01.03_78_7841375755_25.01.2024_02","ДПС 01 2100-1000 левая EI30 ГОСТ Р 57327-2016","шт",1,null,null,null,null,0]
["23","ТЦ_07.1.01.03_78_7841375755_25.01.2024_02","ДПС 01 2100-1000 правая EI60 ГОСТ Р 57327-2016","шт",1,null,null,null,null,0]
["24","ТЦ_07.1.01.03_78_7841375755_25.01.2024_02","ДПС 01 2100-1000 левая EI60 ГОСТ Р 57327-2016","шт",1,null,null,null,null,0]
["Установка ворот",null,null,null,null,null,null,null,null,0]
["25","ТЕР09-04-011-01","Монтаж каркасов ворот большепролетных зданий, ангаров и др. без механизмов открывания","1 т конструкций",0.73036000000000001,null,null,null,null,0]
["26","ТЦ_01.16.00.00_78_7841375755_25.01.2024_02","Ворота металлические распашные, открывание наружу, с калиткой 3100х3100(h) мм, (вес=76,0 кг/м²)","шт",1,null,null,null,null,{"$f":"G45+I45","v":0}]
["Раздел 5. Помещения, (1632-2021-2.2.6-АР, л. 4, Ведомость отделки)",null,null,null,null,null,null,null,null,0]
["Стены",null,null,null,null,null,null,null,null,0]
["Потолок",null,null,null,null,null,null,null,null,0]
["Раздел 6. Полы, (1632-2021-2.2.6-АР, л. 4, Экспликация полов)",null,null,null,null,null,null,null,null,0]
["Тип 1.  S=144 м2",null,null,null,null,null,null,null,null,0]
["27","ТЕР11-01-011-03","Устройство стяжек: бетонных толщиной 20 мм, (h=100 мм)","100 м2 стяжки",1.44,null,null,null,null,0]
["28","ТЕР11-01-011-04","Устройство стяжек: на каждые 5 мм изменения толщины стяжки добавлять или исключать к расценке 11-01-011-03, (добавить 80 мм)","100 м2 стяжки",1.44,null,null,null,null,0]
["29","ТЦ_59.1.04.01_47_4707009037_08.02.2024_02","Бетон  В22,5","м3",14.688000000000001,null,null,null,null,0]
["30","ТЕР06-01-015-10","Армирование подстилающих слоев и набетонок","1 т",0.252,null,null,null,null,0]
["31","ТЦ_08.4.02.05_66_6686134976_08.02.2024_02\nАналог ТССЦ-101-3891 21,17/20,58=2%","Сетка арматурная 4Вр1 яч. 100х100, (вес=1,75 кг/м²)","м2",144,null,null,null,null,0]
["32","ТЕР11-01-020-03","Устройство покрытий поливинилацетатных: толщиной 3 мм, (полимерное защитное покрытие, h=3 мм, прим.)","100 м2 покрытия",1.44,null,null,null,null,0]
["Тип 2.  S=18 м2",null,null,null,null,null,null,null,null,0]
["33","ТЕР26-01-039-01","Изоляция покрытий и перекрытий изделиями из волокнистых и зернистых материалов насухо","1 м3 изоляции",0.9,null,null,null,null,0]
["34","ТЦ_12.2.05.06_78_7805028121_08.02.2024_02\nАналог ТССЦ-104-0119 650,75/632,35=2%","Пенополистирол экструдированный ТЕХНОНИКОЛЬ t=50 мм","м3",0.91800000000000004,null,null,null,null,0]
["35","ТЕР11-01-050-01","Устройство пароизоляции из полиэтиленовой пленки в один слой насухо","100 м2 поверхности",0.18,null,null,null,null,0]
["36","ТЕР11-01-011-03","Устройство стяжек: бетонных толщиной 20 мм, (h=50 мм)","100 м2 стяжки",0.18,null,null,null,null,0]
["37","ТЕР11-01-011-04","Устройство стяжек: на каждые 5 мм изменения толщины стяжки добавлять или исключать к расценке 11-01-011-03, (добавить 30 мм)","100 м2 стяжки",0.18,null,null,null,null,0]
["38","ТЦ_59.1.04.01_47_4707009037_08.02.2024_02","Бетон  В22,5","м3",0.91800000000000004,null,null,null,null,0]
["39","ТЕР06-01-015-10","Армирование подстилающих слоев и набетонок","1 т",3.2000000000000001E-2,null,null,null,null,0]
["40","ТЦ_08.4.02.05_66_6686134976_08.02.2024_02\nАналог ТССЦ-101-3891 21,17/20,58=2%","Сетка арматурная 4Вр1 яч. 100х100, (вес=1,75 кг/м²)","м2",18,null,null,null,null,0]
["41","ТЕР11-01-020-03","Устройство покрытий поливинилацетатных: толщиной 3 мм, (полимерное защитное покрытие, h=3 мм, прим.)","100 м2 покрытия",0.18,null,null,null,null,0]
["Тип 3.  S=136,9 м2",null,null,null,null,null,null,null,null,0]
["42","ТЕР11-01-011-03","Устройство стяжек: бетонных толщиной 20 мм, (h=27 мм)","100 м2 стяжки",1.369,null,null,null,null,0]
["43","ТЕР11-01-011-04","Устройство стяжек: на каждые 5 мм изменения толщины стяжки добавлять или исключать к расценке 11-01-011-03, (добавить 7 мм)","100 м2 стяжки",1.369,null,null,null,null,0]
["44","ТЦ_59.1.04.01_47_4707009037_08.02.2024_02","Бетон  В22,5","м3",3.77,null,null,null,null,0]
["45","ТЕР11-01-020-03","Устройство покрытий поливинилацетатных: толщиной 3 мм, (полимерное защитное покрытие, h=3 мм, прим.)","100 м2 покрытия",1.369,null,null,null,null,0]
["Тип 4.  S=4,2 м2",null,null,null,null,null,null,null,null,0]
["46","ТЕР11-01-011-03","Устройство стяжек: бетонных толщиной 20 мм, (по уклону h=(50+100)/2=75 мм)","100 м2 стяжки",4.2000000000000003E-2,null,null,null,null,0]
["47","ТЕР11-01-011-04","Устройство стяжек: на каждые 5 мм изменения толщины стяжки добавлять или исключать к расценке 11-01-011-03, (добавить 55 мм)","100 м2 стяжки",4.2000000000000003E-2,null,null,null,null,{"$f":"G74+I74","v":0}]
["48","ТЦ_59.1.04.01_47_4707009037_08.02.2024_02","Бетон  В22,5","м3",0.32100000000000001,null,null,null,null,0]
["49","ТЕР11-01-020-03","Устройство покрытий поливинилацетатных: толщиной 3 мм, (полимерное защитное покрытие, h=3 мм, прим.)","100 м2 покрытия",4.2000000000000003E-2,null,null,null,null,0]
["Раздел 7. Отделка, (1632-2021-2.2.6-АР, л. 4, Ведомость отделки)",null,null,null,null,null,null,null,null,0]
["Цоколь",null,null,null,null,null,null,null,null,0]
["50","ТЕР11-01-015-07","Шлифовка бетонных или металлоцементных покрытий, (затирка поверхности цоколя, прим.)","100 м2 покрытия",1.137,null,null,null,null,0]
["51","ТЕР15-04-015-02","Окраска фасадов с люлек с подготовкой поверхности: силикатная, (прим.)","100 м2 фасада",1.137,null,null,null,null,0]
["Окраска конструкций стен и потолков из профлиста, учтена в сметах к разделу КМ",null,null,null,null,null,null,null,null,0]
["Раздел 8. Отмостка, (1632-2021-2.2.6-АР, л. 5-6, Узлы)",null,null,null,null,null,null,null,null,0]
["52","ТЕР27-04-001-04","Устройство подстилающих и выравнивающих слоев оснований: из щебня","100 м3 материала основания (в плотном теле)",0.1603,null,null,null,null,0]
["53","ТССЦ-408-0015","Щебень из природного камня для строительных работ марка: 800, фракция 20-40 мм","м3",20.2,null,null,null,null,0]
["54","ТЕР06-01-013-01","Устройство подливки толщиной  20 мм, (бетонное основание, h=60 мм, прим.)","100 м2 подливки под оборудование",0.53439999999999999,null,null,null,null,0]
["55","ТЕР06-01-013-02","На каждые 10 мм изменения толщины добавлять или исключать к расценке 06-01-013-01, (добавить 40 мм)","100 м2 подливки под оборудование",0.53439999999999999,null,null,null,null,0]
["56","ТЦ_59.1.04.01_47_4707009037_08.02.2024_02","Бетон  В15","м3",3.27,null,null,null,null,0]
["57","ТЕР06-01-015-10","Армирование подстилающих слоев и набетонок","1 т",0.23669999999999999,null,null,null,null,0]
["58","ТЦ_08.4.02.05_66_6686134976_08.02.2024_02\nАналог ТССЦ-101-3891 21,17/20,58=2%","Сетка арматурная 6Вр1 яч. 100х100, (вес=4,43 кг/м²)","м2",53.44,null,null,null,null,0]
["59","ТЕР11-01-019-01","Устройство покрытий асфальтобетонных: литых толщиной 25 мм","100 м2 покрытия",0.53439999999999999,null,null,null,null,0]
[null,null,"Всего, руб. с НДС",null,null,null,{"$f":"SUM(G12:G90)","v":0},null,{"$f":"SUM(I12:I90)","v":0},{"$f":"SUM(J12:J90)","v":0},null,null,null,null,null,null,null,null,{"$f":"SUM(S90:S90)","v":0},null,{"$f":"SUM(U90:U90)","v":0},{"$f":"SUM(V90:V90)","v":0}]
[null,null,"Всего, руб. без НДС",null,null,null,{"$f":"G91/1.2","v":0},null,{"$f":"I91/1.2","v":0},{"$f":"J91/1.2","v":0},null,null,null,null,null,null,null,null,{"$f":"S91/1.2","v":0},null,{"$f":"U91/1.2","v":0},{"$f":"V91/1.2","v":0}]

{"sheet":"1632-2021-2.2.2-АР","index":4,"n_rows":101,"n_cols":10,"rows_kept":101,"cut":false,"hidden":false,"merged":[]}
[]
["Терминал по перевалке минеральных удобрений в морском торговом порту Усть-Луга. Береговые объекты терминала"]
["(наименование стройки)"]
["1632-2021-2.2.2 -АР_07.04.021-П-00-01"]
["(локальная смета)"]
["на Архитектурные решения, Пересыпная станция № 2"]
["(наименование работ и затрат, наименование объекта)"]
[null,"Основание:","1632-2021-2.2.2 -АР_1_0_RU_IFC"]
[]
["№ п/п","Обоснование","Наименование работ и затрат","Ед. изм.","Кол-во","Цена за ед.измерения работ, руб. с НДС","Всего, стоимость работ,руб. с НДС","Цена за ед.измерения материалов, руб. с НДС","Всего, стоимость материалов, руб. с НДС","Итого, руб. с НДС"]
["1","2","3","4","5",6,7,8,9,10]
["Раздел 1. Фасадные работы"]
["Раздел 2. Кровля"]
["Монтаж кровельного покрытия  из профнастила учтен в разделе КМ"]
["1","ТЕР12-01-009-02","Устройство желобов: подвесных","100 м желобов",1.5640000000000001,null,null,null,null,{"$f":"G15+I15","v":0}]
["2","ТЦ_12.1.01.00_78_7804606806_25.01.2024_02\nАналог  ТССЦ-301-5883    286,47/280,65=2%","Желоб водосточный D185х3000","шт",52,null,null,null,null,{"$f":"G16+I16","v":0}]
["3","ТЦ_12.1.01.00_78_7804606806_25.01.2024_02\nАналог  ТССЦ-301-5881    61,11/59,89=2%","Держатель желоба","шт",260,null,null,null,null,0]
["4","ТЕР12-01-008-01\nплощадь боковой поверхности трубопровода","Устройство обделок на фасадах (наружные подоконники, пояски, балконы и др.): включая водосточные трубы, с изготовлением элементов труб// прим.навеска водосточных труб","100 м2фасада (без вычета проемов)",0.89490000000000003,null,null,null,null,0]
["5","ТЕР12-01-008-02","Устройство обделок на фасадах (наружные подоконники, пояски, балконы и др.): без водосточных труб","100 м2фасада (без вычета проемов)",-0.89490000000000003,null,null,null,null,0]
["6","ТЦ_12.1.01.00_78_7804606806_25.01.2024_02_5.1\nАналог  ТССЦ-301-5895    378,12/370,39=2%","Труба водосточная D150х2000мм","шт",161,null,null,null,null,0]
["7","ТЦ_12.1.01.00_78_7804606806_25.01.2024_02_6.1\nАналог   ТССЦ-301-5891     68,75/67,38=2%","Крепление трубы","шт",323,null,null,null,null,0]
["8","ТЦ_12.1.01.00_78_7804606806_25.01.2024_02_7.1\nАналог  ТССЦ-301-5887   263,57/258,34=2%","Воронки выпускные D185/150","шт",11,null,null,null,null,0]
["9","ТЦ_12.1.01.00_78_7804606806_25.01.2024_02_8.1\nАналог ТССЦ-203-0960 5219,18/5114,28=2%","Колено гофрированное","шт",55,null,null,null,null,0]
["10","ТЦ_12.1.01.00_77_7704792852_03.07.2024_02_9.2\nАналог ТССЦ-301-5848   42,01/41,12=2%","Заглушка","шт",10,null,null,null,null,0]
["11","ТЕР12-01-012-01","Ограждение кровель перилами // прим.","100 м ограждения",1.498,null,null,null,null,0]
["12","ТЦ_12.1.01.00_78_7804606806_25.01.2024_02_10.1\nАналог  ТССЦ-101-7607   13906,14/13630,62=2%","Снегозадержатель трубчатый (L=3 м. в комплекте с креплением)","шт",50,null,null,null,null,0]
["Раздел 3. Окна",null,null,null,null,null,null,null,null,0]
["13","ТЕР10-01-034-03","Установка в жилых и общественных зданиях оконных блоков из ПВХ профилей: поворотных (откидных, поворотно-откидных) с площадью проема до 2 м2 одностворчатых","100 м2 проемов",0.40600000000000003,null,null,null,null,0]
["14","ТЦ_11.3.02.02_63_632412092352_11.07.2024_02_25.1\nАналог  ТССЦ-203-0948    4334,49/4247,63=2%","ОК-1.  1400х1000","шт",17,null,null,null,null,0]
["15","ТЦ_11.3.02.02_63_632412092352_11.07.2024_02_25.1\nАналог  ТССЦ-203-0948    4334,49/4247,63=2%","ОК-2.  1400х1200","шт",10,null,null,null,null,0]
["16","ТЕР15-01-070-01","Облицовка: оконных проемов в наружных стенах откосной планкой из оцинкованной стали с полимерным покрытием с устройством водоотлива оконного из оцинкованной стали с полимерным покрытием","1 м2 проемов",40.6,null,null,null,null,0]
["Раздел 4. Дверные проемы и ворота",null,null,null,null,null,null,null,null,0]
["17","ТЕР09-04-013-02","Установка противопожарных дверей: двупольных глухих","1 м2 проема",3.25,null,null,null,null,0]
["18","ТЦ_07.1.01.01_47_4703144902_11.07.2024_02_17.1\nАналог  ТССЦ-203-8135  3132,85/3067,31=2%","Дверь противопожарная стальная  внутренняя ( утепленая) 1300х2500  с порогом","шт",1,null,null,null,null,0]
["19","ТЕР09-04-013-01","Установка противопожарных дверей: однопольных глухих","1 м2 проема",39.9,null,null,null,null,0]
["20","ТЦ_07.1.01.01_47_4703144902_11.07.2024_02_17.1\nАналог  ТССЦ-203-8135  3132,85/3067,31=2%","Дверь противопожарная стальная  внутренняя однопольная  с порогом  1000х2100","шт",17,null,null,null,null,0]
["21","ТЦ_07.1.01.01_47_4703144902_11.07.2024_02_17.1\nАналог  ТССЦ-203-8135  3132,85/3067,31=2%","Дверь противопожарная стальная  наружная однопольная  с порогом  1000х2100","шт",2,null,null,null,null,0]
["22","ТССЦ-101-6978","Доводчик дверной DS 73 BC \"Серия Premium\", усилие закрывания EN2-5","шт.",20,null,null,null,null,0]
["23","ТЕР09-04-012-01","Установка металлических дверных блоков в готовые проемы","1 м2 проема",30.16,null,null,null,null,0]
["24","ТЦ_07.1.01.01_47_4703144902_11.07.2024_02_17.1\nАналог  ТССЦ-203-8135  3132,85/3067,31=2%","Дверь  стальная  наружная  однопольная с порогом 1000х2100 (утепленная)","шт",4,null,null,null,null,0]
["25","ТЦ_07.1.01.01_47_4703144902_11.07.2024_02_17.1\nАналог  ТССЦ-203-8135  3132,85/3067,31=2%","Дверь  стальная  наружная  однопольная с порогом 1000х2100","шт",8,null,null,null,null,0]
["26","ТЦ_07.1.01.01_47_4703144902_11.07.2024_02_17.1\nАналог  ТССЦ-203-8135  3132,85/3067,31=2%","Дверь  стальная  наружная  однопольная с порогом 900х1900","шт",1,null,null,null,null,0]
["27","ТССЦ-203-8147\nПрименительно","Блок дверной стальной наружный двупольный ДСН ДКН, площадь 2,73 м2 (ГОСТ 31173-2003)","м2",3.25,null,null,null,null,0]
["28","ТЕР15-01-070-02","Облицовка: дверных проемов в наружных стенах откосной планкой из оцинкованной стали с полимерным покрытием с установкой наличников из оцинкованной стали с полимерным покрытием","1 м2 проемов",34.36,null,null,null,null,0]
["Ворота",null,null,null,null,null,null,null,null,0]
["29","ТЕР09-04-011-01","Монтаж каркасов ворот большепролетных зданий, ангаров и др. без механизмов открывания","1 т конструкций",2.02,null,null,null,null,0]
["30","ТЦ_08.1.06.01_47_4703144902_11.07.2024_02_23.1\nАналог  ТССЦ-201-0253   5403,70/5341,14=2%","Ворота распашные, металлические открывание наружу,  с калиткой 5000х4500  (вес 55,6 кг/м2)","шт",1,null,null,null,null,{"$f":"G47+I47","v":0}]
["31","ТЦ_08.1.06.01_47_4703144902_11.07.2024_02_23.1\nАналог  ТССЦ-201-0253   5403,70/5341,14=2%","Ворота распашные, металлические открывание наружу,  с калиткой 3300х4200    (вес 55,6 кг/м2)","шт",1,null,null,null,null,0]
["Раздел 5. Полы",null,null,null,null,null,null,null,null,0]
["Тип 1.  S=1944,8 м2., Тип 2. S=20,2 м2.",null,null,null,null,null,null,null,null,0]
["32","ТЕР11-01-011-03","Устройство стяжек: бетонных толщиной 20 мм","100 м2 стяжки",19.649999999999999,null,null,null,null,0]
["33","ТЕР11-01-011-04","Устройство стяжек: на каждые 5 мм изменения толщины стяжки добавлять или исключать к расценке 11-01-011-03 // толщ.130 мм","100 м2 стяжки",19.649999999999999,null,null,null,null,0]
["34","ТЦ_59.1.04.01_47_4705078395_08.02.2024_02_13.1\nАналог  ТССЦ-401-0008    699,49/623,42=2%","Бетон  В22,5","м3",260.55900000000003,null,null,null,null,0]
["35","ТЕР06-01-015-10","Армирование подстилающих слоев и набетонок","1 т",3.4390000000000001,null,null,null,null,0]
["36","ТЦ_08.4.02.05_66_6686134976_08.02.2024_02\nАналог ТССЦ-101-3891 21,17/20,58=2%","Сетка арм. 100х100 4Вр1","м2",1965,null,null,null,null,0]
["37","ТЕР11-01-020-03","Устройство покрытий поливинилацетатных: толщиной 3 мм // прим.  покрытие полимерное","100 м2 покрытия",19.649999999999999,null,null,null,null,0]
["Тип 3    S=2155,0 м2",null,null,null,null,null,null,null,null,0]
["38","ТЕР11-01-011-03","Устройство стяжек: бетонных толщиной 20 мм","100 м2 стяжки",21.55,null,null,null,null,0]
["39","ТЕР11-01-011-04","Устройство стяжек: на каждые 5 мм изменения толщины стяжки добавлять или исключать к расценке 11-01-011-03  // 30 мм","100 м2 стяжки",21.55,null,null,null,null,0]
["40","ТЦ_59.1.04.01_47_4705078395_08.02.2024_02_13.1\nАналог  ТССЦ-401-0008    699,49/623,42=2%","Бетон  В22,5","м3",65.942999999999998,null,null,null,null,0]
["41","ТЕР11-01-020-03","Устройство покрытий поливинилацетатных: толщиной 3 мм // прим.  покрытие полимерное","100 м2 покрытия",21.55,null,null,null,null,0]
["Тип 4.  S=116,2 м2.,   Тип 5   S=76,3 м2",null,null,null,null,null,null,null,null,0]
["42","ТЕР11-01-009-01","Устройство тепло- и звукоизоляции сплошной из плит: или матов минераловатных или стекловолокнистых","100 м2 изолируемой поверхности",1.925,null,null,null,null,0]
["43","ТССЦ-104-0496","Плиты минераловатные \"Руф Баттс\" ROCKWOOL","м3",19.829999999999998,null,null,null,null,0]
["44","ТЕР11-01-050-01","Устройство пароизоляции из полиэтиленовой пленки в один слой насухо","100 м2 поверхности",1.925,null,null,null,null,0]
["45","ТЕР11-01-011-03","Устройство стяжек: бетонных толщиной 20 мм","100 м2 стяжки",1.925,null,null,null,null,0]
["46","ТЕР11-01-011-04","Устройство стяжек: на каждые 5 мм изменения толщины стяжки добавлять или исключать к расценке 11-01-011-03  // 30 мм","100 м2 стяжки",1.925,null,null,null,null,0]
["47","ТЦ_59.1.04.01_47_4705078395_08.02.2024_02_13.1\nАналог  ТССЦ-401-0008    699,49/623,42=2%","Бетон  В22,5","м3",5.891,null,null,null,null,0]
["48","ТЕР11-01-020-03","Устройство покрытий поливинилацетатных: толщиной 3 мм // прим.  покрытие полимерное","100 м2 покрытия",1.925,null,null,null,null,0]
["Тип 6.  S=1336,3 м2",null,null,null,null,null,null,null,null,{"$f":"G70+I70","v":0}]
["49","ТЕР11-01-015-07","Шлифовка бетонных или металлоцементных покрытий","100 м2 покрытия",13.363,null,null,null,null,0]
["50","ТЕР11-01-015-08","Железнение цементных покрытий // прим.покрытие упрочняющ.","100 м2 покрытия",13.363,null,null,null,null,0]
["51","ТССЦ-402-0430","Смесь сухая на основе высокоактивного портландцемента и металлических заполнителей MASTERTOP 200 для упрочнения поверхности бетонных полов, цвет натуральный /  расход 6-8 кг/м2","кг",10690.4,null,null,null,null,0]
["Раздел 6. Внутренняя отделка   (лист 7, разрез 3-3)",null,null,null,null,null,null,null,null,0]
["Потолок",null,null,null,null,null,null,null,null,0]
["52","ТЕР10-05-011-02\nВ проекте допущена ошибка, в ведомости отделки вмето гипсокартона указан утеплитель","Устройство подвесных потолков из гипсокартонных листов (ГКЛ) по системе «КНАУФ»: одноуровневых (П 113)","100 м2 потолка",1.0329999999999999,null,null,null,null,0]
["53","ТЕР15-04-007-04","Окраска водно-дисперсионными акриловыми составами улучшенная: по сборным конструкциям потолков, подготовленным под окраску","100 м2 окрашиваемой поверхности",1.0329999999999999,null,null,null,null,0]
["54","ТССЦ-101-6521","Краска акриловая водно-дисперсионная \"БИРСС Фасад-Колор\", тон средний // прим.","т",3.4099999999999998E-2,null,null,null,null,0]
["Раздел 7. Цоколь   ( Узлы 1-15  Лист 10)",null,null,null,null,null,null,null,null,0]
["55","ТЕР11-01-015-07","Шлифовка бетонных или металлоцементных покрытий // прим. затирка поверхности цоколя","100 м2 покрытия",5.1820000000000004,null,null,null,null,0]
["56","ТЕР15-04-015-02","Окраска фасадов с люлек с подготовкой поверхности: силикатная // прим.","100 м2 фасада",5.1820000000000004,null,null,null,null,0]
["57","ТССЦ-101-6521","Краска акриловая водно-дисперсионная \"БИРСС Фасад-Колор\", тон средний // прим.","т",0.23319999999999999,null,null,null,null,0]
["58","ТЕР26-01-041-05","Изоляция изделиями из пенопласта насухо холодных поверхностей покрытий и перекрытий","1 м3 изоляции",3.73,null,null,null,null,0]
["59","ТЕР06-01-068-03","Устройство деформационных швов в емкостных сооружениях с применением: герметика // прим.","100 м шва",1.9,null,null,null,null,0]
["60","ТССЦ-104-0996","Жгут уплотнительный \"Стенофлекс\" (в бухте), диаметром: 15 мм // прим. Жгут \"Вилотерм\" д.15мм","100 м",1.9,null,null,null,null,0]
["61","ТЕР15-02-001-01\nприм","Улучшенная штукатурка фасадов цементно-известковым раствором по камню: стен","100 м2 оштукатуриваемой поверхности",1.6339999999999999,null,null,null,null,0]
["62","ТЕР15-04-015-02","Окраска фасадов с люлек с подготовкой поверхности: силикатная // прим.","100 м2 фасада",1.6339999999999999,null,null,null,null,0]
["63","ТССЦ-101-6521","Краска акриловая водно-дисперсионная \"БИРСС Фасад-Колор\", тон средний // прим.","т",7.3499999999999996E-2,null,null,null,null,0]
["Раздел 8. Отмостка  (Узел 12, лист6 )",null,null,null,null,null,null,null,null,0]
["64","ТЕР27-04-001-04","Устройство подстилающих и выравнивающих слоев оснований: из щебня","100 м3 материала основания (в плотном теле)",0.56999999999999995,null,null,null,null,0]
["65","ТССЦ-408-0015","Щебень из природного камня для строительных работ марка: 800, фракция 20-40 мм","м3",71.819999999999993,null,null,null,null,0]
["66","ТЕР06-01-013-01","Устройство подливки толщиной  20 мм // прим. бетонное основание","100 м2 подливки под оборудование",0.56999999999999995,null,null,null,null,{"$f":"G92+I92","v":0}]
["67","ТЕР06-01-013-02","На каждые 10 мм изменения толщины добавлять или исключать к расценке 06-01-013-01 // до 60 мм","100 м2 подливки под оборудование",0.56999999999999995,null,null,null,null,0]
["68","ТЦ_59.1.04.01_78_7806468968_26.06.2024_02_15.1\nАналог  ТССЦ-401-0006     661,66/586,34=2%","Бетон  В15","м3",3.488,null,null,null,null,0]
["69","ТЕР06-01-015-10","Армирование подстилающих слоев и набетонок","1 т",0.2525,null,null,null,null,0]
["70","ТЦ_08.4.02.05_78_7816723705_16.02.2024_02_16.1\nАналог  ТССЦ-101-3891     21,17/20,58=2%","Сетка арм. 100х100 6Вр1","м2",190,null,null,null,null,0]
["71","ТЕР27-07-001-01","Устройство асфальтобетонных покрытий дорожек и тротуаров однослойных из литой мелкозернистой асфальтобетонной смеси толщиной 3 см","100 м2 покрытия",1.9,null,null,null,null,0]
["72","ТЕР27-07-001-02","На каждые 0,5 см изменения толщины покрытия добавлять к  расценке 27-07-001-01  // до толщ. 2,5 см","100 м2 покрытия",-1.9,null,null,null,null,0]
["73","ТЕР27-06-007-02","Устройство швов в бетоне: свежеуложенном","100 м шва",1.9,null,null,null,null,0]
[null,null,"Всего, руб. с НДС",null,null,null,{"$f":"SUM(G12:G99)","v":0},null,{"$f":"SUM(I12:I99)","v":0},{"$f":"SUM(J12:J99)","v":0}]
[null,null,"Всего, руб. без НДС",null,null,null,{"$f":"G100/1.2","v":0},null,{"$f":"I100/1.2","v":0},{"$f":"J100/1.2","v":0}]

{"sheet":"1632-2021-2.2.7-АР","index":5,"n_rows":104,"n_cols":10,"rows_kept":104,"cut":false,"hidden":false,"merged":[]}
[]
["Терминал по перевалке минеральных удобрений в морском торговом порту Усть-Луга. Береговые объекты терминала"]
["(наименование стройки)"]
["1632-2021-2.2.7- АР_07.04.026-П-00-02"]
["(локальная смета)"]
["на Архитектурные решения, 07.04.026 Приводная станция  (код SAP 01.02.005) код ГП 2.2.7"]
["(наименование работ и затрат, наименование объекта)"]
[null,"Основание:","1632-2021-2.2.7-АР_0_0_RU_IFС"]
[]
["№ п/п","Обоснование","Наименование работ и затрат","Ед. изм.","Кол-во","Цена за ед.измерения работ, руб. с НДС","Всего, стоимость работ,руб. с НДС","Цена за ед.измерения материалов, руб. с НДС","Всего, стоимость материалов, руб. с НДС","Итого, руб. с НДС"]
["1","2","3","4","5",6,7,8,9,10]
["Раздел 1. Фасадные работы",null,null,null,null,null,null,null,null,{"$f":"G12+I12","v":0}]
["Раздел 2. Кровля",null,null,null,null,null,null,null,null,0]
["Кровля плоская",null,null,null,null,null,null,null,null,0]
["8","ТЕР11-01-009-02","Устройство тепло- и звукоизоляции сплошной из плит: древесноволокнистых // прим. ЦСП в 2 слоя","100 м2 изолируемой поверхности",1.77,null,null,null,null,0]
["9","ТЦ_01.6.01.10_78_7810994931_08.02.2024_02\nАналог ТССЦ-101-5068   25,77/24,64=2%","ЦСП 13200х1200х8","м2",364.62,null,null,null,null,{"$f":"G16+I16","v":0}]
["10","ТЕР12-01-002-09","Устройство кровель плоских из наплавляемых материалов: в два слоя","100 м2 кровли",1.77,null,null,null,null,0]
["11","ТЦ_12.0.00.00_78_7826181040_08.02.2024_02\nАналог ТССЦ-101-4724  26,31/25,55=2%","Техноэласт Пламя Стоп","м2",201.78,null,null,null,null,0]
["12","ТЦ_12.0.00.00_78_7826181040_08.02.2024_02\nАналог ТССЦ-101-4702   22,34/21,66=2%","Техноэласт ЭПП","м2",205.32,null,null,null,null,0]
["13","ТЕР12-01-009-02","Устройство желобов: подвесных","100 м желобов",0.26400000000000001,null,null,null,null,0]
["14","ТЦ_12.1.01.00_78_7804606806_25.01.2024_02\nАналог  ТССЦ-101-5465  31,79/31,06=2%","Желоб водосточный D185х3000","шт",9,null,null,null,null,0]
["15","ТЦ_12.1.01.00_78_7804606806_25.01.2024_02\nАналог  ТССЦ-101-5466  4,57/4,46=2%","Держатель желоба","шт",44,null,null,null,null,0]
["16","ТЕР12-01-008-01","Устройство обделок на фасадах (наружные подоконники, пояски, балконы и др.): включая водосточные трубы, с изготовлением элементов труб// прим.навеска водосточных труб","100 м2фасада (без вычета проемов)",0.26658599999999999,null,null,null,null,0]
["17","ТЕР12-01-008-02","Устройство обделок на фасадах (наружные подоконники, пояски, балконы и др.): без водосточных труб","100 м2фасада (без вычета проемов)",-0.26658599999999999,null,null,null,null,0]
["18","ТЦ_12.1.01.00_78_7804606806_25.01.2024_02\nАналог ТССЦ-301-5867 217,71/213,27=2%","Труба водосточная D150х3000мм","шт",19,null,null,null,null,0]
["19","ТЦ_12.1.01.00_78_7804606806_25.01.2024_02\nАналог  ТССЦ-101-5466  4,57/4,46=2%","Крепление трубы","шт",58,null,null,null,null,0]
["20","ТЦ_12.1.01.00_78_7804606806_25.01.2024_02\nАналог ТССЦ-203-0960 5219,18/5114,28=2%","Колено гофрированное","шт",16,null,null,null,null,0]
["21","ТЦ_12.1.01.00_78_7804606806_25.01.2024_02\nАналог ТССЦ-301-5848   42,01/41,12=2%","Заглушка","шт",4,null,null,null,null,0]
["22","ТЦ_12.1.01.00_78_7804606806_25.01.2024_02\nАналог ТССЦ-115-0931  8,37/8,08=3%","Воронки выпускные D185/150","шт",4,null,null,null,null,0]
["23","ТЕР12-01-012-01","Ограждение кровель перилами // прим.","100 м ограждения",0.26400000000000001,null,null,null,null,0]
["24","ТЦ_12.1.01.00_78_7804606806_25.01.2024_02","Снегозадержатель трубчатый (L=3 м. в комплекте с креплением)","шт",9,null,null,null,null,0]
["25","ТЕР12-01-006-02","Устройство деформационных  швов с наплавлением  дополнительных слоев рулонного кровельного материала","100 м деформационных швов",0.115,null,null,null,null,0]
["Заполнение гофры профлиста негорючим утеплителем на 250 мм. ( Узел 6/3 , лист 5)",null,null,null,null,null,null,null,null,0]
["26","ТЕР26-01-037-02","Изоляция изделиями из волокнистых и зернистых материалов на битуме холодных поверхностей: покрытий и перекрытий сверху // прим. расход 0,0072 м3 /м.п. примыкания","1 м3 изоляции",0.1656,null,null,null,null,0]
["Раздел 3. Окна",null,null,null,null,null,null,null,null,0]
["27","ТЕР10-01-034-03","Установка в жилых и общественных зданиях оконных блоков из ПВХ профилей: поворотных (откидных, поворотно-откидных) с площадью проема до 2 м2 одностворчатых","100 м2 проемов",4.2000000000000003E-2,null,null,null,null,0]
["28","ТЦ_07.1.02.00_78_7840318754_30.01.2024_02\nАналог ТССЦ-203-0978  4253,53/4168,26=2%","ОК-1.  1000х1400","шт",3,null,null,null,null,0]
["29","ТЕР15-01-070-01","Облицовка: оконных проемов в наружных стенах откосной планкой из оцинкованной стали с полимерным покрытием с устройством водоотлива оконного из оцинкованной стали с полимерным покрытием","1 м2 проемов",4.2,null,null,null,null,0]
["Раздел 4. Дверные проемы и ворота",null,null,null,null,null,null,null,null,0]
["30","ТЕР09-04-012-01","Установка металлических дверных блоков в готовые проемы","1 м2 проема",4.2,null,null,null,null,0]
["31","ТЦ_07.1.01.03_78_7810347194_06.02.2024_02\nАналог ТССЦ-203-8123  2466,49/2414,02=2%","Дверь стальная  наружная ( утепленая) 1000х2100 правого открывания в компл. с доводчиком","шт",1,null,null,null,null,0]
["32","ТЦ_07.1.01.03_78_7810347194_06.02.2024_02\nАналог ТССЦ-203-8123  2466,49/2414,02=2%","Дверь стальная  наружная  1000х2100 левого открывания  в компл. с доводчиком","шт",1,null,null,null,null,0]
["33","ТЕР09-04-012-02","Установка дверного доводчика к металлическим дверям","1 шт.",2,null,null,null,null,0]
["34","ТЕР15-01-070-02","Облицовка: дверных проемов в наружных стенах откосной планкой из оцинкованной стали с полимерным покрытием с установкой наличников из оцинкованной стали с полимерным покрытием","1 м2 проемов",4.2,null,null,null,null,0]
["Ворота",null,null,null,null,null,null,null,null,{"$f":"G45+I45","v":0}]
["35","ТЕР09-04-011-01","Монтаж каркасов ворот большепролетных зданий, ангаров и др. без механизмов открывания","1 т конструкций",0.59299999999999997,null,null,null,null,0]
["36","ТЕР09-04-012-02","Установка дверного доводчика к металлическим дверям","1 шт.",1,null,null,null,null,0]
["37","ТЦ_07.1.01.03_78_7841375755_26.01.2024_02\nАналог  ТССЦ-201-0253  5403,70/5341,14=2%","Ворота распашные металлические, с калиткой, открыванием наружу 2600х4100мм (55,6*10,66м2)/1000","шт",1,null,null,null,null,0]
["Раздел 5. Перегородки",null,null,null,null,null,null,null,null,0]
["38","ТЕР09-04-006-04","Монтаж ограждающих конструкций стен: из многослойных панелей заводской готовности при высоте здания до 50 м","100 м2",0.20680000000000001,null,null,null,null,0]
["39","ТССЦ-201-0382","Конструкции: стальные нащельников и деталей обрамления","т",5.6000000000000001E-2,null,null,null,null,0]
["40","ТЦ_07.2.05.00_77_7726393266_08.02.2024_02\nАналог ТССЦ-201-1030 212,54/207,54=2%","Сэндвич-панели ТСП-Z-120-1200-Г-Г-МВ","м2",21.9208,null,null,null,null,0]
["Раздел 6. Полы",null,null,null,null,null,null,null,null,0]
["Тип 1.  S=27,1 м2",null,null,null,null,null,null,null,null,0]
["41","ТЕР11-01-009-01","Устройство тепло- и звукоизоляции сплошной из плит: или матов минераловатных или стекловолокнистых","100 м2 изолируемой поверхности",0.27100000000000002,null,null,null,null,0]
["42","ТЦ_12.2.00.00_78_7802348846_15.02.2024_02\nАналог  ТССЦ-104-0313  1379,26/1347,33=2%","Пеноплэкс Фундамент толщ. 40 мм","м3",1.117,null,null,null,null,0]
["43","ТЕР11-01-050-01","Устройство пароизоляции из полиэтиленовой пленки в один слой насухо // прим. гидроизоляция","100 м2 поверхности",0.27100000000000002,null,null,null,null,0]
["44","ТЕР11-01-011-03","Устройство стяжек: бетонных толщиной 20 мм","100 м2 стяжки",0.27100000000000002,null,null,null,null,0]
["45","ТЕР11-01-011-04","Устройство стяжек: на каждые 5 мм изменения толщины стяжки добавлять или исключать к расценке 11-01-011-03 // до толщ. 50 мм","100 м2 стяжки",0.27100000000000002,null,null,null,null,0]
["46","ТЦ_59.1.04.01_47_4705078395_08.02.2024_02\nАналог ТССЦ-401-0008  699,49/623,42=2%","Бетон  В22,5","м3",1.3819999999999999,null,null,null,null,0]
["47","ТЕР06-01-015-10","Армирование подстилающих слоев и набетонок","1 т",4.7E-2,null,null,null,null,0]
["48","ТЦ_08.4.02.05_66_6686134976_08.02.2024_02\nАналог ТССЦ-101-3891 21,17/20,58=2%","Сетка арм. 100х100 4Вр1","м2",27.1,null,null,null,null,0]
["49","ТЕР11-01-020-03","Устройство покрытий поливинилацетатных: толщиной 3 мм // прим. покрытие полимерное","100 м2 покрытия",0.27100000000000002,null,null,null,null,0]
["Тип 2.  S=25,6 м2",null,null,null,null,null,null,null,null,0]
["50","ТЕР11-01-009-01","Устройство тепло- и звукоизоляции сплошной из плит: или матов минераловатных или стекловолокнистых","100 м2 изолируемой поверхности",0.25600000000000001,null,null,null,null,0]
["51","ТЦ_12.2.00.00_78_7802348846_15.02.2024_02\nАналог  ТССЦ-104-0313  1379,26/1347,33=2%","Пеноплэкс Фундамент толщ. 40 мм","м3",1.0549999999999999,null,null,null,null,0]
["52","ТЕР11-01-011-03","Устройство стяжек: бетонных толщиной 20 мм","100 м2 стяжки",0.25600000000000001,null,null,null,null,0]
["53","ТЕР11-01-011-04","Устройство стяжек: на каждые 5 мм изменения толщины стяжки добавлять или исключать к расценке 11-01-011-03 // до 50 мм","100 м2 стяжки",0.25600000000000001,null,null,null,null,0]
["54","ТЦ_59.1.04.01_47_4705078395_08.02.2024_02\nАналог ТССЦ-401-0008  699,49/623,42=2%","Бетон  В22,5","м3",1.306,null,null,null,null,{"$f":"G69+I69","v":0}]
["55","ТЕР06-01-015-10","Армирование подстилающих слоев и набетонок","1 т",4.48E-2,null,null,null,null,0]
["56","ТЦ_08.4.02.05_66_6686134976_08.02.2024_02\nАналог ТССЦ-101-3891 21,17/20,58=2%","Сетка арм. 100х100 4Вр1","м2",25.6,null,null,null,null,0]
["57","ТЕР11-01-020-03","Устройство покрытий поливинилацетатных: толщиной 3 мм // прим. покрытие полимерное","100 м2 покрытия",0.25600000000000001,null,null,null,null,0]
["Тип 3.  S=237,0 м2",null,null,null,null,null,null,null,null,0]
["58","ТЕР11-01-011-03","Устройство стяжек: бетонных толщиной 20 мм","100 м2 стяжки",2.37,null,null,null,null,0]
["59","ТЕР11-01-011-04","Устройство стяжек: на каждые 5 мм изменения толщины стяжки добавлять или исключать к расценке 11-01-011-03 // толщ. 50-165 мм","100 м2 стяжки",2.37,null,null,null,null,0]
["60","ТЦ_59.1.04.01_47_4705078395_08.02.2024_02\nАналог ТССЦ-401-0008  699,49/623,42=2%","Бетон  В22,5","м3",25.986999999999998,null,null,null,null,0]
["61","ТЕР06-01-015-10","Армирование подстилающих слоев и набетонок","1 т",0.41475000000000001,null,null,null,null,0]
["62","ТЦ_08.4.02.05_66_6686134976_08.02.2024_02\nАналог ТССЦ-101-3891 21,17/20,58=2%","Сетка арм. 100х100 4Вр1","м2",237,null,null,null,null,0]
["63","ТЕР11-01-020-03","Устройство покрытий поливинилацетатных: толщиной 3 мм // прим. покрытие полимерное","100 м2 покрытия",2.37,null,null,null,null,0]
["Тип 4.  S=151,0 м2",null,null,null,null,null,null,null,null,0]
["64","ТЕР11-01-011-03","Устройство стяжек: бетонных толщиной 20 мм","100 м2 стяжки",1.51,null,null,null,null,0]
["65","ТЕР11-01-011-04","Устройство стяжек: на каждые 5 мм изменения толщины стяжки добавлять или исключать к расценке 11-01-011-03 // толщ. 30 мм","100 м2 стяжки",1.51,null,null,null,null,0]
["66","ТЦ_59.1.04.01_47_4705078395_08.02.2024_02\nАналог ТССЦ-401-0008  699,49/623,42=2%","Бетон  В22,5","м3",4.6210000000000004,null,null,null,null,0]
["67","ТЕР11-01-020-03","Устройство покрытий поливинилацетатных: толщиной 3 мм // прим. покрытие полимерное","100 м2 покрытия",1.51,null,null,null,null,0]
["Тип 5.  S=18,1 м2  ( h=1200 мм.)  Учтено в разделе КМ",null,null,null,null,null,null,null,null,0]
["Раздел 7. Отделка",null,null,null,null,null,null,null,null,0]
["Цоколь",null,null,null,null,null,null,null,null,0]
["68","ТЕР15-04-015-02","Окраска фасадов с люлек с подготовкой поверхности: силикатная // прим.","100 м2 фасада",0.84,null,null,null,null,0]
["Окраска конструкций стен и потолков из профлиста, учтена в сметах к разделу КМ",null,null,null,null,null,null,null,null,0]
["Раздел 8. Отмостка",null,null,null,null,null,null,null,null,0]
["69","ТЕР27-04-001-04","Устройство подстилающих и выравнивающих слоев оснований: из щебня","100 м3 материала основания (в плотном теле)",0.2137,null,null,null,null,0]
["70","ТССЦ-408-0015","Щебень из природного камня для строительных работ марка: 800, фракция 20-40 мм","м3",26.92,null,null,null,null,0]
["71","ТЕР26-01-041-05","Изоляция изделиями из пенопласта насухо холодных поверхностей покрытий и перекрытий // прим.","1 м3 изоляции",3.5615000000000001,null,null,null,null,0]
["72","ТССЦ-104-0313","Плиты теплоизоляционные: из экструзионного вспененного полистирола ПЕНОПЛЭКС-45 // толщ. 50 мм","м3",3.6682999999999999,null,null,null,null,{"$f":"G94+I94","v":0}]
["73","ТЕР06-01-013-01","Устройство подливки толщиной  20 мм // прим. бетонное основание","100 м2 подливки под оборудование",0.71230000000000004,null,null,null,null,0]
["74","ТЕР06-01-013-02","На каждые 10 мм изменения толщины добавлять или исключать к расценке 06-01-013-01 // до 60 мм","100 м2 подливки под оборудование",0.71230000000000004,null,null,null,null,0]
["75","ТЦ_59.1.04.01_78_7806468968_26.06.2024_02\nАналог ТССЦ-401-0006  661,66/586,34=2%","Бетон  В15","м3",4.359,null,null,null,null,0]
["76","ТЕР06-01-015-10","Армирование подстилающих слоев и набетонок","1 т",0.2472,null,null,null,null,0]
["77","ТЦ_08.4.02.05_78_7816723705_16.02.2024_02\nАналог ТССЦ-101-3891 21,17/20,58=2%","Сетка арм. 100х100 6Вр1","м2",71.23,null,null,null,null,0]
["78","ТЕР11-01-019-01","Устройство покрытий асфальтобетонных: литых толщиной 25 мм","100 м2 покрытия",0.71230000000000004,null,null,null,null,0]
["80","ТЕР27-07-001-01","Устройство асфальтобетонных покрытий дорожек и тротуаров однослойных из литой мелкозернистой асфальтобетонной смеси толщиной 3 см","100 м2 покрытия",0.71230000000000004,null,null,null,null,0]
["81","ТЕР27-07-001-02","На каждые 0,5 см изменения толщины покрытия добавлять к  расценке 27-07-001-01","100 м2 покрытия",-0.71230000000000004,null,null,null,null,0]
[null,null,"Всего, руб. с НДС",null,null,null,{"$f":"SUM(G12:G102)","v":0},null,{"$f":"SUM(I12:I102)","v":0},{"$f":"SUM(J12:J102)","v":0}]
[null,null,"Всего, руб. без НДС",null,null,null,{"$f":"G103/1.2","v":0},null,{"$f":"I103/1.2","v":0},{"$f":"J103/1.2","v":0}]

{"sheet":"1632-2021-2.1.1-АР","index":6,"n_rows":38,"n_cols":10,"rows_kept":38,"cut":false,"hidden":false,"merged":[]}
[]
["Терминал по перевалке минеральных удобрений в морском торговом порту Усть-Луга. Береговые объекты терминала"]
["(наименование стройки)"]
["1632-2021-2.1.1-АР_07.04.040-П-00-00"]
["(локальная смета)"]
["на Архитектурные решения, 07.04.040 Конвейерная галерея №1 (код SAP 01.02.006) код ГП 2.1.1"]
["(наименование работ и затрат, наименование объекта)"]
[null,"Основание:","1632-2021-2.1.1-АР_07.04.040"]
[]
["№ п/п","Обоснование","Наименование работ и затрат","Ед. изм.","Кол-во","Цена за ед.измерения работ, руб. с НДС","Всего, стоимость работ,руб. с НДС","Цена за ед.измерения материалов, руб. с НДС","Всего, стоимость материалов, руб. с НДС","Итого, руб. с НДС"]
["1","2","3","4","5",6,7,8,9,10]
[1,2,3,4,5,null,null,null,null,{"$f":"G12+I12","v":0}]
["Раздел 1. Фасадные работы",null,null,null,null,null,null,null,null,{"$f":"G13+I13","v":0}]
["Раздел 2. Дверные проемы",null,null,null,null,null,null,null,null,0]
["6","ТЕР09-04-013-01","Установка противопожарных дверей: однопольных глухих","1 м2 проема",6.3,null,null,null,null,0]
["7","ТЦ_07.1.01.01_78_7841375755_25.01.2024_02","Дверь ДПС 1000-2100 EI30","шт",3,null,null,null,null,0]
["8","ТЕР09-04-012-01","Установка металлических дверных блоков в готовые проемы","1 м2 проема",6.3,null,null,null,null,0]
["9","ТЦ_07.1.01.03_78_7810347194_06.02.2024_02","Дверь ДСН 1000-2100","шт",3,null,null,null,null,0]
["Раздел 3. Оконные проемы"]
["10","ТЕР10-01-034-03","Установка в жилых и общественных зданиях оконных блоков из ПВХ профилей: поворотных (откидных, поворотно-откидных) с площадью проема до 2 м2 одностворчатых","100 м2 проемов",5.6000000000000001E-2,null,null,null,null,0]
["11","ТЦ_11.3.02.02_78_7804550906_25.01.2024_02\nАналог ТССЦ-203-0960 5219,18/5114,28=2%","Оконный проем ОП-П-1400х100-ОЛ (6М1)-ПОТ","шт",4,null,null,null,null,0]
["Раздел 4. Снегозадерживающие устройства"]
["12","ТЕР12-01-012-01","Ограждение кровель перилами","100 м ограждения",1.72,null,null,null,null,0]
["13","ТЦ_11.3.02.02_78_7804606806_25.01.2024_02\nАналог ТССЦ-203-0960 5219,18/5114,28=2%","Металлическое ограждение","м",172,null,null,null,null,0]
["Раздел 5. Водосточная система"]
["14","ТЕР12-01-009-02","Устройство желобов: подвесных","100 м желобов",1.72,null,null,null,null,0]
["15","ТЦ_12.1.01.05_78_7804550906_25.01.2024_02\nАналог ТССЦ-203-0960 5219,18/5114,28=2%","Водосточный желоб  д.185х3000","м",172,null,null,null,null,0]
["16","ТЦ_12.1.01.05_78_7804550906_25.01.2024_02\nАналог ТССЦ-203-0960 5219,18/5114,28=2%","185 мм Заглушка желоба коттеджная RAL 7005","шт",12,null,null,null,null,0]
["17","ТЦ_12.1.01.05_78_7804550906_25.01.2024_02\nАналог ТССЦ-203-0960 5219,18/5114,28=2%","185 мм Крюк желоба под профлист на болтовом\nсоединении RAL 7004\nМебельный болт М8х30 - 2 шт; Гайка М8 - 2 шт;\nШайба М8 - 2\nшт; Шайба уплотнительная - 2 шт","шт",288,null,null,null,null,0]
["18","ТЕР12-01-008-01","Устройство обделок на фасадах (наружные подоконники, пояски, балконы и др.): включая водосточные трубы, с изготовлением элементов труб","100 м2фасада (без вычета проемов)",6.2027029999999996,null,null,null,null,0]
["19","ТЦ_12.1.01.05_78_7804550906_25.01.2024_02\nАналог ТССЦ-203-0960 5219,18/5114,28=2%","150 мм Труба 3000 мм RAL 7004","м",172,null,null,null,null,0]
["20","ТЦ_12.1.01.05_78_7804550906_25.01.2024_02\nАналог ТССЦ-203-0960 5219,18/5114,28=2%","150 мм Колено ГОФРИРОВАННОЕ RAL 7004","шт",48,null,null,null,null,0]
["21","ТЦ_12.1.01.05_78_7804550906_25.01.2024_02\nАналог ТССЦ-203-0960 5219,18/5114,28=2%","150 мм Охват на площадке (прут- 10х100мм;\nплощадка- 2,5х100х50мм) (черная полоса) RAL\n7004\nБолт 6х30 - 2 шт; Гайка М6 - 2 шт; Шайба М6 - 4\nшт","шт",202,null,null,null,null,0]
["22","ТЕР16-07-002-01","Установка воронок водосточных","1 воронка",16,null,null,null,null,0]
["23","ТЦ_12.1.01.05_78_7804550906_25.01.2024_02\nАналог ТССЦ-203-0960 5219,18/5114,28=2%","150 мм Воронка под желоб (верх 185мм.) RAL\n7004Водосточный желоб  д.185х3000","шт",16,null,null,null,null,0]
["  ВСЕГО по смете",null,null,null,null,null,null,null,null,0]
[null,null,"Всего, руб. с НДС",null,null,null,{"$f":"SUM(G12:G36)","v":0},null,{"$f":"SUM(I12:I36)","v":0},{"$f":"SUM(J12:J36)","v":0}]
[null,null,"Всего, руб. без НДС",null,null,null,{"$f":"G37/1.2","v":0},null,{"$f":"I37/1.2","v":0},{"$f":"J37/1.2","v":0}]

{"sheet":"1632-2021-1.1,1.2,2.1.0-АР","index":7,"n_rows":322,"n_cols":10,"rows_kept":322,"cut":false,"hidden":false,"merged":[]}
[]
["Терминал по перевалке минеральных удобрений в морском торговом порту Усть-Луга. Береговые объекты терминала"]
["(наименование стройки)"]
["1632-2021-1.1,1.2,2.1.0-АР_07.02.010_07.04.030-П-00-00"]
["(локальная смета)"]
["на Архитектурные решения, 07.02.010 Станция разгрузки вагонов (код SAP 01.04.001) код ГП 1.1\n07.04.030 Тоннель код ГП 2.1.0"]
["(наименование работ и затрат, наименование объекта)"]
[null,"Основание:","1632-2021-1.1, 1.2, 2.1.0-АР_1_0_RU_IFC"]
[]
["№ п/п","Обоснование","Наименование работ и затрат","Ед. изм.","Кол-во","Цена за ед.измерения работ, руб. с НДС","Всего, стоимость работ,руб. с НДС","Цена за ед.измерения материалов, руб. с НДС","Всего, стоимость материалов, руб. с НДС","Итого, руб. с НДС"]
["1","2","3","4","5",6,7,8,9,10]
["Раздел 2. Установка дверных блоков и ворот. Станция разгрузки вагонов, (Спецификации по шифру 1632-2021-1.1,1.2,2.1.0-АР, Приложение к письму  ООО “Морстройтехнология” вх. №9С01-8000370513-MST-ETU-LET-ENG-00384 от 19.02.2024 г.)"]
["Установка дверных блоков",null,null,null,null,null,null,null,null,{"$f":"G13+I13","v":0}]
["1","ТЕР09-04-012-01","Установка металлических дверных блоков в готовые проемы","1 м2 проема",50.4,null,null,null,null,0]
["2","ТЦ_07.1.01.03_78_7841375755_27.02.2024_02","Дверной блок однопольный, металлический, остекленный, правая (7 эл.) левая (2 эл.) навеска 1000Х2100(h), с доводчиком","шт",9,null,null,null,null,{"$f":"G15+I15","v":0}]
["3","ТЦ_07.1.01.03_78_7841375755_27.02.2024_02","Дверной блок однопольный, металлический, остекленный, утеплённый, правая (14 эл.) левая (1 эл.) навеска 1000Х2100(h), с доводчиком","шт",15,null,null,null,null,0]
["4","ТЕР09-04-012-02","Установка дверного доводчика к металлическим дверям","1 шт.",24,null,null,null,null,0]
["5","ТЕР15-01-070-02","Облицовка: дверных проемов в наружных стенах откосной планкой из оцинкованной стали с полимерным покрытием с установкой наличников из оцинкованной стали с полимерным покрытием","1 м2 проемов",50.4,null,null,null,null,0]
["6","ТЕР09-04-013-03","Установка противопожарных дверей: однопольных остекленных","1 м2 проема",27.3,null,null,null,null,0]
["7","ТЦ_07.1.01.03_78_7841375755_27.02.2024_02","Дверной блок однопольный, металлический, остекленный, противопожарный, правая навеска 1000Х2100(h), EIS 60, с доводчиком и уплотнением притворов","шт",5,null,null,null,null,0]
["8","ТЦ_07.1.01.03_78_7841375755_27.02.2024_02","Дверной блок однопольный, металлический, остекленный, противопожарный, правая навеска1000Х2100(h), EIS 30, с доводчиком и уплотнением притворов","шт",8,null,null,null,null,0]
["9","ТЕР15-01-070-02","Облицовка: дверных проемов в наружных стенах откосной планкой из оцинкованной стали с полимерным покрытием с установкой наличников из оцинкованной стали с полимерным покрытием","1 м2 проемов",27.3,null,null,null,null,0]
["10","ТЕР10-01-039-03","Установка блоков в наружных и внутренних дверных проемах: в перегородках и деревянных нерубленых стенах, площадь проема до 3 м2","100 м2 проемов",0.15959999999999999,null,null,null,null,0]
["11","ТЦ_11.2.02.01_78_7810851080_06.03.2024_02","Дверной блок однопольный, деревянный, глухой, правая навеска 800Х2100(h)","шт",2,null,null,null,null,0]
["12","ТЦ_11.2.02.01_78_7810424032_06.03.2024_02","Дверной блок однопольный, деревянный, глухой, правая навеска 1000Х2100(h), с доводчиком","шт",6,null,null,null,null,0]
["13","ТЕР09-04-012-02","Установка дверного доводчика к металлическим дверям // прим.","1 шт.",6,null,null,null,null,0]
["14","ТССЦ-101-6899","Доводчик дверной гидравлический TS-68 с зубчатым приводом (нагрузка до 90 кг)","шт.",6,null,null,null,null,0]
["15","ТЕР10-01-039-05","Установка люков в перекрытиях, площадь проема до 2 м2","100 м2 проемов",3.8399999999999997E-2,null,null,null,null,0]
["16","ТЦ_11.2.02.01_78_7804356514_06.03.2024_02","Лаз металлический, противопожарный, 800Х1600(h), EIS 60, с доводчиком и уплотнением притворов. Низ 500 мм от пола","шт",3,null,null,null,null,0]
["17","ТЕР09-04-012-02","Установка дверного доводчика к металлическим дверям // прим.","1 шт.",3,null,null,null,null,0]
["18","ТССЦ-101-6899","Доводчик дверной гидравлический TS-68 с зубчатым приводом (нагрузка до 90 кг)","шт.",3,null,null,null,null,0]
["Установка ворот",null,null,null,null,null,null,null,null,0]
["19","ТЕР09-04-011-01","Монтаж каркасов ворот большепролетных зданий, ангаров и др. без механизмов открывания","1 т конструкций",6.6070000000000002,null,null,null,null,0]
["20","ТЕРм11-05-001-01","Механизм исполнительный, масса: до 20 кг","1 шт.",8,null,null,null,null,0]
["21","ТЦ_08.1.06.01_78_7814075047_25.06.2024_02","Ворота распашные с калиткой, металлические, утеплённые, 2950Х3000(h), (вес=55,6 кг/м²)","шт",1,null,null,null,null,0]
["22","ТЦ_11.2.02.01_77_7751024400_06.03.2024_02","Ворота распашные, металлические, остекленные, утеплённые, 4400Х4500(h), (вес=42,44 кг/м²)","шт",1,null,null,null,null,0]
["23","ТЦ_08.1.06.01_78_7819033805_06.03.2024_02","Ворота складчатые, металлические, 5000Х4500(h), (вес=42,44 кг/м²)","шт",5,null,null,null,null,0]
["24","ТЦ_08.1.06.01_78_7814075047_25.06.2024_02","Ворота распашные, металлические, с калиткой, остекленные, утеплённые, 3000Х3000(h), (вес=55,6 кг/м²)","шт",1,null,null,null,null,0]
["Раздел 3. Установка оконных блоков. Станция разгрузки вагонов, (Спецификации по шифру 1632-2021-1.1,1.2,2.1.0-АР, Приложение к письму  ООО “Морстройтехнология” вх. №9С01-8000370513-MST-ETU-LET-ENG-00384 от 19.02.2024 г.)",null,null,null,null,null,null,null,null,{"$f":"G39+I39","v":0}]
["25","ТЕР09-04-009-04","Монтаж оконных блоков: из алюминиевых многокамерных профилей с герметичными стеклопакетами","100 м2",0.24,null,null,null,null,0]
["26","ТЦ_02.6.00.00_78_7811474519_29.02.2024_02","ОК-1. Оконный блок металлический\nпротивопожарный EIW30 с двухкамерным стеклопакетом 2000х2000(h)","м2",24,null,null,null,null,0]
["27","ТЕР10-01-034-06","Установка в жилых и общественных зданиях оконных блоков из ПВХ профилей: поворотных (откидных, поворотно-откидных) с площадью проема более 2 м2 двухстворчатых","100 м2 проемов",0.12,null,null,null,null,0]
["28","ТЦ_59.1.09.04_78_7816539174_26.02.2024_02","ОК-2. Оп-П-2000х1500-ОСП (4М1-12-4М1-12-4М1)-ПОТ-ГОСТ 34914-2022 (оконный блок из ПВХ профилей с поворотно-откидными створками и двухкамерным стеклопакетом)","м2",12,null,null,null,null,0]
["29","ТЕР10-01-034-03","Установка в жилых и общественных зданиях оконных блоков из ПВХ профилей: поворотных (откидных, поворотно-откидных) с площадью проема до 2 м2 одностворчатых","100 м2 проемов",0.192,null,null,null,null,0]
["30","ТЦ_59.1.09.04_78_7816539174_26.02.2024_02","ОК-3. Оп-П-1600х1000-ОСП (4М1-16-4М1)-ПОТ-ГОСТ 34914-2022 (оконный блок из ПВХ профилей с поворотно-откидными створками и однокамерным стеклопакетом)","м2",1.6,null,null,null,null,0]
["31","ТЦ_59.1.09.04_78_7816539174_26.02.2024_02","ОК-4. Оп-П-1600х1000-ОЛ (6М1)-ПОТ-ГОСТ 34914-2022 (оконный блок из ПВХ профилей с поворотно-откидными створками и одинарным\nстеклом)","м2",17.600000000000001,null,null,null,null,0]
["32","ТЕР15-01-070-01","Облицовка: оконных проемов в наружных стенах откосной планкой из оцинкованной стали с полимерным покрытием с устройством водоотлива оконного из оцинкованной стали с полимерным покрытием","1 м2 проемов",55.2,null,null,null,null,0]
["33","ТЕР09-03-022-04","Монтаж оконных фонарных покрытий из поликарбонатных и акриловых плит с боковыми планками, профилями и резиновыми прокладками","100 м2",3.9239999999999999,null,null,null,null,0]
["34","ТЦ_25.3.06.01_47_4707044627_25.01.2024_02","Профилированный монолитный поликарбонат (прозрачный) 2000х1150х1 мм  Royal Plast  МП20(У)","м2",412.02,null,null,null,null,0]
["Раздел 4. Полы. Станция разгрузки вагонов, (Спецификации по шифру 1632-2021-1.1,1.2,2.1.0-АР, Приложение к письму  ООО “Морстройтехнология” вх. №9С01-8000370513-MST-ETU-LET-ENG-00384 от 19.02.2024 г.)",null,null,null,null,null,null,null,null,0]
["Полы на отм. - 7,000. Тип 2.  S=26,0 м²",null,null,null,null,null,null,null,null,0]
["35","ТЕР11-01-011-03","Устройство стяжек: бетонных толщиной 20 мм, (h=135 мм)","100 м2 стяжки",0.26,null,null,null,null,0]
["36","ТЕР11-01-011-04","Устройство стяжек: на каждые 5 мм изменения толщины стяжки добавлять или исключать к расценке 11-01-011-03, (добавить 115 мм)","100 м2 стяжки",0.26,null,null,null,null,0]
["37","ТЦ_59.1.04.01_78_4707009037_08.02.2024_02","Бетон  В15","м3",3.58,null,null,null,null,0]
["38","ТЕР11-01-004-05","Устройство гидроизоляции обмазочной: в один слой толщиной 2 мм","100 м2 изолируемой поверхности",0.26,null,null,null,null,0]
["39","ТЕР11-01-011-03","Устройство стяжек: бетонных толщиной 20 мм, (покрытие полимерцементный бетон В25  h=15 мм, прим.)","100 м2 стяжки",0.26,null,null,null,null,0]
["40","ТЕР11-01-011-04","Устройство стяжек: на каждые 5 мм изменения толщины стяжки добавлять или исключать к расценке 11-01-011-03, (исключить 5 мм)","100 м2 стяжки",-0.26,null,null,null,null,0]
["41","ТЦ_59.1.04.01_78_4707009037_08.02.2024_02","Бетон В25","м3",0.4,null,null,null,null,0]
["42","ТССЦ-113-0378","Состав полимерцементный,  (20% от массы бетона)","м3",0.08,null,null,null,null,0]
["Полы на отм. - 7,000. Тип 1б.  S=1200 м²",null,null,null,null,null,null,null,null,0]
["43","ТЕР11-01-011-03","Устройство стяжек: бетонных толщиной 20 мм, (уклонообразующий слой, hср.=(35+135)/2=85 мм)","100 м2 стяжки",12,null,null,null,null,0]
["44","ТЕР11-01-011-04","Устройство стяжек: на каждые 5 мм изменения толщины стяжки добавлять или исключать к расценке 11-01-011-03, (добавить 65 мм)","100 м2 стяжки",12,null,null,null,null,0]
["45","ТЦ_59.1.04.01_78_4707009037_08.02.2024_02","Бетон  В15","м3",104.04,null,null,null,null,0]
["46","ТЕР11-01-004-05","Устройство гидроизоляции обмазочной: в один слой толщиной 2 мм","100 м2 изолируемой поверхности",12,null,null,null,null,0]
["47","ТЕР11-01-011-03","Устройство стяжек: бетонных толщиной 20 мм, (покрытие полимерцементный бетон В25  h=15 мм, прим.)","100 м2 стяжки",12,null,null,null,null,{"$f":"G65+I65","v":0}]
["48","ТЕР11-01-011-04","Устройство стяжек: на каждые 5 мм изменения толщины стяжки добавлять или исключать к расценке 11-01-011-03, (исключить 5 мм)","100 м2 стяжки",-12,null,null,null,null,0]
["49","ТЦ_59.1.04.01_78_4707009037_08.02.2024_02","Бетон В25","м3",18.36,null,null,null,null,0]
["50","ТССЦ-113-0378","Состав полимерцементный,  (20% от массы бетона)","м3",3.67,null,null,null,null,0]
["Полы на отм. - 7,000. Тип 3.  S=370 м²",null,null,null,null,null,null,null,null,0]
["51","ТЕР11-01-015-07","Шлифовка бетонных или металлоцементных покрытий","100 м2 покрытия",3.7,null,null,null,null,0]
["52","ТЕР11-01-052-01","Устройство полимерных наливных полов из полиуретана: с толщиной покрытия 2 мм, (упрочнение полиуретан. составами h=1 мм, прим.)","100 м2 пола",3.7,null,null,null,null,0]
["Полы на отм. 0,000. Тип 4.  S=570 м²",null,null,null,null,null,null,null,null,0]
["53","ТЕР11-01-011-03","Устройство стяжек: бетонных толщиной 20 мм, (h=185 мм)","100 м2 стяжки",5.7,null,null,null,null,0]
["54","ТЕР11-01-011-04","Устройство стяжек: на каждые 5 мм изменения толщины стяжки добавлять или исключать к расценке 11-01-011-03, (добавить 165 мм)","100 м2 стяжки",5.7,null,null,null,null,0]
["55","ТЦ_59.1.04.01_78_4707009037_08.02.2024_02","Бетон  В15","м3",107.559,null,null,null,null,0]
["56","ТЕР11-01-011-03","Устройство стяжек: бетонных толщиной 20 мм, (покрытие полимерцементный бетон В25  h=15 мм, прим.)","100 м2 стяжки",5.7,null,null,null,null,0]
["57","ТЕР11-01-011-04","Устройство стяжек: на каждые 5 мм изменения толщины стяжки добавлять или исключать к расценке 11-01-011-03, (исключить 5 мм)","100 м2 стяжки",-5.7,null,null,null,null,0]
["58","ТЦ_59.1.04.01_78_4707009037_08.02.2024_02","Бетон В25","м3",8.7200000000000006,null,null,null,null,0]
["59","ТССЦ-113-0378","Состав полимерцементный, (20% от массы бетона)","м3",1.74,null,null,null,null,0]
["Полы на отм. 0,000. Тип 3.  S=1750 м²",null,null,null,null,null,null,null,null,0]
["60","ТЕР11-01-015-07","Шлифовка бетонных или металлоцементных покрытий","100 м2 покрытия",17.5,null,null,null,null,0]
["61","ТЕР11-01-052-01","Устройство полимерных наливных полов из полиуретана: с толщиной покрытия 2 мм, (упрочнение полиуретан. составами h=1 мм, прим.)","100 м2 пола",17.5,null,null,null,null,0]
["Полы на отм. 0,000. Тип 9.  S=100 м²",null,null,null,null,null,null,null,null,0]
["62","ТЕР11-01-009-01","Устройство тепло- и звукоизоляции сплошной из плит: или матов минераловатных или стекловолокнистых","100 м2 изолируемой поверхности",1,null,null,null,null,0]
["63","ТЦ_01.4.00.00_77_7705935398_21.02.2024_02","Утеплитель Пеноплэкс-30  толщ. 50 мм","м3",5,null,null,null,null,0]
["64","ТЕР11-01-011-03","Устройство стяжек: бетонных толщиной 20 мм, (уклонообразующий слой, hср.=(45+135)/2=90 мм)","100 м2 стяжки",1,null,null,null,null,0]
["65","ТЕР11-01-011-04","Устройство стяжек: на каждые 5 мм изменения толщины стяжки добавлять или исключать к расценке 11-01-011-03, (добавить 70 мм)","100 м2 стяжки",1,null,null,null,null,0]
["66","ТЦ_59.1.04.01_78_4707009037_08.02.2024_02","Бетон  В15","м3",9.18,null,null,null,null,0]
["67","ТЕР06-01-015-10","Армирование подстилающих слоев и набетонок","1 т",0.17499999999999999,null,null,null,null,0]
["68","ТЦ_08.4.02.05_66_6686134976_08.02.2024_02","Сетка арматурная 4Вр1 яч. 100х100, (вес=1,75 кг/м²)","м2",100,null,null,null,null,0]
["69","ТЕР11-01-004-05","Устройство гидроизоляции обмазочной: в один слой толщиной 2 мм","100 м2 изолируемой поверхности",1,null,null,null,null,0]
["70","ТЕР11-01-011-03","Устройство стяжек: бетонных толщиной 20 мм, (покрытие полимерцементный бетон В25  h=15 мм, прим.)","100 м2 стяжки",1,null,null,null,null,0]
["71","ТЕР11-01-011-04","Устройство стяжек: на каждые 5 мм изменения толщины стяжки добавлять или исключать к расценке 11-01-011-03, (исключить 5 мм)","100 м2 стяжки",-1,null,null,null,null,0]
["72","ТЦ_59.1.04.01_78_4707009037_08.02.2024_02","Бетон В25","м3",1.53,null,null,null,null,0]
["73","ТССЦ-113-0378","Состав полимерцементный, (20% от массы бетона)","м3",0.31,null,null,null,null,0]
["Полы на отм. 0,000. Тип 6а.  S=84 м²",null,null,null,null,null,null,null,null,0]
["74","ТЕР11-01-009-01","Устройство тепло- и звукоизоляции сплошной из плит: или матов минераловатных или стекловолокнистых","100 м2 изолируемой поверхности",0.84,null,null,null,null,0]
["75","ТЦ_01.4.00.00_77_7705935398_21.02.2024_02","Утеплитель Пеноплэкс-30  толщ. 50 мм","м3",4.2,null,null,null,null,0]
["76","ТЕР11-01-011-03","Устройство стяжек: бетонных толщиной 20 мм, (h=135 мм)","100 м2 стяжки",0.84,null,null,null,null,0]
["77","ТЕР11-01-011-04","Устройство стяжек: на каждые 5 мм изменения толщины стяжки добавлять или исключать к расценке 11-01-011-03, (добавить 115 мм)","100 м2 стяжки",0.84,null,null,null,null,0]
["78","ТЦ_59.1.04.01_78_4707009037_08.02.2024_02","Бетон  В15","м3",11.567,null,null,null,null,0]
["79","ТЕР06-01-015-10","Армирование подстилающих слоев и набетонок","1 т",0.14699999999999999,null,null,null,null,0]
["80","ТЦ_08.4.02.05_66_6686134976_08.02.2024_02","Сетка арматурная 4Вр1 яч. 100х100, (вес=1,75 кг/м²)","м2",84,null,null,null,null,{"$f":"G103+I103","v":0}]
["81","ТЕР11-01-004-05","Устройство гидроизоляции обмазочной: в один слой толщиной 2 мм","100 м2 изолируемой поверхности",0.84,null,null,null,null,0]
["82","ТЕР11-01-011-03","Устройство стяжек: бетонных толщиной 20 мм, (покрытие полимерцементный бетон В25  h=15 мм, прим.)","100 м2 стяжки",0.84,null,null,null,null,0]
["83","ТЕР11-01-011-04","Устройство стяжек: на каждые 5 мм изменения толщины стяжки добавлять или исключать к расценке 11-01-011-03, (исключить 5 мм)","100 м2 стяжки",-0.84,null,null,null,null,0]
["84","ТЦ_59.1.04.01_78_4707009037_08.02.2024_02","Бетон В25","м3",1.29,null,null,null,null,0]
["85","ТССЦ-113-0378","Состав полимерцементный, (20% от массы бетона)","м3",0.26,null,null,null,null,0]
["Полы на отм. 0,000. Тип 6.  S=44 м²",null,null,null,null,null,null,null,null,0]
["86","ТЕР11-01-009-01","Устройство тепло- и звукоизоляции сплошной из плит: или матов минераловатных или стекловолокнистых","100 м2 изолируемой поверхности",0.44,null,null,null,null,0]
["87","ТЦ_01.4.00.00_77_7705935398_21.02.2024_02","Утеплитель Пеноплэкс-30  толщ. 100 мм","м3",4.4000000000000004,null,null,null,null,0]
["88","ТЕР11-01-011-03","Устройство стяжек: бетонных толщиной 20 мм, (h=85 мм)","100 м2 стяжки",0.44,null,null,null,null,0]
["89","ТЕР11-01-011-04","Устройство стяжек: на каждые 5 мм изменения толщины стяжки добавлять или исключать к расценке 11-01-011-03, (добавить 65 мм)","100 м2 стяжки",0.44,null,null,null,null,0]
["90","ТЦ_59.1.04.01_78_4707009037_08.02.2024_02","Бетон  В15","м3",3.8149999999999999,null,null,null,null,0]
["91","ТЕР06-01-015-10","Армирование подстилающих слоев и набетонок","1 т",7.6999999999999999E-2,null,null,null,null,0]
["92","ТЦ_08.4.02.05_66_6686134976_08.02.2024_02","Сетка арматурная 4Вр1 яч. 100х100, (вес=1,75 кг/м²)","м2",44,null,null,null,null,0]
["93","ТЕР11-01-047-02","Устройство покрытий из плит керамогранитных размером: 60х60 см","100 м2 покрытия",0.44,null,null,null,null,0]
["94","ТССЦ-101-7434","Грунтовка акриловая: АК-02 для бетонных полов","кг",5.28,null,null,null,null,0]
["Полы на отм. 0,000. Тип 5.  S=30 м²",null,null,null,null,null,null,null,null,0]
["95","ТЕР11-01-009-01","Устройство тепло- и звукоизоляции сплошной из плит: или матов минераловатных или стекловолокнистых","100 м2 изолируемой поверхности",0.3,null,null,null,null,0]
["96","ТЦ_01.4.00.00_77_7705935398_21.02.2024_02","Утеплитель Пеноплэкс-30  толщ. 100 мм","м3",3,null,null,null,null,0]
["97","ТЕР11-01-011-03","Устройство стяжек: бетонных толщиной 20 мм, (h=95 мм)","100 м2 стяжки",0.3,null,null,null,null,0]
["98","ТЕР11-01-011-04","Устройство стяжек: на каждые 5 мм изменения толщины стяжки добавлять или исключать к расценке 11-01-011-03, (добавить 75 мм)","100 м2 стяжки",0.3,null,null,null,null,0]
["99","ТЦ_59.1.04.01_78_4707009037_08.02.2024_02","Бетон  В15","м3",2.907,null,null,null,null,0]
["100","ТЕР06-01-015-10","Армирование подстилающих слоев и набетонок","1 т",5.2499999999999998E-2,null,null,null,null,0]
["101","ТЦ_08.4.02.05_66_6686134976_08.02.2024_02","Сетка арматурная 4Вр1 яч. 100х100, (вес=1,75 кг/м²)","м2",30,null,null,null,null,0]
["102","ТЕР15-04-006-03","Покрытие поверхностей грунтовкой глубокого проникновения: за 1 раз // прим.","100 м2 покрытия",0.3,null,null,null,null,0]
["103","ТССЦ-101-7434","Грунтовка акриловая: АК-02 для бетонных полов","кг",3.6,null,null,null,null,0]
["104","ТЕР11-01-036-01","Устройство покрытий: из линолеума на клее «Бустилат»","100 м2 покрытия",0.3,null,null,null,null,0]
["Полы на отм. +4,000, +7,400, +8,200. Тип 1.  S=49 м²",null,null,null,null,null,null,null,null,0]
["105","ТЕР11-01-011-03","Устройство стяжек: бетонных толщиной 20 мм, (уклонообразующий слой, hср.=(10+60)/2=35 мм)","100 м2 стяжки",0.49,null,null,null,null,0]
["106","ТЕР11-01-011-04","Устройство стяжек: на каждые 5 мм изменения толщины стяжки добавлять или исключать к расценке 11-01-011-03, (добавить 15 мм)","100 м2 стяжки",0.49,null,null,null,null,0]
["107","ТЦ_59.1.04.01_78_4707009037_08.02.2024_02","Бетон  В15","м3",1.7490000000000001,null,null,null,null,0]
["108","ТЕР11-01-011-03","Устройство стяжек: бетонных толщиной 20 мм, (покрытие полимерцементный бетон В25  h=15 мм, прим.)","100 м2 стяжки",0.49,null,null,null,null,0]
["109","ТЕР11-01-011-04","Устройство стяжек: на каждые 5 мм изменения толщины стяжки добавлять или исключать к расценке 11-01-011-03, (исключить 5 мм)","100 м2 стяжки",-0.49,null,null,null,null,0]
["110","ТЦ_59.1.04.01_78_4707009037_08.02.2024_02","Бетон В25","м3",0.75,null,null,null,null,0]
["111","ТССЦ-113-0378","Состав полимерцементный, (20% от массы бетона)","м3",0.15,null,null,null,null,0]
["Полы на отм. +4,000, +7,400, +8,200. Тип 7.  S=153 м²",null,null,null,null,null,null,null,null,0]
["112","ТЕР11-01-011-03","Устройство стяжек: бетонных толщиной 20 мм, (h=35 мм)","100 м2 стяжки",1.53,null,null,null,null,0]
["113","ТЕР11-01-011-04","Устройство стяжек: на каждые 5 мм изменения толщины стяжки добавлять или исключать к расценке 11-01-011-03, (добавить 15 мм)","100 м2 стяжки",1.53,null,null,null,null,0]
["114","ТЦ_59.1.04.01_78_4707009037_08.02.2024_02","Бетон  В15","м3",5.4619999999999997,null,null,null,null,0]
["115","ТЕР11-01-011-03","Устройство стяжек: бетонных толщиной 20 мм, (покрытие полимерцементный бетон В25  h=15 мм, прим.)","100 м2 стяжки",1.53,null,null,null,null,0]
["116","ТЕР11-01-011-04","Устройство стяжек: на каждые 5 мм изменения толщины стяжки добавлять или исключать к расценке 11-01-011-03, (исключить 5 мм)","100 м2 стяжки",-1.53,null,null,null,null,{"$f":"G143+I143","v":0}]
["117","ТЦ_59.1.04.01_78_4707009037_08.02.2024_02","Бетон В25","м3",2.34,null,null,null,null,0]
["118","ТССЦ-113-0378","Состав полимерцементный, (20% от массы бетона)","м3",0.46800000000000003,null,null,null,null,0]
["Полы на отм. +4,000, +7,400, +8,200. Тип 5.  S=51 м²",null,null,null,null,null,null,null,null,0]
["119","ТЕР11-01-009-01","Устройство тепло- и звукоизоляции сплошной из плит: или матов минераловатных или стекловолокнистых","100 м2 изолируемой поверхности",0.51,null,null,null,null,0]
["120","ТЦ_01.4.00.00_77_7705935398_21.02.2024_02","Утеплитель Пеноплэкс-30  толщ. 100 мм","м3",5.0999999999999996,null,null,null,null,0]
["121","ТЕР11-01-011-03","Устройство стяжек: бетонных толщиной 20 мм, (h=95 мм)","100 м2 стяжки",0.51,null,null,null,null,0]
["122","ТЕР11-01-011-04","Устройство стяжек: на каждые 5 мм изменения толщины стяжки добавлять или исключать к расценке 11-01-011-03, (добавить 75 мм)","100 м2 стяжки",0.51,null,null,null,null,0]
["123","ТЦ_59.1.04.01_78_4707009037_08.02.2024_02","Бетон  В15","м3",4.9420000000000002,null,null,null,null,0]
["124","ТЕР15-04-006-03","Покрытие поверхностей грунтовкой глубокого проникновения: за 1 раз // прим.","100 м2 покрытия",0.51,null,null,null,null,0]
["125","ТССЦ-101-7434","Грунтовка акриловая: АК-02 для бетонных полов","кг",6.12,null,null,null,null,0]
["126","ТЕР11-01-036-01","Устройство покрытий: из линолеума на клее «Бустилат»","100 м2 покрытия",0.51,null,null,null,null,0]
["Полы на отм. +4,000, +7,400, +8,200. Тип 6.  S=5,5 м²",null,null,null,null,null,null,null,null,0]
["127","ТЕР11-01-009-01","Устройство тепло- и звукоизоляции сплошной из плит: или матов минераловатных или стекловолокнистых","100 м2 изолируемой поверхности",5.5E-2,null,null,null,null,0]
["128","ТЦ_01.4.00.00_77_7705935398_21.02.2024_02","Утеплитель Пеноплэкс-30  толщ. 100 мм","м3",0.55000000000000004,null,null,null,null,0]
["129","ТЕР11-01-011-03","Устройство стяжек: бетонных толщиной 20 мм, (h=85 мм)","100 м2 стяжки",5.5E-2,null,null,null,null,0]
["130","ТЕР11-01-011-04","Устройство стяжек: на каждые 5 мм изменения толщины стяжки добавлять или исключать к расценке 11-01-011-03, (добавить 65 мм)","100 м2 стяжки",5.5E-2,null,null,null,null,0]
["131","ТЦ_59.1.04.01_78_4707009037_08.02.2024_02","Бетон  В15","м3",0.47699999999999998,null,null,null,null,0]
["132","ТЕР06-01-015-10","Армирование подстилающих слоев и набетонок","1 т",0.01,null,null,null,null,0]
["133","ТЦ_08.4.02.05_66_6686134976_08.02.2024_02","Сетка арматурная 4Вр1 яч. 100х100, (вес=1,75 кг/м²)","м2",5.5,null,null,null,null,0]
["134","ТЕР11-01-047-02","Устройство покрытий из плит керамогранитных размером: 60х60 см","100 м2 покрытия",5.5E-2,null,null,null,null,0]
["135","ТССЦ-101-7434","Грунтовка акриловая: АК-02 для бетонных полов","кг",0.66,null,null,null,null,0]
["Полы на отм. +4,000, +7,400, +8,200. Тип 8. S=122 м²",null,null,null,null,null,null,null,null,0]
["136","ТЕР11-01-004-01","Устройство гидроизоляции оклеечной рулонными материалами: на мастике Битуминоль, первый слой","100 м2 изолируемой поверхности",1.22,null,null,null,null,0]
["137","ТЕР11-01-004-02","Устройство гидроизоляции оклеечной рулонными материалами: на мастике Битуминоль, последующий слой","100 м2 изолируемой поверхности",1.22,null,null,null,null,0]
["138","ТЕР11-01-011-03","Устройство стяжек: бетонных толщиной 20 мм, (уклонообразующий слой, hср.=(25+185)/2=105 мм)","100 м2 стяжки",1.22,null,null,null,null,0]
["139","ТЕР11-01-011-04","Устройство стяжек: на каждые 5 мм изменения толщины стяжки добавлять или исключать к расценке 11-01-011-03, (добавить 85 мм)","100 м2 стяжки",1.22,null,null,null,null,0]
["140","ТЦ_59.1.04.01_78_4707009037_08.02.2024_02","Бетон  В15","м3",13.066000000000001,null,null,null,null,0]
["141","ТЕР11-01-004-09","Устройство гидроизоляции обмазочной: в один слой праймером, (гидроизоляция полимерной мастикой, прим.)","100 м2 изолируемой поверхности",1.22,null,null,null,null,0]
["142","ТЕР11-01-011-03","Устройство стяжек: бетонных толщиной 20 мм, (покрытие полимерцементный бетон В25  h=15 мм, прим.)","100 м2 стяжки",1.22,null,null,null,null,0]
["143","ТЕР11-01-011-04","Устройство стяжек: на каждые 5 мм изменения толщины стяжки добавлять или исключать к расценке 11-01-011-03, (исключить 5 мм)","100 м2 стяжки",-1.22,null,null,null,null,0]
["144","ТЦ_59.1.04.01_78_4707009037_08.02.2024_02","Бетон В25","м3",1.87,null,null,null,null,0]
["145","ТССЦ-113-0378","Состав полимерцементный, (20% от массы бетона)","м3",0.374,null,null,null,null,0]
["Раздел 5. Отделка помещений. Станция разгрузки вагонов, (Спецификации по шифру 1632-2021-1.1,1.2,2.1.0-АР, Приложение к письму  ООО “Морстройтехнология” вх. №9С01-8000370513-MST-ETU-LET-ENG-00384 от 19.02.2024 г.)",null,null,null,null,null,null,null,null,0]
["Отделка помещений на отм. -13,100",null,null,null,null,null,null,null,null,0]
["146","ТЕР15-04-007-02","Окраска водно-дисперсионными акриловыми составами улучшенная: по штукатурке потолков","100 м2 окрашиваемой поверхности",4.84,null,null,null,null,{"$f":"G178+I178","v":0}]
["147","ТЕР15-04-007-01","Окраска водно-дисперсионными акриловыми составами улучшенная: по штукатурке стен","100 м2 окрашиваемой поверхности",26,null,null,null,null,0]
["Отделка помещений на отм. -7,000",null,null,null,null,null,null,null,null,0]
["148","ТЕР15-04-007-02","Окраска водно-дисперсионными акриловыми составами улучшенная: по штукатурке потолков","100 м2 окрашиваемой поверхности",16.37,null,null,null,null,0]
["149","ТЕР15-04-007-01","Окраска водно-дисперсионными акриловыми составами улучшенная: по штукатурке стен","100 м2 окрашиваемой поверхности",90.34,null,null,null,null,0]
["Отделка помещений на отм. 0,000",null,null,null,null,null,null,null,null,0]
["150","ТЕР15-04-007-02","Окраска водно-дисперсионными акриловыми составами улучшенная: по штукатурке потолков","100 м2 окрашиваемой поверхности",1.91,null,null,null,null,0]
["151","ТЕР15-01-047-15","Устройство: подвесных потолков типа <Армстронг> по каркасу из оцинкованного профиля","100 м2 поверхности облицовки",0.72199999999999998,null,null,null,null,0]
["152","ТЕР15-04-007-01","Окраска водно-дисперсионными акриловыми составами улучшенная: по штукатурке стен","100 м2 окрашиваемой поверхности",4.9950000000000001,null,null,null,null,0]
["153","ТЕР15-02-019-03","Сплошное выравнивание внутренних поверхностей (однослойное оштукатуривание)из сухих растворных смесей толщиной до 10 мм: стен // прим.","100 м2 оштукатуриваемой поверхности",2.0619999999999998,null,null,null,null,0]
["154","ТССЦ-101-3451","Грунтовка акриловая: ВД-АК-133","т",3.7100000000000001E-2,null,null,null,null,0]
["155","ТЕР15-06-001-06","Оклейка обоями стен по листовым материалам, гипсобетонным и гипсолитовым поверхностям: типа «Линкруста»","100 м2 оклеиваемой и обиваемой поверхности",2.0619999999999998,null,null,null,null,0]
["156","ТЕР15-01-019-05","Гладкая облицовка стен, столбов, пилястр и откосов (без карнизных, плинтусных и угловых плиток) без установки плиток туалетного гарнитура на клее из сухих смесей: по кирпичу и бетону","100 м2 поверхности облицовки",0.68,null,null,null,null,0]
["Отделка помещений на отм. +4,000+7,800 +8,000",null,null,null,null,null,null,null,null,0]
["157","ТЕР15-04-007-02","Окраска водно-дисперсионными акриловыми составами улучшенная: по штукатурке потолков","100 м2 окрашиваемой поверхности",3.03,null,null,null,null,0]
["158","ТЕР15-01-047-15","Устройство: подвесных потолков типа <Армстронг> по каркасу из оцинкованного профиля","100 м2 поверхности облицовки",0.55900000000000005,null,null,null,null,{"$f":"G193+I193","v":0}]
["159","ТЕР15-04-007-01","Окраска водно-дисперсионными акриловыми составами улучшенная: по штукатурке стен","100 м2 окрашиваемой поверхности",1.827,null,null,null,null,0]
["160","ТЕР15-02-019-03","Сплошное выравнивание внутренних поверхностей (однослойное оштукатуривание)из сухих растворных смесей толщиной до 10 мм: стен // прим.","100 м2 оштукатуриваемой поверхности",1.4,null,null,null,null,0]
["161","ТССЦ-101-3451","Грунтовка акриловая: ВД-АК-133","т",2.52E-2,null,null,null,null,0]
["162","ТЕР15-06-001-06","Оклейка обоями стен по листовым материалам, гипсобетонным и гипсолитовым поверхностям: типа «Линкруста»","100 м2 оклеиваемой и обиваемой поверхности",1.4,null,null,null,null,0]
["163","ТЕР15-01-019-05","Гладкая облицовка стен, столбов, пилястр и откосов (без карнизных, плинтусных и угловых плиток) без установки плиток туалетного гарнитура на клее из сухих смесей: по кирпичу и бетону","100 м2 поверхности облицовки",0.27,null,null,null,null,0]
["Раздел 6. Перегородки. Тоннель, (Спецификации по шифру 1632-2021-1.1,1.2,2.1.0-АР, Приложение к письму  ООО “Морстройтехнология” вх. №9С01-8000370513-MST-ETU-LET-ENG-00384 от 19.02.2024 г.)",null,null,null,null,null,null,null,null,0]
["П1",null,null,null,null,null,null,null,null,0]
["164","ТЕР10-05-002-02","Устройство перегородок из гипсокартонных листов (ГКЛ) по системе «КНАУФ» с одинарным металлическим каркасом и двухслойной обшивкой с обеих сторон (С 112): с одним дверным проемом","100 м2 перегородок (за вычетом проемов)",0.18149999999999999,null,null,null,null,0]
["165","ТЦ_01.6.01.02_78_7802348846_13.02.2024_02\nАналог  ТССЦ-101-2512    18,24/17,33=2%","Лист ГКЛВ-А-УК-3000-1200-12,5 мм, (2 листа, hобщ.=25 мм)","м2",40.747,null,null,null,null,0]
["166","ТЦ_01.6.01.02_78_7802348846_22.02.2024_02\nАналог   ТССЦ-101-2509  11,37/12,56=2%","Лист ГКЛ-А-УК-3000-1200-12,5 мм, (2 листа, hобщ.=25 мм)","м2",40.747,null,null,null,null,0]
["167","ТССЦ-104-0150","Плиты из минеральной ваты: на синтетическом связующем М-75, (минеральные маты группы НГ с плотностью 40 кг/м³, h=75 мм, прим.)","м3",1.4,null,null,null,null,0]
["Раздел 7. Установка дверных блоков и ворот. Тоннель, (Спецификации по шифру 1632-2021-1.1,1.2,2.1.0-АР, Приложение к письму  ООО “Морстройтехнология” вх. №9С01-8000370513-MST-ETU-LET-ENG-00384 от 19.02.2024 г.)",null,null,null,null,null,null,null,null,0]
["Установка дверных блоков",null,null,null,null,null,null,null,null,0]
["168","ТЕР09-04-012-01","Установка металлических дверных блоков в готовые проемы","1 м2 проема",50.4,null,null,null,null,0]
["169","ТЦ_07.1.01.03_78_7841375755_27.02.2024_02","Дверной блок однопольный, металлический, остекленный, правая (7 эл.) левая (2 эл.) навеска 1000Х2100(h), с доводчиком","шт",9,null,null,null,null,0]
["170","ТЦ_07.1.01.03_78_7841375755_27.02.2024_02","Дверной блок однопольный, металлический, остекленный, утеплённый, правая (14 эл.) левая (1 эл.) навеска 1000Х2100(h), с доводчиком","шт",15,null,null,null,null,0]
["171","ТЕР09-04-012-02","Установка дверного доводчика к металлическим дверям","1 шт.",24,null,null,null,null,0]
["172","ТЕР15-01-070-02","Облицовка: дверных проемов в наружных стенах откосной планкой из оцинкованной стали с полимерным покрытием с установкой наличников из оцинкованной стали с полимерным покрытием","1 м2 проемов",50.4,null,null,null,null,0]
["173","ТЕР09-04-013-03","Установка противопожарных дверей: однопольных остекленных","1 м2 проема",27.3,null,null,null,null,0]
["174","ТЦ_07.1.01.03_78_7841375755_27.02.2024_02","Дверной блок однопольный, металлический, остекленный, противопожарный, правая навеска 1000Х2100(h), EIS 60, с доводчиком и уплотнением притворов","шт",5,null,null,null,null,{"$f":"G213+I213","v":0}]
["175","ТЦ_07.1.01.03_78_7841375755_27.02.2024_02","Дверной блок однопольный, металлический, остекленный, противопожарный, правая навеска1000Х2100(h), EIS 30, с\nдоводчиком и уплотнением притворов","шт",8,null,null,null,null,0]
["176","ТЕР15-01-070-02","Облицовка: дверных проемов в наружных стенах откосной планкой из оцинкованной стали с полимерным покрытием с установкой наличников из оцинкованной стали с полимерным покрытием","1 м2 проемов",27.3,null,null,null,null,0]
["177","ТЕР10-01-039-03","Установка блоков в наружных и внутренних дверных проемах: в перегородках и деревянных нерубленых стенах, площадь проема до 3 м2","100 м2 проемов",0.15959999999999999,null,null,null,null,0]
["178","ТЦ_11.2.02.01_78_7810851080_06.03.2024_02","Дверной блок однопольный, деревянный, глухой, правая навеска 800Х2100(h)","шт",2,null,null,null,null,0]
["179","ТЦ_11.2.02.01_78_7810424032_06.03.2024_02","Дверной блок однопольный, деревянный, глухой, правая навеска 1000Х2100(h), с доводчиком","шт",6,null,null,null,null,0]
["180","ТЕР09-04-012-02","Установка дверного доводчика к металлическим дверям // прим.","1 шт.",6,null,null,null,null,0]
["181","ТССЦ-101-6899","Доводчик дверной гидравлический TS-68 с зубчатым приводом (нагрузка до 90 кг)","шт.",6,null,null,null,null,0]
["182","ТЕР10-01-039-05","Установка люков в перекрытиях, площадь проема до 2 м2","100 м2 проемов",3.8399999999999997E-2,null,null,null,null,0]
["183","ТЦ_11.2.02.01_78_7804356514_06.03.2024_02","Лаз металлический, противопожарный, 800Х1600(h), EIS 60, с доводчиком и уплотнением притворов. Низ 500 мм от пола","шт",3,null,null,null,null,0]
["184","ТЕР09-04-012-02","Установка дверного доводчика к металлическим дверям // прим.","1 шт.",3,null,null,null,null,0]
["185","ТССЦ-101-6899","Доводчик дверной гидравлический TS-68 с зубчатым приводом (нагрузка до 90 кг)","шт.",3,null,null,null,null,0]
["Установка ворот",null,null,null,null,null,null,null,null,0]
["186","ТЕР09-04-011-01","Монтаж каркасов ворот большепролетных зданий, ангаров и др. без механизмов открывания","1 т конструкций",6.6070000000000002,null,null,null,null,0]
["187","ТЕРм11-05-001-01","Механизм исполнительный, масса: до 20 кг","1 шт.",8,null,null,null,null,0]
["188","ТЦ_08.1.06.01_78_7814075047_25.06.2024_02","Ворота распашные с калиткой, металлические, утеплённые, 2950Х3000(h), (вес=55,6 кг/м²)","шт",1,null,null,null,null,0]
["189","ТЦ_11.2.02.01_77_7751024400_06.03.2024_02","Ворота распашные, металлические, остекленные, утеплённые, 4400Х4500(h), (вес=42,44 кг/м²)","шт",1,null,null,null,null,0]
["190","ТЦ_08.1.06.01_78_7819033805_06.03.2024_02","Ворота складчатые, металлические, 5000Х4500(h), (вес=42,44 кг/м²)","шт",5,null,null,null,null,0]
["191","ТЦ_08.1.06.01_78_7814075047_25.06.2024_02","Ворота распашные, металлические, с калиткой, остекленные, утеплённые, 3000Х3000(h), (вес=55,6 кг/м²)","шт",1,null,null,null,null,0]
["Раздел 8. Установка оконных блоков. Тоннель, (Спецификации по шифру 1632-2021-1.1,1.2,2.1.0-АР, Приложение к письму  ООО “Морстройтехнология” вх. №9С01-8000370513-MST-ETU-LET-ENG-00384 от 19.02.2024 г.)",null,null,null,null,null,null,null,null,0]
["192","ТЕР10-01-034-03","Установка в жилых и общественных зданиях оконных блоков из ПВХ профилей: поворотных (откидных, поворотно-откидных) с площадью проема до 2 м2 одностворчатых","100 м2 проемов",3.2000000000000001E-2,null,null,null,null,0]
["193","ТЦ_59.1.09.04_78_7816539174_26.02.2024_02","ОК-3. Оп-П-1600х1000-ОСП (4М1-16-4М1)-ПОТ-ГОСТ 34914-2022 (оконный блок из ПВХ профилей с поворотно-откидными створками и однокамерным стеклопакетом)","м2",3.2,null,null,null,null,0]
["194","ТЕР15-01-070-01","Облицовка: оконных проемов в наружных стенах откосной планкой из оцинкованной стали с полимерным покрытием с устройством водоотлива оконного из оцинкованной стали с полимерным покрытием","1 м2 проемов",3.2,null,null,null,null,0]
["Раздел 9. Полы. Тоннель, (Спецификации по шифру 1632-2021-1.1,1.2,2.1.0-АР, Приложение к письму  ООО “Морстройтехнология” вх. №9С01-8000370513-MST-ETU-LET-ENG-00384 от 19.02.2024 г.)",null,null,null,null,null,null,null,null,0]
["Тип 1. S=270 м²",null,null,null,null,null,null,null,null,{"$f":"G237+I237","v":0}]
["195","ТЕР11-01-011-03","Устройство стяжек: бетонных толщиной 20 мм, (уклонообразующий слой, hср.=(15+85)/2=50 мм)","100 м2 стяжки",2.7,null,null,null,null,0]
["196","ТЕР11-01-011-04","Устройство стяжек: на каждые 5 мм изменения толщины стяжки добавлять или исключать к расценке 11-01-011-03, (добавить 30 мм)","100 м2 стяжки",2.7,null,null,null,null,0]
["197","ТЦ_59.1.04.01_78_4707009037_08.02.2024_02","Бетон  В15","м3",13.77,null,null,null,null,0]
["198","ТЕР11-01-004-09","Устройство гидроизоляции обмазочной: в один слой праймером, (гидроизоляция полимерной мастикой, прим.)","100 м2 изолируемой поверхности",2.7,null,null,null,null,0]
["199","ТЕР11-01-011-03","Устройство стяжек: бетонных толщиной 20 мм, (покрытие полимерцементный бетон В25  h=15 мм, прим.)","100 м2 стяжки",2.7,null,null,null,null,0]
["200","ТЕР11-01-011-04","Устройство стяжек: на каждые 5 мм изменения толщины стяжки добавлять или исключать к расценке 11-01-011-03, (исключить 5 мм)","100 м2 стяжки",-2.7,null,null,null,null,0]
["201","ТЦ_59.1.04.01_78_4707009037_08.02.2024_02","Бетон В25","м3",4.13,null,null,null,null,0]
["202","ТССЦ-113-0378","Состав полимерцементный, (20% от массы бетона)","м3",0.82599999999999996,null,null,null,null,0]
["Тип 1а. S=775 м²",null,null,null,null,null,null,null,null,0]
["203","ТЕР11-01-011-03","Устройство стяжек: бетонных толщиной 20 мм, (уклонообразующий слой, hср.=(20+45)/2=32,5 мм)","100 м2 стяжки",7.75,null,null,null,null,0]
["204","ТЕР11-01-011-04","Устройство стяжек: на каждые 5 мм изменения толщины стяжки добавлять или исключать к расценке 11-01-011-03, (добавить 12,5 мм)","100 м2 стяжки",7.75,null,null,null,null,0]
["205","ТЦ_59.1.04.01_78_4707009037_08.02.2024_02","Бетон  В15","м3",25.690999999999999,null,null,null,null,0]
["206","ТЕР11-01-004-09","Устройство гидроизоляции обмазочной: в один слой праймером, (гидроизоляция полимерной мастикой, прим.)","100 м2 изолируемой поверхности",7.75,null,null,null,null,0]
["207","ТЕР11-01-011-03","Устройство стяжек: бетонных толщиной 20 мм, (покрытие полимерцементный бетон В25  h=15 мм, прим.)","100 м2 стяжки",7.75,null,null,null,null,0]
["208","ТЕР11-01-011-04","Устройство стяжек: на каждые 5 мм изменения толщины стяжки добавлять или исключать к расценке 11-01-011-03, (исключить 5 мм)","100 м2 стяжки",-7.75,null,null,null,null,0]
["209","ТЦ_59.1.04.01_78_4707009037_08.02.2024_02","Бетон В25","м3",11.86,null,null,null,null,0]
["210","ТССЦ-113-0378","Состав полимерцементный, (20% от массы бетона)","м3",2.3719999999999999,null,null,null,null,0]
["Раздел 10. Отделка помещений. Тоннель, (Спецификации по шифру 1632-2021-1.1,1.2,2.1.0-АР, Приложение к письму  ООО “Морстройтехнология” вх. №9С01-8000370513-MST-ETU-LET-ENG-00384 от 19.02.2024 г.)",null,null,null,null,null,null,null,null,0]
["211","ТЕР15-04-007-02","Окраска водно-дисперсионными акриловыми составами улучшенная: по штукатурке потолков","100 м2 окрашиваемой поверхности",6.37,null,null,null,null,0]
["212","ТЕР15-04-007-01","Окраска водно-дисперсионными акриловыми составами улучшенная: по штукатурке стен","100 м2 окрашиваемой поверхности",27.38,null,null,null,null,0]
["Раздел 11. Кровля плоская, (1632-2021-1.1,1.2,2.1.0-АР, л. 1.1)",null,null,null,null,null,null,null,null,0]
["Кровля плоская (наплавляемое покрытие)",null,null,null,null,null,null,null,null,0]
["213","ТЕР12-01-017-03","Устройство выравнивающих стяжек: асфальтобетонных толщиной  15 мм, (h=50 мм)","100 м2 стяжки",0.5,null,null,null,null,0]
["214","ТЕР12-01-017-04","Устройство выравнивающих стяжек: на каждый 1 мм изменения толщины добавлять или  исключать к расценке 12-01-017-03, (добавить 35 мм)","100 м2 стяжки",0.5,null,null,null,null,0]
["215","ТЕР11-01-025-01","Устройство покрытий: из брусчатки по готовому подстилающему слою с заполнением швов песком // прим. тротуарная плитка на нерегулируемых опорах","100 м2 покрытия",0.22,null,null,null,null,0]
["216","ТЦ_01.1.00.00_77_7709331654_26.02.2024_02","Нерегулируемы круглые опоры типа Технониколь h=20мм, (расход 5 опор/м²; упаковка - 110 шт.)","уп.",1,null,null,null,null,0]
["217","ТЕР12-01-015-03","Устройство пароизоляции: прокладочной в один слой","100 м2 изолируемой поверхности",3,null,null,null,null,0]
["218","ТЕР26-01-041-02","Изоляция изделиями из пенопласта на битуме холодных поверхностей: покрытий и перекрытий сверху // толщ. 100 мм","1 м3 изоляции",30,null,null,null,null,0]
["219","ТССЦ-104-0240","Плиты теплоизоляционные: из экструдированного пенополистирола плотностью 35 кг/м3, группой горючести Г1","м3",30.6,null,null,null,null,0]
["220","ТЕР12-01-014-02","Утепление покрытий: керамзитом // уклонообразующий слой 20-80 мм","1 м3 утеплителя",15,null,null,null,null,0]
["221","ТЕР12-01-017-01","Устройство выравнивающих стяжек: цементно-песчаных толщиной  15 мм, (h=40 мм)","100 м2 стяжки",3,null,null,null,null,0]
["222","ТЕР12-01-017-02","Устройство выравнивающих стяжек: на каждый 1 мм изменения толщины добавлять или исключать к расценке 12-01-017-01, (добавить 25 мм)","100 м2 стяжки",3,null,null,null,null,0]
["223","ТЕР06-01-015-10","Армирование подстилающих слоев и набетонок","1 т",0.53,null,null,null,null,{"$f":"G270+I270","v":0}]
["224","ТЦ_08.4.02.05_66_6686134976_08.02.2024_02","Сетка арматурная 4Вр1 яч. 100х100 , (вес=1,75 кг/м²)","м2",300,null,null,null,null,0]
["225","ТЕР12-01-015-04","Устройство пароизоляции: обмазочной в один слой","100 м2 изолируемой поверхности",3,null,null,null,null,0]
["226","ТССЦ-113-2230","Праймер битумный ТЕХНОНИКОЛЬ №01, (вес праймера — 0,9–1,1 кг/л, расход 0,3 л/м²)","л",90,null,null,null,null,0]
["227","ТЕР12-01-002-09","Устройство кровель плоских из наплавляемых материалов: в два слоя","100 м2 кровли",3,null,null,null,null,0]
["228","ТЦ_12.0.00.00_78_7826181040_08.02.2024_02","Техноэласт ЭПП, (с учетом нахлеста и дополнительных слоёв, коэффициент расхода — k=1,16)","м2",580,null,null,null,null,0]
["229","ТЦ_12.0.00.00_78_7826181040_08.02.2024_02","Техноэласт Пламя Стоп, (с учетом нахлеста, коэффициент расхода —  k=1,15)","м2",460,null,null,null,null,0]
["Разрез 1-1, 3-3 (наплавляемое покрытие)",null,null,null,null,null,null,null,null,0]
["Водосточная система",null,null,null,null,null,null,null,null,0]
["230","ТЕР12-01-009-02","Устройство желобов: подвесных","100 м желобов",3.22,null,null,null,null,0]
["231","ТЦ_12.1.01.00_78_7804606806_25.01.2024_02","Желоб водосточный D185х3000","шт",107,null,null,null,null,0]
["232","ТЦ_12.1.01.00_78_7804606806_25.01.2024_02","Держатель желоба","шт",537,null,null,null,null,0]
["233","ТЕР12-01-012-01","Ограждение кровель перилами // Устройство труб водосточных, прим.","100 м ограждения",2.944,null,null,null,null,0]
["234","ТЦ_12.1.01.00_78_7804606806_25.01.2024_02","Труба водосточная D150х3800 мм","шт",3,null,null,null,null,0]
["235","ТЦ_12.1.01.00_78_7804606806_25.01.2024_02","Труба водосточная D150х7800 мм","шт",3,null,null,null,null,0]
["236","ТЦ_12.1.01.00_78_7804606806_25.01.2024_02","Труба водосточная D150х11400 мм","шт",2,null,null,null,null,0]
["237","ТЦ_12.1.01.00_78_7804606806_25.01.2024_02","Труба водосточная D150х12000 мм","шт",11,null,null,null,null,0]
["238","ТЦ_12.1.01.00_78_7804606806_25.01.2024_02","Труба водосточная D150х13100 мм","шт",8,null,null,null,null,0]
["239","ТЦ_12.1.01.00_78_7804606806_25.01.2024_02","Крепление трубы","шт",60,null,null,null,null,0]
["240","ТЕР16-07-002-01","Установка воронок водосточных","1 воронка",17,null,null,null,null,0]
["241","ТЦ_12.1.01.00_78_7804606806_25.01.2024_02","Воронки выпускные D185/150","шт",11,null,null,null,null,0]
["242","ТССЦ-301-3305","Воронка сливная диаметром: 150 мм","шт.",6,null,null,null,null,0]
["243","ТЕР12-01-012-01","Ограждение кровель перилами // прим.","100 м ограждения",3.22,null,null,null,null,0]
["244","ТЦ_12.1.01.00_78_7804606806_25.01.2024_02","Снегозадержатель трубчатый, (L=3 м, в комплекте с креплением)","шт",107,null,null,null,null,0]
["245","ТЕР12-01-012-01","Ограждение кровель перилами","100 м ограждения",4.45,null,null,null,null,0]
["246","ТЦ_08.1.06.00_50_5047239058_14.02.2024_02","Ограждение кровли h=600 мм, (L=1,86 м/шт)","шт",239,null,null,null,null,0]
["Разрез 4-4",null,null,null,null,null,null,null,null,0]
["247","ТЕР26-01-037-01","Изоляция изделиями из волокнистых и зернистых материалов на битуме холодных поверхностей: стен и колонн прямоугольных, (h=50 мм)","1 м3 изоляции",2.4780000000000002,null,null,null,null,0]
["248","ТЕР15-02-001-01","Улучшенная штукатурка фасадов цементно-известковым раствором по камню: стен, (h=6 мм, прим.)","100 м2 оштукатуриваемой поверхности",0.49559999999999998,null,null,null,null,0]
["249","ТССЦ-402-0381","Штукатурка минеральная декоративная CERESIT CT 35 \"короед\", зерно 2,5 мм (цветная), (декоративная минеральная штукатурка ТЕХНОНИКОЛЬ 301 «короед», расход на слой 2,0 мм – 2,6 кг/м², прим.)","кг",386.56799999999998,null,null,null,null,0]
["Цоколь",null,null,null,null,null,null,null,null,0]
["250","ТЕР11-01-015-07","Шлифовка бетонных или металлоцементных покрытий, (затирка поверхности цоколя, прим.)","100 м2 покрытия",1.3680000000000001,null,null,null,null,0]
["251","ТЕР15-04-015-02","Окраска фасадов с люлек с подготовкой поверхности: силикатная, (прим.)","100 м2 фасада",1.3677999999999999,null,null,null,null,0]
["Раздел 13. Отмостка",null,null,null,null,null,null,null,null,{"$f":"G303+I303","v":0}]
["252","ТЕР27-04-001-04","Устройство подстилающих и выравнивающих слоев оснований: из щебня, (подготовка из щебня h=90 мм)","100 м3 материала основания (в плотном теле)",0.2462,null,null,null,null,0]
["253","ТССЦ-408-0015","Щебень из природного камня для строительных работ марка: 800, фракция 20-40 мм","м3",31.02,null,null,null,null,0]
["254","ТЕР27-04-001-01","Устройство подстилающих и выравнивающих слоев оснований: из песка, (подготовка из песка h=150 мм)","100 м3 материала основания (в плотном теле)",0.41033999999999998,null,null,null,null,0]
["255","ТССЦ-408-0123","Песок природный для строительных: работ средний с крупностью зерен размером свыше 5 мм - до 5% по массе","м3",45.1374,null,null,null,null,0]
["256","ТЕР06-01-001-20","Устройство ленточных фундаментов: бетонных, (h=100 мм, прим.)","100 м3 бетона, бутобетона и железобетона в деле",0.27356000000000003,null,null,null,null,0]
["257","ТЦ_59.1.04.01_78_4707009037_08.02.2024_02","Бетон  В15","м3",27.902999999999999,null,null,null,null,0]
["258","ТЕР06-01-015-10","Армирование подстилающих слоев и набетонок","1 т",0.75,null,null,null,null,0]
["259","ТЦ_08.4.02.05_78_7816587756_08.02.2024_02","Сетка арматурная 5Вр1 яч. 100х100 , (вес=2,75 кг/м²)","м2",273.56,null,null,null,null,0]
["260","ТЕР06-01-013-01","Устройство подливки толщиной  20 мм, (бетонная отмостка, hср.=(30+130)/2=80 мм, прим.)","100 м2 подливки под оборудование",2.7355999999999998,null,null,null,null,0]
["261","ТЕР06-01-013-02","На каждые 10 мм изменения толщины добавлять или исключать к расценке 06-01-013-01, (добавить 60 мм)","100 м2 подливки под оборудование",2.7355999999999998,null,null,null,null,0]
["262","ТЦ_59.1.04.01_78_4707009037_08.02.2024_02","Бетон  В15","м3",22.321999999999999,null,null,null,null,0]
["263","ТЕР27-06-011-01","Устройство швов расширения, (температурно-усадочный, прим.)","1000 м2 покрытия",0.27356000000000003,null,null,null,null,0]
["264","ТЕР11-01-015-08","Железнение цементных покрытий","100 м2 покрытия",2.7355999999999998,null,null,null,null,0]
["265","ТЕР27-02-010-02","Установка бортовых камней бетонных: при других видах покрытий","100 м бортового камня",2.7355999999999998,null,null,null,null,0]
["266","ТЦ_04.13.00.00_78_7842083836_15.02.2024_02\nАналог  ТССЦ-403-8023     19,93/18,59=2%","Камни бортовые БР100.20.8","шт",274,null,null,null,null,0]
["267","Прайс\nТех. часть ТЕР27. Автомобильные дороги, Приложение 27.3, п. 3.8а","Бетон  В15, (с учетом сечения k=0,86)","м3",13.88,null,null,null,null,{"$f":"G319+I319","v":0}]
["268","ТССЦ-402-0004\nТех. часть ТЕР27. Автомобильные дороги, Приложение 27.3, п. 3.8б","Раствор готовый кладочный цементный марки: 100, (с учетом сечения k=0,33)","м3",5.4164999999999998E-2,null,null,null,null,0]
[null,null,"Всего, руб. с НДС",null,null,null,{"$f":"SUM(G14:G320)","v":0},null,{"$f":"SUM(I14:I320)","v":0},{"$f":"SUM(J14:J320)","v":0}]
[null,null,"Всего, руб. без НДС",null,null,null,{"$f":"G321/1.2","v":0},null,{"$f":"I321/1.2","v":0},{"$f":"J321/1.2","v":0}]

{"sheet":"1632-2021-2.2.4,2.1.6-АР","index":8,"n_rows":82,"n_cols":10,"rows_kept":82,"cut":false,"hidden":false,"merged":[]}
[]
["Терминал по перевалке минеральных удобрений в морском торговом порту Усть-Луга. Береговые объекты терминала"]
["(наименование стройки)"]
["1632-2021-2.2.4,2.1.6-АР_07.04.023-П-01-02"]
["(локальная смета)"]
["на Архитектурные решения, 07.04.023 Пересыпная станция №4 (код SAP 01.02.004) код ГП 2.2.4"]
["(наименование работ и затрат, наименование объекта)"]
[null,"Основание:","1632-2021-2.2.4, 2.1.6-АР_2_0_RU_IFC"]
[]
["№ п/п","Обоснование","Наименование работ и затрат","Ед. изм.","Кол-во","Цена за ед.измерения работ, руб. с НДС","Всего, стоимость работ,руб. с НДС","Цена за ед.измерения материалов, руб. с НДС","Всего, стоимость материалов, руб. с НДС","Итого, руб. с НДС"]
["1","2","3","4","5",6,7,8,9,10]
["Раздел 2. Кровля",null,null,null,null,null,null,null,null,{"$f":"G12+I12","v":0}]
["Монтаж кровельного покрытия  из профнастила учтен в разделе КМ",null,null,null,null,null,null,null,null,0]
["1","ТЕР12-01-009-02","Устройство желобов: подвесных","100 м желобов",0.21,null,null,null,null,0]
["2","ТЦ_12.1.01.00_78_7804606806_25.01.2024_02\nАналог ТССЦ-203-0960 5219,18/5114,28=2%","Желоб водосточный D185х3000","шт",7,null,null,null,null,0]
["3","ТЦ_12.1.01.00_78_7804606806_25.01.2024_02\nАналог ТССЦ-301-5881 61,11/59,89=2%","Держатель желоба","шт",35,null,null,null,null,0]
["4","ТЕР12-01-012-01","Ограждение кровель перилами // прим. Устройство труб водосточных","100 м ограждения",1.22,null,null,null,null,0]
["5","ТЕР12-01-008-01","Устройство обделок на фасадах (наружные подоконники, пояски, балконы и др.): включая водосточные трубы, с изготовлением элементов труб// прим.","100 м2фасада (без вычета проемов)",12.48,null,null,null,null,0]
["6","ТЕР12-01-008-02","Устройство обделок на фасадах (наружные подоконники, пояски, балконы и др.): без водосточных труб","100 м2фасада (без вычета проемов)",-12.48,null,null,null,null,0]
["7","ТЦ_12.1.01.00_78_7804606806_25.01.2024_02\nАналог ТССЦ-301-5867 217,71/213,27=2%","Труба водосточная D150х2000мм","шт",61,null,null,null,null,0]
["8","ТЦ_12.1.01.00_78_7804606806_25.01.2024_02\nАналог ТССЦ-203-0960 5219,18/5114,28=2%","Колено гофрированное","шт",12,null,null,null,null,0]
["9","ТЦ_12.1.01.00_78_7804606806_25.01.2024_02\nАналог ТССЦ-115-0931  8,37/8,08=3%","Воронки выпускные D185/150","шт",6,null,null,null,null,0]
["10","ТЕР12-01-012-01","Ограждение кровель перилами // прим.","100 м ограждения",0.192,null,null,null,null,0]
["11","ТЦ_12.1.01.00_78_7804606806_25.01.2024_02\nАналог ТССЦ-101-7317  128,60/126,01=2%","Снегозадержатель трубчатый (  L=3000d в комплекте с креплением)","м",19.2,null,null,null,null,0]
["12","ТЕР12-01-012-01","Ограждение кровель перилами","100 м ограждения",0.79,null,null,null,null,0]
["13",null,"Ограждение h=600 мм. ( учтено в разделе КМ)","м",79,null,null,null,null,0]
["Раздел 3. Окна",null,null,null,null,null,null,null,null,0]
["14","ТЕР10-01-034-03","Установка в жилых и общественных зданиях оконных блоков из ПВХ профилей: поворотных (откидных, поворотно-откидных) с площадью проема до 2 м2 одностворчатых","100 м2 проемов",0.14000000000000001,null,null,null,null,0]
["15","ТЦ_07.1.02.00_78_7840318754_30.01.2024_02\nАналог ТССЦ-203-0978  4253,53/4168,26=2%","Оконный блок  1000х1400","шт",10,null,null,null,null,0]
["16","ТЕР15-01-070-01","Облицовка: оконных проемов в наружных стенах откосной планкой из оцинкованной стали с полимерным покрытием с устройством водоотлива оконного из оцинкованной стали с полимерным покрытием","1 м2 проемов",14,null,null,null,null,0]
["Раздел 4. Дверные проемы",null,null,null,null,null,null,null,null,0]
["17","ТЕР09-04-012-01","Установка металлических дверных блоков в готовые проемы","1 м2 проема",18.899999999999999,null,null,null,null,0]
["18","ТССЦ-203-8146","Блок дверной стальной внутренний однопольный ДСВ, площадь 2,1 м2 (ГОСТ 31173-2003) // прим. утепленный ( п.1, п.2)","м2",6.3,null,null,null,null,0]
["19","ТССЦ-101-0892","Скобяные изделия при заполнении отдельными элементами дверей входных в здание: однопольных","компл.",9,null,null,null,null,0]
["20","ТЕР09-04-012-02","Установка дверного доводчика к металлическим дверям","1 шт.",3,null,null,null,null,0]
["21","ТССЦ-101-0961","Закрыватель дверной гидравлический рычажный в алюминиевом корпусе","шт.",3,null,null,null,null,0]
["22","ТССЦ-101-6976","Замок электромагнитный универсальный сдвиговый AL-400S","шт.",3,null,null,null,null,0]
["23","ТЦ_07.1.01.03_78_7841375755_25.01.2024_02\nАналог ТССЦ-203-8123  2466,49/2414,02=2%","Дверь стальная наружная 1000х2100     ( п.3, п. 3/1)","шт",6,null,null,null,null,0]
["24","ТЕР09-04-013-01","Установка противопожарных дверей: однопольных глухих","1 м2 проема",23.1,null,null,null,null,0]
["25","ТЦ_07.1.01.03_78_7841375755_25.01.2024_02\nАналог ТССЦ-203-8118   2304,38/2255,09=2%","Дверь противопожарная металлическая: однопольная ДПС-01/30, размером 1000х2100 мм","шт",7,null,null,null,null,0]
["26","ТЦ_07.1.01.03_78_7841375755_25.01.2024_02\nАналог ТССЦ-203-8123   2466,49/2414,02=2%","Дверь противопожарная металлическая: однопольная ДПС-01/60, размером 1000х2100 мм","шт",4,null,null,null,null,0]
["Раздел 5. Полы ( Экспликация полов. Лист 2)",null,null,null,null,null,null,null,null,0]
["Тип 1.  S=62,87 м2",null,null,null,null,null,null,null,null,0]
["27","ТЕР11-01-009-01","Устройство тепло- и звукоизоляции сплошной из плит: или матов минераловатных или стекловолокнистых","100 м2 изолируемой поверхности",0.62870000000000004,null,null,null,null,0]
["28","ТЕР11-01-050-01","Устройство пароизоляции из полиэтиленовой пленки в один слой насухо","100 м2 поверхности",0.62870000000000004,null,null,null,null,{"$f":"G45+I45","v":0}]
["29","ТЕР11-01-011-03","Устройство стяжек: бетонных толщиной 20 мм","100 м2 стяжки",0.62870000000000004,null,null,null,null,0]
["30","ТЕР11-01-011-04","Устройство стяжек: на каждые 5 мм изменения толщины стяжки добавлять или исключать к расценке 11-01-011-03 // до толщ. 50 мм","100 м2 стяжки",0.62870000000000004,null,null,null,null,0]
["31","ТЦ_59.1.04.01_47_4705078395_08.02.2024_02\nАналог ТССЦ-401-0008  699,49/623,42=2%","Бетон  В22,5","м3",3.206,null,null,null,null,0]
["32","ТЕР06-01-015-10","Армирование подстилающих слоев и набетонок","1 т",0.1099,null,null,null,null,0]
["33","ТЦ_08.4.02.05_66_6686134976_08.02.2024_02\nАналог ТССЦ-101-3891 21,17/20,58=2%","Сетка арм. 100х100 4Вр1","м2",62.87,null,null,null,null,0]
["34","ТЕР11-01-020-03","Устройство покрытий поливинилацетатных: толщиной 3 мм // прим. покрытие полимерное","100 м2 покрытия",0.62870000000000004,null,null,null,null,0]
["Тип 1.1  S=26,1м2",null,null,null,null,null,null,null,null,0]
["35","ТЕР11-01-009-01","Устройство тепло- и звукоизоляции сплошной из плит: или матов минераловатных или стекловолокнистых","100 м2 изолируемой поверхности",0.26100000000000001,null,null,null,null,0]
["36","ТЕР11-01-050-01","Устройство пароизоляции из полиэтиленовой пленки в один слой насухо","100 м2 поверхности",0.26100000000000001,null,null,null,null,0]
["37","ТЕР11-01-011-03","Устройство стяжек: бетонных толщиной 20 мм","100 м2 стяжки",0.26100000000000001,null,null,null,null,0]
["38","ТЕР11-01-011-04","Устройство стяжек: на каждые 5 мм изменения толщины стяжки добавлять или исключать к расценке 11-01-011-03","100 м2 стяжки",0.26100000000000001,null,null,null,null,0]
["39","ТЦ_59.1.04.01_47_4705078395_08.02.2024_02\nАналог ТССЦ-401-0008  699,49/623,42=2%","Бетон  В22,5","м3",1.73,null,null,null,null,0]
["40","ТЕР06-01-015-10","Армирование подстилающих слоев и набетонок","1 т",4.5675E-2,null,null,null,null,0]
["41","ТЦ_08.4.02.05_66_6686134976_08.02.2024_02\nАналог ТССЦ-101-3891 21,17/20,58=2%","Сетка арм. 100х100 4Вр1","м2",26.1,null,null,null,null,0]
["42","ТЕР11-01-020-03","Устройство покрытий поливинилацетатных: толщиной 3 мм // прим. покрытие полимерное","100 м2 покрытия",0.26100000000000001,null,null,null,null,0]
["Тип 2.  S=521м2",null,null,null,null,null,null,null,null,0]
["43","ТЕР11-01-011-03","Устройство стяжек: бетонных толщиной 20 мм","100 м2 стяжки",5.21,null,null,null,null,0]
["44","ТЕР11-01-011-04","Устройство стяжек: на каждые 5 мм изменения толщины стяжки добавлять или исключать к расценке 11-01-011-03","100 м2 стяжки",5.21,null,null,null,null,0]
["45","ТЦ_59.1.04.01_47_4705078395_08.02.2024_02\nАналог ТССЦ-401-0008  699,49/623,42=2%","Бетон  В22,5","м3",15.943,null,null,null,null,0]
["46","ТЕР11-01-020-03","Устройство покрытий поливинилацетатных: толщиной 3 мм // прим. покрытие полимерное","100 м2 покрытия",5.21,null,null,null,null,0]
["Тип 3.  S=188м2",null,null,null,null,null,null,null,null,0]
["47","ТЕР11-01-011-03","Устройство стяжек: бетонных толщиной 20 мм","100 м2 стяжки",1.82,null,null,null,null,0]
["48","ТЕР11-01-011-04","Устройство стяжек: на каждые 5 мм изменения толщины стяжки добавлять или исключать к расценке 11-01-011-03","100 м2 стяжки",1.82,null,null,null,null,0]
["49","ТЦ_59.1.04.01_47_4705078395_08.02.2024_02\nАналог ТССЦ-401-0008  699,49/623,42=2%","Бетон  В22,5","м3",12.067,null,null,null,null,0]
["50","ТЕР06-01-015-10","Армирование подстилающих слоев и набетонок","1 т",0.31850000000000001,null,null,null,null,0]
["51","ТЦ_08.4.02.05_66_6686134976_08.02.2024_02\nАналог ТССЦ-101-3891 21,17/20,58=2%","Сетка арм. 100х100 4Вр1","м2",182,null,null,null,null,{"$f":"G71+I71","v":0}]
["52","ТЕР11-01-020-03","Устройство покрытий поливинилацетатных: толщиной 3 мм // прим. покрытие полимерное","100 м2 покрытия",1.82,null,null,null,null,0]
["Раздел 6. Отделка",null,null,null,null,null,null,null,null,0]
["Цоколь",null,null,null,null,null,null,null,null,0]
["53","ТЕР11-01-015-07","Шлифовка бетонных или металлоцементных покрытий // прим.","100 м2 покрытия",0.34110000000000001,null,null,null,null,0]
["Окраска конструкций стен и потолков из профлиста, учтена в сметах к разделу КМ",null,null,null,null,null,null,null,null,0]
["Раздел 7. Перевозка",null,null,null,null,null,null,null,null,0]
["Товарный бетон - 62 км. ООО \"КДСК\"",null,null,null,null,null,null,null,null,0]
["54",null,"Товарный бетон","т",80.718000000000004,null,null,null,null,0]
["55","ТССЦпг-03-33-01-032","Перевозка бетонных смесей и строительных растворов, готовых к употреблению, автобетоносмесителем 6 м3: до 32 км; класс груза 1","1 т груза",80.718000000000004,null,null,null,null,0]
[null,null,"Всего, руб. с НДС",null,null,null,{"$f":"SUM(G13:G80)","v":0},null,{"$f":"SUM(I13:I80)","v":0},{"$f":"SUM(J13:J80)","v":0}]
[null,null,"Всего, руб. без НДС",null,null,null,{"$f":"G81/1.2","v":0},null,{"$f":"I81/1.2","v":0},{"$f":"J81/1.2","v":0}]

{"sheet":"1632-2021-2.2.5,2.1.13 -АР","index":9,"n_rows":100,"n_cols":10,"rows_kept":100,"cut":false,"hidden":false,"merged":[]}
[]
["Терминал по перевалке минеральных удобрений в морском торговом порту Усть-Луга. Береговые объекты терминала"]
["(наименование стройки)"]
["1632-2021-2.2.5,2.1.13-АР_07.04.024_07.04.052-П-00-01"]
["(локальная смета)"]
["на Архитектурные решения, 07.04.024 Пересыпная станция №5 (код SAP 01.02.019) код ГП 2.2.5\n07.04.052 Конвейерная галерея №13 (код SAP 01.02.009) код ГП 2.1.13"]
["(наименование работ и затрат, наименование объекта)"]
[null,"Основание:","1632-2021-2.2.5,2.1.13-АР  07.04.024_07.04.052-П-00-00"]
[]
["№ п/п","Обоснование","Наименование работ и затрат","Ед. изм.","Кол-во","Цена за ед.измерения работ, руб. с НДС","Всего, стоимость работ,руб. с НДС","Цена за ед.измерения материалов, руб. с НДС","Всего, стоимость материалов, руб. с НДС","Итого, руб. с НДС"]
["1","2","3","4","5",6,7,8,9,10]
["Раздел 2. Кровля"]
["Устройство кровли из профлиста см. в разделе КМ"]
["1","ТЕР12-01-009-02","Устройство желобов: подвесных","100 м желобов",0.74,null,null,null,null,{"$f":"G14+I14","v":0}]
["2","ТЦ_12.1.01.00_78_7804606806_25.01.2024_02\nАналог  ТССЦ-101-5465  31,79/31,06=2%","Желоб водосточный D185х3000","шт",25,null,null,null,null,0]
["3","ТЦ_12.1.01.00_78_7804606806_25.01.2024_02\nАналог  ТССЦ-101-5466  4,57/4,46=2%","Держатель желоба","шт",123,null,null,null,null,0]
["4","ТЕР12-01-012-01","Ограждение кровель перилами // прим. Устройство труб водосточных","100 м ограждения",1.1599999999999999,null,null,null,null,0]
["5","ТЕР12-01-008-01","Устройство обделок на фасадах (наружные подоконники, пояски, балконы и др.): включая водосточные трубы, с изготовлением элементов труб// прим.","100 м2фасада (без вычета проемов)",19.532,null,null,null,null,0]
["6","ТЦ_12.1.01.00_78_7804606806_25.01.2024_02\nАналог ТССЦ-301-5867 217,71/213,27=2%","Труба водосточная D150х2000мм","шт",58,null,null,null,null,0]
["7","ТЦ_12.1.01.00_78_7804606806_25.01.2024_02\nАналог  ТССЦ-101-5466  4,57/4,46=2%","Крепление трубы","шт",193,null,null,null,null,0]
["8","ТЦ_12.1.01.00_78_7804606806_25.01.2024_02\nАналог ТССЦ-115-0931  8,37/8,08=3%","Воронки выпускные D185/150","шт",9,null,null,null,null,0]
["9","ТЕР12-01-012-01","Ограждение кровель перилами // прим.","100 м ограждения",0.71,null,null,null,null,0]
["10","ТЦ_12.1.01.00_78_7804606806_25.01.2024_02\nАналог ТССЦ-101-7317  128,60/126,01=2%","Снегозадержатель трубчатый (L=3 м. в комплекте с креплением)","шт",24,null,null,null,null,0]
["Раздел 3. Окна",null,null,null,null,null,null,null,null,0]
["11","ТЕР10-01-034-03","Установка в жилых и общественных зданиях оконных блоков из ПВХ профилей: поворотных (откидных, поворотно-откидных) с площадью проема до 2 м2 одностворчатых","100 м2 проемов",0.154,null,null,null,null,0]
["12","ТЦ_07.1.02.00_78_7840318754_30.01.2024_02\nАналог ТССЦ-203-0978  4253,53/4168,26=2%","ОК-1.  1000х1400","шт",11,null,null,null,null,0]
["13","ТЕР10-01-034-05","Установка в жилых и общественных зданиях оконных блоков из ПВХ профилей: поворотных (откидных, поворотно-откидных) с площадью проема до 2 м2 двухстворчатых","100 м2 проемов",0.1008,null,null,null,null,0]
["14","ТЦ_07.1.02.00_78_7840318754_30.01.2024_02\nАналог ТССЦ-203-0978  4253,53/4168,26=2%","ОК-2.  1200х1400","шт",11,null,null,null,null,0]
["15","ТЕР10-01-034-01","Установка в жилых и общественных зданиях оконных блоков из ПВХ профилей: глухих с площадью проема до  2 м2","100 м2 проемов",1.6799999999999999E-2,null,null,null,null,0]
["16","ТЦ_07.1.02.00_78_7840318754_30.01.2024_02\nАналог ТССЦ-203-0978  4253,53/4168,26=2%","ОК-2/1.  1200х1400","шт",1,null,null,null,null,0]
["17","ТЕР15-01-070-01","Облицовка: оконных проемов в наружных стенах откосной планкой из оцинкованной стали с полимерным покрытием с устройством водоотлива оконного из оцинкованной стали с полимерным покрытием","1 м2 проемов",27.16,null,null,null,null,0]
["Раздел 4. Дверные проемы и ворота",null,null,null,null,null,null,null,null,0]
["18","ТЕР09-04-012-01","Установка металлических дверных блоков в готовые проемы","1 м2 проема",42.34,null,null,null,null,0]
["19","ТЦ_07.1.01.03_78_7810347194_06.02.2024_02\nАналог ТССЦ-203-8123  2466,49/2414,02=2%","Дверь стальная  наружная утепленная 1200х2100 левого открывания","шт",2,null,null,null,null,0]
["20","ТЦ_07.1.01.03_78_7810347194_06.02.2024_02\nАналог ТССЦ-203-8123  2466,49/2414,02=2%","Дверь стальная  наружная  1000х2100","шт",4,null,null,null,null,0]
["21","ТЕР09-04-012-02","Установка дверного доводчика к металлическим дверям","1 шт.",6,null,null,null,null,0]
["22","ТЕР09-04-013-01","Установка противопожарных дверей: однопольных глухих","1 м2 проема",27.3,null,null,null,null,{"$f":"G37+I37","v":0}]
["23","ТЦ_07.1.01.03_78_7841375755_25.01.2024_02\nАналог  ТССЦ-203-8118   2304,38/2255,09=2%","Дверь противопожарная металлическая: однопольная ДПС-01/30, размером 1000х2100 мм  (левая, правая)","шт",5,null,null,null,null,0]
["24","ТЦ_07.1.01.03_78_7841375755_25.01.2024_02\nАналог  ТССЦ-203-8123   2466,49/2414,02=2%","Дверь противопожарная металлическая: однопольная ДПС-01/60, размером 1000х2100 мм  (левая, правая)","шт",8,null,null,null,null,0]
["25","ТЕР15-01-070-02","Облицовка: дверных проемов в наружных стенах откосной планкой из оцинкованной стали с полимерным покрытием с установкой наличников из оцинкованной стали с полимерным покрытием","1 м2 проемов",69.64,null,null,null,null,0]
["Ворота",null,null,null,null,null,null,null,null,0]
["26","ТЕР09-04-011-01","Монтаж каркасов ворот большепролетных зданий, ангаров и др. без механизмов открывания","1 т конструкций",1.89,null,null,null,null,0]
["27","ТЕРм11-05-001-01","Механизм исполнительный, масса: до 20 кг","1 шт.",3,null,null,null,null,0]
["28","ТЦ_07.1.01.03_78_7841375755_26.01.2024_02\nАналог  ТССЦ-201-0253  5403,70/5341,14=2%","Ворота распашные металлические, утепленные , с калиткой 1000х2100мм, открыванием наружу 3000х3000мм EI60  (76*9,0 м2)/1000","шт",1,null,null,null,null,0]
["29","ТЦ_07.1.01.03_78_7841375755_26.01.2024_02\nАналог  ТССЦ-201-0253  5403,70/5341,14=2%","Ворота распашные металлические, с калиткой 1000х2100 мм, открыванием наружу 2600х4000 мм EI60   (62*10,4 м2)/1000","шт",1,null,null,null,null,0]
["30","ТЦ_07.1.01.03_78_7841375755_26.01.2024_02\nАналог  ТССЦ-201-0253  5403,70/5341,14=2%","Ворота распашные металлические, с калиткой 1000х2100мм, открыванием наружу 3000х3000мм EI60  (62*9,0м2)/1000","шт",1,null,null,null,null,0]
["Раздел 5. Полы",null,null,null,null,null,null,null,null,0]
["Тип 1.  S=167,1 м2",null,null,null,null,null,null,null,null,0]
["31","ТЕР26-01-039-01","Изоляция покрытий и перекрытий изделиями из волокнистых и зернистых материалов насухо","1 м3 изоляции",7.8536999999999999,null,null,null,null,0]
["32","ТССЦ-104-0111","Плиты или маты теплоизоляционные","м3",8.48,null,null,null,null,0]
["33","ТЕР11-01-050-01","Устройство пароизоляции из полиэтиленовой пленки в один слой насухо","100 м2 поверхности",1.671,null,null,null,null,0]
["34","ТЕР11-01-011-03","Устройство стяжек: бетонных толщиной 20 мм","100 м2 стяжки",1.671,null,null,null,null,0]
["35","ТЕР11-01-011-04","Устройство стяжек: на каждые 5 мм изменения толщины стяжки добавлять или исключать к расценке 11-01-011-03 // до толщ. 50 мм","100 м2 стяжки",1.671,null,null,null,null,0]
["36","ТЦ_59.1.04.01_47_4705078395_08.02.2024_02\nАналог ТССЦ-401-0008  699,49/623,42=2%","Бетон  В22,5","м3",8.5220000000000002,null,null,null,null,0]
["37","ТЕР06-01-015-10","Армирование подстилающих слоев и набетонок","1 т",0.29199999999999998,null,null,null,null,0]
["38","ТЦ_08.4.02.05_66_6686134976_08.02.2024_02\nАналог ТССЦ-101-3891 21,17/20,58=2%","Сетка арм. 100х100 4Вр1","м2",167.1,null,null,null,null,0]
["39","ТЕР11-01-020-03","Устройство покрытий поливинилацетатных: толщиной 3 мм // прим. покрытие полимерное","100 м2 покрытия",1.671,null,null,null,null,0]
["Тип 2.  S=399,75 м2",null,null,null,null,null,null,null,null,0]
["40","ТЕР11-01-011-03","Устройство стяжек: бетонных толщиной 20 мм","100 м2 стяжки",3.9975000000000001,null,null,null,null,0]
["41","ТЕР11-01-011-04","Устройство стяжек: на каждые 5 мм изменения толщины стяжки добавлять или исключать к расценке 11-01-011-03 // до 100 мм","100 м2 стяжки",3.9975000000000001,null,null,null,null,0]
["42","ТЦ_59.1.04.01_47_4705078395_08.02.2024_02\nАналог ТССЦ-401-0008  699,49/623,42=2%","Бетон  В22,5","м3",40.774999999999999,null,null,null,null,0]
["43","ТЕР11-01-020-03","Устройство покрытий поливинилацетатных: толщиной 3 мм // прим. покрытие полимерное","100 м2 покрытия",3.9975000000000001,null,null,null,null,0]
["Тип 3.  S=924,75 м2",null,null,null,null,null,null,null,null,{"$f":"G63+I63","v":0}]
["44","ТЕР11-01-011-03","Устройство стяжек: бетонных толщиной 20 мм","100 м2 стяжки",9.2475000000000005,null,null,null,null,0]
["45","ТЕР11-01-011-04","Устройство стяжек: на каждые 5 мм изменения толщины стяжки добавлять или исключать к расценке 11-01-011-03","100 м2 стяжки",9.2475000000000005,null,null,null,null,0]
["46","ТЦ_59.1.04.01_47_4705078395_08.02.2024_02\nАналог ТССЦ-401-0008  699,49/623,42=2%","Бетон  В22,5","м3",28.297000000000001,null,null,null,null,0]
["47","ТЕР11-01-020-03","Устройство покрытий поливинилацетатных: толщиной 3 мм // прим. покрытие полимерное","100 м2 покрытия",9.2475000000000005,null,null,null,null,0]
["Тип 4.  S=77,8 м2",null,null,null,null,null,null,null,null,0]
["48","ТЕР11-01-015-07","Шлифовка бетонных или металлоцементных покрытий // прим.","100 м2 покрытия",0.77800000000000002,null,null,null,null,0]
["49","ТЕР11-01-015-08","Железнение цементных покрытий // прим.","100 м2 покрытия",0.77800000000000002,null,null,null,null,0]
["Раздел 6. Отделка",null,null,null,null,null,null,null,null,0]
["Цоколь",null,null,null,null,null,null,null,null,0]
["50","ТЕР11-01-015-07","Шлифовка бетонных или металлоцементных покрытий // прим. затирка поверхности цоколя","100 м2 покрытия",2.5880000000000001,null,null,null,null,0]
["51","ТЕР15-04-015-02","Окраска фасадов с люлек с подготовкой поверхности: силикатная // прим.","100 м2 фасада",258.8,null,null,null,null,0]
["Окраска конструкций стен и потолков из профлиста, учтена в сметах к разделу КМ",null,null,null,null,null,null,null,null,0]
["Раздел 7. Отмостка",null,null,null,null,null,null,null,null,0]
["52","ТЕР01-02-005-01","Уплотнение грунта пневматическими трамбовками, группа грунтов: 1-2","100 м3 уплотненного грунта",0.16439999999999999,null,null,null,null,0]
["53","ТЕР27-04-001-04","Устройство подстилающих и выравнивающих слоев оснований: из щебня","100 м3 материала основания (в плотном теле)",0.32879999999999998,null,null,null,null,0]
["54","ТССЦ-408-0015","Щебень из природного камня для строительных работ марка: 800, фракция 20-40 мм","м3",41.43,null,null,null,null,0]
["55","ТЕР26-01-041-05","Изоляция изделиями из пенопласта насухо холодных поверхностей покрытий и перекрытий // прим.","1 м3 изоляции",5.48,null,null,null,null,0]
["56","ТССЦ-104-0313","Плиты теплоизоляционные: из экструзионного вспененного полистирола ПЕНОПЛЭКС-45 // толщ. 50 мм","м3",5.64,null,null,null,null,0]
["57","ТЕР06-01-013-01","Устройство подливки толщиной  20 мм // прим. бетонное основание","100 м2 подливки под оборудование",1.0960000000000001,null,null,null,null,0]
["58","ТЕР06-01-013-02","На каждые 10 мм изменения толщины добавлять или исключать к расценке 06-01-013-01 // до 60 мм","100 м2 подливки под оборудование",1.0960000000000001,null,null,null,null,0]
["59","ТЦ_59.1.04.01_78_7806468968_26.06.2024_02\nАналог ТССЦ-401-0006  661,66/586,34=2%","Бетон  В15","м3",6.7080000000000002,null,null,null,null,0]
["60","ТЕР06-01-015-10","Армирование подстилающих слоев и набетонок","1 т",0.38030000000000003,null,null,null,null,0]
["61","ТЦ_08.4.02.05_78_7816723705_16.02.2024_02\nАналог ТССЦ-101-3891 21,17/20,58=2%","Сетка арм. 100х100 6Вр1","м2",109.6,null,null,null,null,0]
["62","ТЕР11-01-019-01","Устройство покрытий асфальтобетонных: литых толщиной 25 мм","100 м2 покрытия",1.0960000000000001,null,null,null,null,0]
["63","ТЕР27-06-011-01","Устройство швов расширения // прим.температурно-усадочный","1000 м2 покрытия",0.1096,null,null,null,null,{"$f":"G88+I88","v":0}]
["64","ТЕР06-01-068-03","Устройство деформационных швов в емкостных сооружениях с применением: герметика","100 м шва",1.0960000000000001,null,null,null,null,0]
["65","ТЕР11-01-044-02","Нарезка швов в бетоне: с заполнением швов герметиком при устройстве полимерных наливных полов // прим.","100 м",43.84,null,null,null,null,0]
["Раздел 8. Перевозка материалов",null,null,null,null,null,null,null,null,0]
["Перевозка материалов ( металл 140 км. ОП \"МКМ-СПб\")",null,null,null,null,null,null,null,null,0]
["66",null,"металлопрокат, трубопрокат и металлоконструкции","т",109.892,null,null,null,null,0]
["67","ТССЦпг-03-02-01-140","Перевозка строительных грузов (кроме массовых навалочных, перевозимых автомобилями-самосвалами, а также бетонных и железобетонных изделий, стеновых и перегородочных материалов, лесоматериалов круглых и пиломатериалов, включенных в таблицу 03-01), бортовым автомобилем грузоподъемностью 5 т, на расстояние до 140 км I класс груза","1 т груза",109.892,null,null,null,null,0]
["68","ТССЦпг-01-01-02-015","Разгрузочные работы при автомобильных перевозках: металлических конструкций массой до 1 т","1 т груза",109.892,null,null,null,null,0]
["Товарный бетон - 62 км. ООО \"КДСК\"",null,null,null,null,null,null,null,null,0]
["69",null,"Товарный бетон","т",206.54,null,null,null,null,0]
["70","ТССЦпг-03-33-01-032","Перевозка бетонных смесей и строительных растворов, готовых к употреблению, автобетоносмесителем 6 м3: до 32 км; класс груза 1","1 т груза",206.54,null,null,null,null,0]
[null,null,"Всего, руб. с НДС",null,null,null,{"$f":"SUM(G13:G98)","v":0},null,{"$f":"SUM(I13:I98)","v":0},{"$f":"SUM(J13:J98)","v":0}]
[null,null,"Всего, руб. без НДС",null,null,null,{"$f":"G99/1.2","v":0},null,{"$f":"I99/1.2","v":0},{"$f":"J99/1.2","v":0}]

{"sheet":"2-1632-2021-1.1,1.2,2.1.0-АР","index":10,"n_rows":89,"n_cols":10,"rows_kept":89,"cut":false,"hidden":false,"merged":[]}
[]
["Терминал по перевалке минеральных удобрений в морском торговом порту Усть-Луга. Береговые объекты терминала"]
["(наименование стройки)"]
["1632-2021-1.1,1.2,2.1.0-АР_07.02.011_П-00-01"]
["(локальная смета)"]
["на Архитектурные решения, 07.02.011 Здание трансбордера код ГП 1.2"]
["(наименование работ и затрат, наименование объекта)"]
[null,"Основание:","1632-2021-1.1,1.2,2.1.0-АР_2_0_RU_IFC"]
[]
["№ п/п","Обоснование","Наименование работ и затрат","Ед. изм.","Кол-во","Цена за ед.измерения работ, руб. с НДС","Всего, стоимость работ,руб. с НДС","Цена за ед.измерения материалов, руб. с НДС","Всего, стоимость материалов, руб. с НДС","Итого, руб. с НДС"]
["1","2","3","4","5",6,7,8,9,10]
["Учтено в разделе КМ"]
["Раздел 2. Перегородки. Трансбордер, (Спецификации по шифру 1632-2021-1.1,1.2,2.1.0-АР, Приложение к письму  ООО “Морстройтехнология” вх. №9С01-8000370513-MST-ETU-LET-ENG-00384 от 19.02.2024 г.)"]
["П1",null,null,null,null,null,null,null,null,{"$f":"G14+I14","v":0}]
["1","ТЕР10-05-002-02","Устройство перегородок из гипсокартонных листов (ГКЛ) по системе «КНАУФ» с одинарным металлическим каркасом и двухслойной обшивкой с обеих сторон (С 112): с одним дверным проемом","100 м2 перегородок (за вычетом проемов)",0.76849999999999996,null,null,null,null,0]
["2","ТЦ_01.6.01.02_78_7802348846_13.02.2024_02\nАналог  ТССЦ-101-2512    18,24/17,33=2%","Лист ГКЛВ-А-УК-3000-1200-12,5 мм, (2 листа, hобщ.=25 мм)","м2",172.53,null,null,null,null,{"$f":"G16+I16","v":0}]
["3","ТЦ_01.6.01.02_78_7802348846_22.02.2024_02\nАналог   ТССЦ-101-2509  11,37/12,56=2%","Лист ГКЛ-А-УК-3000-1200-12,5 мм, (2 листа, hобщ.=25 мм)","м2",172.53,null,null,null,null,0]
["4","ТССЦ-104-0150","Плиты из минеральной ваты: на синтетическом связующем М-75, (минеральные маты группы НГ с плотностью 40 кг/м³, h=75 мм, прим.)","м3",5.94,null,null,null,null,0]
["П2",null,null,null,null,null,null,null,null,0]
["5","ТЕР10-05-002-02","Устройство перегородок из гипсокартонных листов (ГКЛ) по системе «КНАУФ» с одинарным металлическим каркасом и двухслойной обшивкой с обеих сторон (С 112): с одним дверным проемом","100 м2 перегородок (за вычетом проемов)",2.02,null,null,null,null,0]
["6","ТЦ_01.6.01.02_77_9706006145_22.02.2024_02\nАналог  ТССЦ-101-2511   14,79/13,95=2%","Лист ГКЛВО-А-УК-3000-1200-12,5 мм, (2 листа, hобщ.=25 мм)","м2",906.98,null,null,null,null,0]
["7","ТССЦ-104-0150","Плиты из минеральной ваты: на синтетическом связующем М-75, (минеральные маты группы НГ с плотностью 40 кг/м³, h=100 мм, прим.)","м3",20.81,null,null,null,null,0]
["П3",null,null,null,null,null,null,null,null,0]
["8","ТЕР10-05-010-02","Облицовка стен по системе «КНАУФ» по одинарному металлическому каркасу из ПН и ПС профилей гипсокартонными листами в два слоя (С 626): с дверным проемом","100 м2 стен (за вычетом проемов)",1.25,null,null,null,null,0]
["9","ТЦ_01.6.01.02_78_7802348846_22.02.2024_02\nАналог  ТССЦ-101-2512    18,24/17,33=2%","Лист ГКЛ-А-УК-3000-1200-12,5 мм, (2 листа, hобщ.=25 мм)","м2",281.25,null,null,null,null,0]
["10","ТЕР26-01-036-02","Изоляция изделиями из волокнистых и зернистых материалов с креплением на клее и дюбелями холодных поверхностей: внутренних стен и перегородок","100 м2 поверхности",1.25,null,null,null,null,0]
["11","ТССЦ-104-0150","Плиты из минеральной ваты: на синтетическом связующем М-75, (минеральные маты группы НГ с плотностью 40 кг/м³, h=100 мм, прим.)","м3",12.88,null,null,null,null,0]
["12","ТССЦ-101-2797","Дюбель распорный с металлическим стержнем: 10х150 мм, (9 шт./м² при двухслойном утепл.)","10 шт.",112.5,null,null,null,null,0]
["Раздел 3. Установка дверных блоков и ворот. Трансбордер, (Спецификации по шифру 1632-2021-1.1,1.2,2.1.0-АР, Приложение к письму  ООО “Морстройтехнология” вх. №9С01-8000370513-MST-ETU-LET-ENG-00384 от 19.02.2024 г.)",null,null,null,null,null,null,null,null,0]
["Установка дверных блоков",null,null,null,null,null,null,null,null,0]
["13","ТЕР09-04-012-01","Установка металлических дверных блоков в готовые проемы","1 м2 проема",39.9,null,null,null,null,0]
["14","ТЦ_07.1.01.03_78_7841375755_27.02.2024_02","Дверной блок однопольный, металлический, остекленный, правая (7 эл.) левая (2 эл.) навеска 1000Х2100(h), с доводчиком","шт",4,null,null,null,null,{"$f":"G32+I32","v":0}]
["15","ТЦ_07.1.01.03_78_7841375755_27.02.2024_02","Дверной блок однопольный, металлический, остекленный, утеплённый, правая (14 эл.) левая (1 эл.) навеска 1000Х2100(h), с доводчиком","шт",15,null,null,null,null,0]
["16","ТЕР09-04-012-02","Установка дверного доводчика к металлическим дверям","1 шт.",19,null,null,null,null,0]
["17","ТЕР15-01-070-02","Облицовка: дверных проемов в наружных стенах откосной планкой из оцинкованной стали с полимерным покрытием с установкой наличников из оцинкованной стали с полимерным покрытием","1 м2 проемов",39.9,null,null,null,null,0]
["18","ТЕР09-04-013-03","Установка противопожарных дверей: однопольных остекленных","1 м2 проема",27.3,null,null,null,null,0]
["19","ТЦ_07.1.01.03_78_7841375755_27.02.2024_02","Дверной блок однопольный, металлический, остекленный, противопожарный, правая навеска 1000Х2100(h), EIS 60, с доводчиком и уплотнением\nпритворов","шт",5,null,null,null,null,0]
["20","ТЦ_07.1.01.03_78_7841375755_27.02.2024_02","Дверной блок однопольный, металлический, остекленный, противопожарный, правая\nнавеска1000Х2100(h), EIS 30, с доводчиком и уплотнением притворов","шт",8,null,null,null,null,0]
["21","ТЕР15-01-070-02","Облицовка: дверных проемов в наружных стенах откосной планкой из оцинкованной стали с полимерным покрытием с установкой наличников из оцинкованной стали с полимерным покрытием","1 м2 проемов",27.3,null,null,null,null,0]
["22","ТЕР10-01-039-03","Установка блоков в наружных и внутренних дверных проемах: в перегородках и деревянных нерубленых стенах, площадь проема до 3 м2","100 м2 проемов",0.15959999999999999,null,null,null,null,0]
["23","ТЦ_11.2.02.01_78_7810851080_06.03.2024_02","Дверной блок однопольный, деревянный, глухой, правая навеска 800Х2100(h)","шт",2,null,null,null,null,0]
["24","ТЦ_11.2.02.01_78_7810424032_06.03.2024_02","Дверной блок однопольный, деревянный, глухой, правая навеска 1000Х2100(h), с доводчиком","шт",6,null,null,null,null,0]
["25","ТЕР09-04-012-02","Установка дверного доводчика к металлическим дверям // прим.","1 шт.",6,null,null,null,null,0]
["26","ТССЦ-101-6899","Доводчик дверной гидравлический TS-68 с зубчатым приводом (нагрузка до 90 кг)","шт.",6,null,null,null,null,0]
["27","ТЕР10-01-039-05","Установка люков в перекрытиях, площадь проема до 2 м2","100 м2 проемов",3.8399999999999997E-2,null,null,null,null,0]
["28","ТЦ_11.2.02.01_78_7804356514_06.03.2024_02","Лаз металлический, противопожарный, 800Х1600(h), EIS 60, с доводчиком и уплотнением притворов. Низ 500 мм от пола","шт",3,null,null,null,null,0]
["29","ТЕР09-04-012-02","Установка дверного доводчика к металлическим дверям // прим.","1 шт.",3,null,null,null,null,0]
["30","ТССЦ-101-6899","Доводчик дверной гидравлический TS-68 с зубчатым приводом (нагрузка до 90 кг)","шт.",3,null,null,null,null,0]
["Установка ворот",null,null,null,null,null,null,null,null,0]
["31","ТЕР09-04-011-01","Монтаж каркасов ворот большепролетных зданий, ангаров и др. без механизмов открывания","1 т конструкций",6.6070000000000002,null,null,null,null,0]
["32","ТЕРм11-05-001-01","Механизм исполнительный, масса: до 20 кг","1 шт.",8,null,null,null,null,0]
["33","ТЦ_08.1.06.01_78_7814075047_25.06.2024_02","Ворота распашные с калиткой, металлические, утеплённые, 2950Х3000(h), (вес=55,6 кг/м²)","шт",1,null,null,null,null,0]
["34","ТЦ_11.2.02.01_77_7751024400_06.03.2024_02","Ворота распашные, металлические,\nостекленные, утеплённые, 4400Х4500(h), (вес=42,44 кг/м²)","шт",1,null,null,null,null,0]
["35","ТЦ_08.1.06.01_78_7819033805_06.03.2024_02","Ворота складчатые, металлические,\n5000Х4500(h), (вес=42,44 кг/м²)","шт",5,null,null,null,null,0]
["36","ТЦ_08.1.06.01_78_7814075047_25.06.2024_02","Ворота распашные, металлические, с калиткой, остекленные, утеплённые, 3000Х3000(h), (вес=55,6 кг/м²)","шт",1,null,null,null,null,0]
["Раздел 4. Установка оконных блоков. Трансбордер, (Спецификации по шифру 1632-2021-1.1,1.2,2.1.0-АР, Приложение к письму  ООО “Морстройтехнология” вх. №9С01-8000370513-MST-ETU-LET-ENG-00384 от 19.02.2024 г.)",null,null,null,null,null,null,null,null,0]
["37","ТЕР10-01-034-03","Установка в жилых и общественных зданиях оконных блоков из ПВХ профилей: поворотных (откидных, поворотно-откидных) с площадью проема до 2 м2 одностворчатых","100 м2 проемов",0.17599999999999999,null,null,null,null,0]
["38","ТЦ_59.1.09.04_78_7816539174_26.02.2024_02\nАналог  ТССЦ-203-0946    5029,91/4929,41=2%","ОК-4. Оп-П-1600х1000-ОЛ (6М1)-ПОТ-ГОСТ 34914-2022 (оконный блок из ПВХ профилей с поворотно-откидными створками и одинарным\nстеклом)","м2",17.600000000000001,null,null,null,null,{"$f":"G58+I58","v":0}]
["39","ТЕР15-01-070-01","Облицовка: оконных проемов в наружных стенах откосной планкой из оцинкованной стали с полимерным покрытием с устройством водоотлива оконного из оцинкованной стали с полимерным покрытием","1 м2 проемов",17.600000000000001,null,null,null,null,0]
["40","ТЕР09-03-022-04","Монтаж оконных фонарных покрытий из поликарбонатных и акриловых плит с боковыми планками, профилями и резиновыми прокладками","100 м2",4.04,null,null,null,null,0]
["41","ТЦ_25.3.06.01_47_4707044627_25.01.2024_02\nАналог  ТССЦ-101-5003    83,19/81,49=2%","Профилированный монолитный поликарбонат (прозрачный) 2000х1150х1 мм  Royal Plast  МП20(У)","м2",424.2,null,null,null,null,0]
["Раздел 5. Полы. Трансбордер, (Спецификации по шифру 1632-2021-1.1,1.2,2.1.0-АР, Приложение к письму  ООО “Морстройтехнология” вх. №9С01-8000370513-MST-ETU-LET-ENG-00384 от 19.02.2024 г.)",null,null,null,null,null,null,null,null,0]
["Тип 3.  S=181,4 м2",null,null,null,null,null,null,null,null,0]
["42","ТЕР11-01-015-07","Шлифовка бетонных или металлоцементных покрытий","100 м2 покрытия",1.8140000000000001,null,null,null,null,0]
["43","ТЕР11-01-052-01","Устройство полимерных наливных полов из полиуретана: с толщиной покрытия 2 мм, (упрочнение полиуретан. составами h=1 мм, прим.)","100 м2 пола",1.8140000000000001,null,null,null,null,0]
["Устройство кровли из кровельного профлиста учтено в разделе КМ",null,null,null,null,null,null,null,null,0]
["Цоколь",null,null,null,null,null,null,null,null,0]
["44","ТЕР11-01-015-07","Шлифовка бетонных или металлоцементных покрытий, (затирка поверхности цоколя, прим.)","100 м2 покрытия",0.871,null,null,null,null,0]
["45","ТЕР15-04-015-02","Окраска фасадов с люлек с подготовкой поверхности: силикатная, (прим.)","100 м2 фасада",0.87119999999999997,null,null,null,null,0]
["Раздел 8. Отмостка",null,null,null,null,null,null,null,null,0]
["46","ТЕР27-04-001-04","Устройство подстилающих и выравнивающих слоев оснований: из щебня, (подготовка из щебня h=90 мм)","100 м3 материала основания (в плотном теле)",0.15679999999999999,null,null,null,null,0]
["47","ТССЦ-408-0015","Щебень из природного камня для строительных работ марка: 800, фракция 20-40 мм","м3",19.760000000000002,null,null,null,null,0]
["48","ТЕР27-04-001-01","Устройство подстилающих и выравнивающих слоев оснований: из песка, (подготовка из песка h=150 мм)","100 м3 материала основания (в плотном теле)",0.26135999999999998,null,null,null,null,0]
["49","ТССЦ-408-0123","Песок природный для строительных: работ средний с крупностью зерен размером свыше 5 мм - до 5% по массе","м3",28.749600000000001,null,null,null,null,0]
["50","ТЕР06-01-001-20","Устройство ленточных фундаментов: бетонных","100 м3 бетона, бутобетона и железобетона в деле",0.17424000000000001,null,null,null,null,0]
["51","Прайс\nАналог  ТССЦ-401-0307    713,38/652,56=2%","Бетон  В15","м3",17.771999999999998,null,null,null,null,0]
["52","ТЕР06-01-015-10","Армирование подстилающих слоев и набетонок","1 т",0.48,null,null,null,null,0]
["53","ТЦ_08.4.02.05_78_7816587756_08.02.2024_02\nАналог  ТССЦ-101-3891    21,17/20,58=2%","Сетка арматурная 5Вр1 яч. 100х100 , (вес=2,75 кг/м²)","м2",174.24,null,null,null,null,0]
["54","ТЕР06-01-013-01","Устройство подливки толщиной  20 мм, (бетонная отмостка, hср.=(30+130)/2=80 мм, прим.)","100 м2 подливки под оборудование",1.7423999999999999,null,null,null,null,0]
["55","ТЕР06-01-013-02","На каждые 10 мм изменения толщины добавлять или исключать к расценке 06-01-013-01, (добавить 60 мм)","100 м2 подливки под оборудование",1.7423999999999999,null,null,null,null,{"$f":"G80+I80","v":0}]
["56","Прайс\nАналог  ТССЦ-401-0307    713,38/652,56=2%","Бетон  В15","м3",14.218,null,null,null,null,0]
["57","ТЕР27-06-011-01","Устройство швов расширения, (температурно-усадочный, прим.)","1000 м2 покрытия",0.17424000000000001,null,null,null,null,0]
["58","ТЕР11-01-015-08","Железнение цементных покрытий","100 м2 покрытия",1.7423999999999999,null,null,null,null,0]
["59","ТЕР27-02-010-02","Установка бортовых камней бетонных: при других видах покрытий","100 м бортового камня",1.7423999999999999,null,null,null,null,0]
["60","ТЦ_04.13.00.00_78_7842083836_15.02.2024_02\nАналог  ТССЦ-403-8023     19,93/18,59=2%","Камни бортовые БР100.20.8","шт",174,null,null,null,null,0]
["61","Прайс\nТех. часть ТЕР27. Автомобильные дороги, Приложение 27.3, п. 3.8а","Бетон  В15, (с учетом сечения k=0,86)","м3",8.8409999999999993,null,null,null,null,0]
["62","ТССЦ-402-0004\nТех. часть ТЕР27. Автомобильные дороги, Приложение 27.3, п. 3.8б","Раствор готовый кладочный цементный марки: 100, (с учетом сечения k=0,33)","м3",3.4500000000000003E-2,null,null,null,null,0]
[null,null,"Всего, руб. с НДС",null,null,null,{"$f":"SUM(G15:G87)","v":0},null,{"$f":"SUM(I15:I87)","v":0},{"$f":"SUM(J15:J87)","v":0}]
[null,null,"Всего, руб. без НДС",null,null,null,{"$f":"G88/1.2","v":0},null,{"$f":"I88/1.2","v":0},{"$f":"J88/1.2","v":0}]

{"sheet":"1632-2021-2.2.3-АР","index":11,"n_rows":107,"n_cols":10,"rows_kept":107,"cut":false,"hidden":false,"merged":[]}
[]
["Терминал по перевалке минеральных удобрений в морском торговом порту Усть-Луга. Береговые объекты терминала"]
["(наименование стройки)"]
["1632-2021-2.2.3-АР_07.04.022-П-00-00"]
["(локальная смета)"]
["на Архитектурные решения, Пересыпная станция № 3"]
["(наименование работ и затрат, наименование объекта)"]
[null,"Основание:","1632-2021-2.2.3-АР_2_0_RU_IFC"]
[]
["№ п/п","Обоснование","Наименование работ и затрат","Ед. изм.","Кол-во","Цена за ед.измерения работ, руб. с НДС","Всего, стоимость работ,руб. с НДС","Цена за ед.измерения материалов, руб. с НДС","Всего, стоимость материалов, руб. с НДС","Итого, руб. с НДС"]
["1","2","3","4","5",6,7,8,9,10]
["Раздел 2. Кровля",null,null,null,null,null,null,null,null,{"$f":"G12+I12","v":0}]
["Монтаж кровельного покрытия  из профнастила учтен в разделе КМ",null,null,null,null,null,null,null,null,0]
["Кровля плоская",null,null,null,null,null,null,null,null,0]
["1","ТЕР11-01-009-02","Устройство тепло- и звукоизоляции сплошной из плит: древесноволокнистых // прим. ЦСП","100 м2 изолируемой поверхности",4.54,null,null,null,null,0]
["2","ТЦ_01.6.01.10_78_7810994931_08.02.2024_02","ЦСП 13200х1200х8","м2",935.24,null,null,null,null,{"$f":"G16+I16","v":0}]
["3","ТЕР12-01-002-09","Устройство кровель плоских из наплавляемых материалов: в два слоя","100 м2 кровли",4.54,null,null,null,null,0]
["4","ТЦ_12.0.00.00_78_7826181040_08.02.2024_02","Техноэласт Пламя Стоп","м2",517.55999999999995,null,null,null,null,0]
["5","ТЦ_12.0.00.00_78_7826181040_08.02.2024_02","Техноэласт ЭПП","м2",526.64,null,null,null,null,0]
["6","ТЕР12-01-009-02","Устройство желобов: подвесных","100 м желобов",0.32700000000000001,null,null,null,null,0]
["7","ТЦ_12.1.01.00_78_7804606806_25.01.2024_02","Желоб водосточный D185х3000","шт",11,null,null,null,null,0]
["8","ТЦ_12.1.01.00_78_7804606806_25.01.2024_02","Держатель желоба","шт",54.5,null,null,null,null,0]
["9","ТЕР12-01-008-01","Устройство обделок на фасадах (наружные подоконники, пояски, балконы и др.): включая водосточные трубы, с изготовлением элементов труб// прим.","100 м2фасада (без вычета проемов)",4.54,null,null,null,null,0]
["10","ТЕР12-01-008-02","Устройство обделок на фасадах (наружные подоконники, пояски, балконы и др.): без водосточных труб","100 м2фасада (без вычета проемов)",-4.54,null,null,null,null,0]
["11","ТЦ_12.1.01.00_78_7804606806_25.01.2024_02","Труба водосточная D150х2000мм","шт",49,null,null,null,null,0]
["12","ТЦ_12.1.01.00_78_7804606806_25.01.2024_02","Крепление трубы","шт",98,null,null,null,null,0]
["13","ТЦ_12.1.01.00_78_7804606806_25.01.2024_02","Колено гофрированное","шт",16,null,null,null,null,0]
["14","ТЦ_12.1.01.00_78_7804606806_25.01.2024_02","Заглушка","шт",6,null,null,null,null,0]
["15","ТЦ_12.1.01.00_78_7804606806_25.01.2024_02","Воронки выпускные D185/150","шт",4,null,null,null,null,0]
["16","ТЕР12-01-012-01","Ограждение кровель перилами // прим.","100 м ограждения",0.26,null,null,null,null,0]
["17","ТЦ_12.1.01.00_78_7804606806_25.01.2024_02","Снегозадержатель трубчатый (L=3 м. в комплекте с креплением)","шт",8.6666670000000003,null,null,null,null,0]
["Раздел 3. Окна"]
["18","ТЕР10-01-034-05","Установка в жилых и общественных зданиях оконных блоков из ПВХ профилей: поворотных (откидных, поворотно-откидных) с площадью проема до 2 м2 двухстворчатых","100 м2 проемов",0.1512,null,null,null,null,0]
["19","ТЦ_07.1.02.00_78_7840318754_30.01.2024_02","ОК-1.  1200х1400","шт",9,null,null,null,null,0]
["20","ТЕР10-01-034-03","Установка в жилых и общественных зданиях оконных блоков из ПВХ профилей: поворотных (откидных, поворотно-откидных) с площадью проема до 2 м2 одностворчатых","100 м2 проемов",0.23799999999999999,null,null,null,null,0]
["21","ТЦ_07.1.02.00_78_7840318754_30.01.2024_02","ОК-2.  1000х1400","шт",17,null,null,null,null,0]
["22","ТЕР15-01-070-01","Облицовка: оконных проемов в наружных стенах откосной планкой из оцинкованной стали с полимерным покрытием с устройством водоотлива оконного из оцинкованной стали с полимерным покрытием","1 м2 проемов",38.92,null,null,null,null,0]
["Раздел 4. Дверные проемы и ворота"]
["23","ТЕР09-04-012-01","Установка металлических дверных блоков в готовые проемы","1 м2 проема",13.335000000000001,null,null,null,null,0]
["24","ТЦ_07.1.01.03_78_7810842826_14.05.2025_02","Дверь стальная внутренняя, наружная  1000х2100","шт",5,null,null,null,null,0]
["25","ТЦ_07.1.01.03_78_7810842826_14.05.2025_02","Дверь стальная внутренняя, наружная 1350х2100","шт",1,null,null,null,null,0]
["26","ТЕР09-04-013-01","Установка противопожарных дверей: однопольных глухих","1 м2 проема",27.3,null,null,null,null,0]
["27","ТЦ_07.1.01.03_78_7810842826_14.05.2025_02","Дверь противопожарная металлическая: однопольная ДПС-01/60, размером 1000х2100 мм","шт",13,null,null,null,null,0]
["28","ТЕР15-01-070-02","Облицовка: дверных проемов в наружных стенах откосной планкой из оцинкованной стали с полимерным покрытием с установкой наличников из оцинкованной стали с полимерным покрытием","1 м2 проемов",14.335000000000001,null,null,null,null,0]
["Ворота"]
["29","ТЕР09-04-011-01","Монтаж каркасов ворот большепролетных зданий, ангаров и др. без механизмов открывания","1 т конструкций",1.4219999999999999,null,null,null,null,{"$f":"G46+I46","v":0}]
["30","ТЕРм11-05-001-01","Механизм исполнительный, масса: до 20 кг","1 шт.",2,null,null,null,null,0]
["31","ТЦ_01.16.00.00_78_7810842826_14.05.2025_02","Ворота распашные металлические, с порогом открыванием наружу,с калиткой EI60 3100х3100мм","шт",1,null,null,null,null,0]
["32","ТЦ_01.16.00.00_78_7841375755_14.05.2025_02","Ворота распашные металлические, с порогом утепленные,  открыванием наружу  EI60 2600х2300мм","шт",1,null,null,null,null,0]
["Раздел 5. Полы"]
["Тип 1.  S=331,8 м2"]
["33","ТЕР11-01-011-03","Устройство стяжек: бетонных толщиной 20 мм","100 м2 стяжки",3.3180000000000001,null,null,null,null,0]
["34","ТЕР11-01-011-04","Устройство стяжек: на каждые 5 мм изменения толщины стяжки добавлять или исключать к расценке 11-01-011-03 // до толщ. 250 мм","100 м2 стяжки",3.3180000000000001,null,null,null,null,0]
["35","ТЦ_59.1.04.01_47_4705078395_08.02.2024_02","Бетон  В22,5","м3",84.608999999999995,null,null,null,null,0]
["36","ТЕР06-01-015-10","Армирование подстилающих слоев и набетонок","1 т",0.58099999999999996,null,null,null,null,0]
["37","ТЦ_08.4.02.05_66_6686134976_08.02.2024_02","Сетка арм. 100х100 4Вр1","м2",331.8,null,null,null,null,0]
["38","ТЕР11-01-020-03","Устройство покрытий поливинилацетатных: толщиной 3 мм // прим. покрытие полимерное","100 м2 покрытия",3.3180000000000001,null,null,null,null,0]
["Тип 2.  S=12,1 м2"]
["39","ТЕР11-01-009-01","Устройство тепло- и звукоизоляции сплошной из плит: или матов минераловатных или стекловолокнистых","100 м2 изолируемой поверхности",0.121,null,null,null,null,0]
["40","ТССЦ-104-0496","Плиты минераловатные \"Руф Баттс\" ROCKWOOL","м3",1.25,null,null,null,null,0]
["41","ТЕР11-01-050-01","Устройство пароизоляции из полиэтиленовой пленки в один слой насухо","100 м2 поверхности",0.121,null,null,null,null,0]
["42","ТЕР11-01-011-03","Устройство стяжек: бетонных толщиной 20 мм","100 м2 стяжки",0.121,null,null,null,null,0]
["43","ТЕР11-01-011-04","Устройство стяжек: на каждые 5 мм изменения толщины стяжки добавлять или исключать к расценке 11-01-011-03 // до 150 мм","100 м2 стяжки",0.121,null,null,null,null,0]
["44","ТЦ_59.1.04.01_47_4705078395_08.02.2024_02","Бетон  В22,5","м3",1.851,null,null,null,null,0]
["45","ТЕР06-01-015-10","Армирование подстилающих слоев и набетонок","1 т",2.1174999999999999E-2,null,null,null,null,0]
["46","ТЦ_08.4.02.05_66_6686134976_08.02.2024_02","Сетка арм. 100х100 4Вр1","м2",12.1,null,null,null,null,0]
["47","ТЕР11-01-020-03","Устройство покрытий поливинилацетатных: толщиной 3 мм // прим. покрытие полимерное","100 м2 покрытия",0.121,null,null,null,null,0]
["Тип 3.  S=558,8 м2"]
["48","ТЕР11-01-011-03","Устройство стяжек: бетонных толщиной 20 мм","100 м2 стяжки",5.5880000000000001,null,null,null,null,0]
["49","ТЕР11-01-011-04","Устройство стяжек: на каждые 5 мм изменения толщины стяжки добавлять или исключать к расценке 11-01-011-03 // толщ. 30 мм","100 м2 стяжки",5.5880000000000001,null,null,null,null,0]
["50","ТЦ_59.1.04.01_47_4705078395_08.02.2024_02","Бетон  В22,5","м3",17.099,null,null,null,null,{"$f":"G71+I71","v":0}]
["51","ТЕР11-01-020-03","Устройство покрытий поливинилацетатных: толщиной 3 мм // прим. покрытие полимерное","100 м2 покрытия",5.5880000000000001,null,null,null,null,0]
["Тип 4.  S=62,7 м2"]
["52","ТЕР11-01-015-07","Шлифовка бетонных или металлоцементных покрытий // прим.","100 м2 покрытия",0.627,null,null,null,null,0]
["53","ТЕР11-01-015-08","Железнение цементных покрытий // прим.","100 м2 покрытия",0.627,null,null,null,null,0]
["Тип 5.  S=32,8 м2"]
["54","ТЕР11-01-011-03","Устройство стяжек: бетонных толщиной 20 мм","100 м2 стяжки",0.32800000000000001,null,null,null,null,0]
["55","ТЕР11-01-011-04","Устройство стяжек: на каждые 5 мм изменения толщины стяжки добавлять или исключать к расценке 11-01-011-03 // толщ.250 мм","100 м2 стяжки",0.32800000000000001,null,null,null,null,0]
["56","ТЦ_59.1.04.01_47_4705078395_08.02.2024_02","Бетон  В22,5","м3",8.3640000000000008,null,null,null,null,0]
["57","ТЕР09-03-049-01","Монтаж съемных металлических полов из плит размером 500х500 мм: стальных штампованных","100 м2 пола",0.32800000000000001,null,null,null,null,0]
["58","ТЦ_11.2.09.08_77_7720563313_21.05.2025_02","Фальшпол 32 8 м2","компл.",1,null,null,null,null,0]
["Тип 6.  S=47 м2"]
["59","ТЕР11-01-009-01","Устройство тепло- и звукоизоляции сплошной из плит: или матов минераловатных или стекловолокнистых","100 м2 изолируемой поверхности",0.47,null,null,null,null,0]
["60","ТССЦ-104-0496","Плиты минераловатные \"Руф Баттс\" ROCKWOOL","м3",4.84,null,null,null,null,0]
["61","ТЕР11-01-050-01","Устройство пароизоляции из полиэтиленовой пленки в один слой насухо","100 м2 поверхности",0.47,null,null,null,null,0]
["62","ТЕР06-01-015-10","Армирование подстилающих слоев и набетонок","1 т",8.2250000000000004E-2,null,null,null,null,0]
["63","ТЦ_08.4.02.05_66_6686134976_08.02.2024_02","Сетка арм. 100х100 4Вр1","м2",47,null,null,null,null,0]
["64","ТЕР11-01-011-03","Устройство стяжек: бетонных толщиной 20 мм","100 м2 стяжки",0.47,null,null,null,null,0]
["65","ТЕР11-01-011-04","Устройство стяжек: на каждые 5 мм изменения толщины стяжки добавлять или исключать к расценке 11-01-011-03","100 м2 стяжки",0.47,null,null,null,null,0]
["66","ТЦ_59.1.04.01_47_4705078395_08.02.2024_02","Бетон  В22,5","м3",5.9930000000000003,null,null,null,null,0]
["67","ТЕР11-01-020-03","Устройство покрытий поливинилацетатных: толщиной 3 мм // прим. покрытие полимерное","100 м2 покрытия",0.47,null,null,null,null,0]
["Раздел 6. Отделка"]
["Цоколь"]
["68","ТЕР11-01-015-07","Шлифовка бетонных или металлоцементных покрытий // прим. затирка поверхности цоколя","100 м2 покрытия",2.3363999999999998,null,null,null,null,0]
["69","ТЕР15-04-015-02","Окраска фасадов с люлек с подготовкой поверхности: силикатная // прим.","100 м2 фасада",2.3363999999999998,null,null,null,null,0]
["Окраска конструкций стен и потолков из профлиста, учтена в сметах к разделу КМ"]
["Раздел 7. Отмостка  ( 18,01+5,2+15,435*2+2,31+3+1,7+1,7+3,175+0,915+5,61-3,1+21,6+7+7+21,6, ширина 1м.п.)"]
["70","ТЕР27-04-001-04","Устройство подстилающих и выравнивающих слоев оснований: из щебня","100 м3 материала основания (в плотном теле)",0.37980000000000003,null,null,null,null,0]
["71","ТССЦ-408-0015","Щебень из природного камня для строительных работ марка: 800, фракция 20-40 мм","м3",47.85,null,null,null,null,{"$f":"G99+I99","v":0}]
["72","ТЕР06-01-013-01","Устройство подливки толщиной  20 мм // прим. бетонное основание","100 м2 подливки под оборудование",1.2659,null,null,null,null,0]
["73","ТЕР06-01-013-02","На каждые 10 мм изменения толщины добавлять или исключать к расценке 06-01-013-01 // до 60 мм","100 м2 подливки под оборудование",1.2659,null,null,null,null,0]
["74","Прайс","Бетон  В15","м3",7.7469999999999999,null,null,null,null,0]
["75","ТЕР06-01-015-10","Армирование подстилающих слоев и набетонок","1 т",0.2215,null,null,null,null,0]
["76","ТЦ_08.4.02.05_66_6686134976_08.02.2024_02","Сетка арм. 100х100 4Вр1","м2",126.59,null,null,null,null,0]
["77","ТЕР11-01-019-01","Устройство покрытий асфальтобетонных: литых толщиной 25 мм","100 м2 покрытия",1.2659,null,null,null,null,0]
[null,null,"Всего, руб. с НДС",null,null,null,{"$f":"SUM(G15:G105)","v":0},null,{"$f":"SUM(I15:I105)","v":0},{"$f":"SUM(J15:J105)","v":0}]
[null,null,"Всего, руб. без НДС",null,null,null,{"$f":"G106/1.2","v":0},null,{"$f":"I106/1.2","v":0},{"$f":"J106/1.2","v":0}]

{"sheet":"1-1632-2021-2.1.2,2.1.7-АР1","index":12,"n_rows":29,"n_cols":10,"rows_kept":29,"cut":false,"hidden":false,"merged":[]}
[]
["Терминал по перевалке минеральных удобрений в морском торговом порту Усть-Луга. Береговые объекты терминала"]
["(наименование стройки)"]
["1632-2021-2.1.2, 2.1.7-АР1_07.04.041-П-00-00"]
["(локальная смета)"]
["на Архитектурные решения, 07.04.041 Конвейерная галерея №2 (код SAP 01.02.010) код ГП 2.1.2"]
["(наименование работ и затрат, наименование объекта)"]
[null,"Основание:","1632-2021-2.1.2, 2.1.7-АР1_0_0_RU_IFС"]
[]
["№ п/п","Обоснование","Наименование работ и затрат","Ед. изм.","Кол-во","Цена за ед.измерения работ, руб. с НДС","Всего, стоимость работ,руб. с НДС","Цена за ед.измерения материалов, руб. с НДС","Всего, стоимость материалов, руб. с НДС","Итого, руб. с НДС"]
["1","2","3","4","5",6,7,8,9,10]
["Раздел 1. Кровля",null,null,null,null,null,null,null,null,{"$f":"G12+I12","v":0}]
["Монтаж кровельного покрытия  из профнастила учтен в разделе КМ",null,null,null,null,null,null,null,null,0]
["1632-2021-2.1.2, 2.1.7-АР1.  ( в осях 1-7 )",null,null,null,null,null,null,null,null,0]
["1","ТЕР11-01-009-02","Устройство тепло- и звукоизоляции сплошной из плит: древесноволокнистых // прим. ЦСП в 2 слоя","100 м2 изолируемой поверхности",1.4590000000000001,null,null,null,null,0]
["2","ТЦ_01.6.01.10_78_7810994931_08.02.2024_02","ЦСП 13200х1200х8","м2",300.55,null,null,null,null,0]
["3","ТЕР12-01-002-09","Устройство кровель плоских из наплавляемых материалов: в два слоя","100 м2 кровли",1.4590000000000001,null,null,null,null,0]
["4","ТЦ_12.0.00.00_78_7826181040_08.02.2024_02","Техноэласт Пламя Стоп","м2",166.33,null,null,null,null,0]
["5","ТЦ_12.0.00.00_78_7802585999_08.02.2024_02","Техноэласт ЭПП","м2",169.24,null,null,null,null,0]
["Раздел 2. Дверные проемы"]
["1632-2021-2.1.2, 2.1.7-АР1.  ( в осях 1-7 )"]
["6","ТЕР09-04-012-01","Установка металлических дверных блоков в готовые проемы","1 м2 проема",6.3,null,null,null,null,0]
["7","ТЦ_07.1.01.03_78_7841375755_25.01.2024_02","Дверь стальная наружная  (левая, правая) 1000х2100","шт",1,null,null,null,null,0]
["8","ТЦ_07.1.01.03_78_7841375755_25.01.2024_02","Дверь стальная внутренняя  (правая) 1000х2100","шт",2,null,null,null,null,0]
["9","ТССЦ-101-0961","Закрыватель дверной гидравлический рычажный в алюминиевом корпусе","шт.",3,null,null,null,null,0]
["10","ТССЦ-101-6976","Замок электромагнитный универсальный сдвиговый AL-400S","шт.",3,null,null,null,null,0]
["11","ТЕР15-01-070-02","Облицовка: дверных проемов в наружных стенах откосной планкой из оцинкованной стали с полимерным покрытием с установкой наличников из оцинкованной стали с полимерным покрытием","1 м2 проемов",6.3,null,null,null,null,0]
[null,null,"Всего, руб. с НДС",null,null,null,{"$f":"SUM(G12:G27)","v":0},null,{"$f":"SUM(I12:I27)","v":0},{"$f":"SUM(J12:J27)","v":0}]
[null,null,"Всего, руб. без НДС",null,null,null,{"$f":"G28/1.2","v":0},null,{"$f":"I28/1.2","v":0},{"$f":"J28/1.2","v":0}]

{"sheet":"1632-2021-2.1.11-АР","index":13,"n_rows":32,"n_cols":10,"rows_kept":32,"cut":false,"hidden":false,"merged":[]}
[]
["Терминал по перевалке минеральных удобрений в морском торговом порту Усть-Луга. Береговые объекты терминала"]
["(наименование стройки)"]
["1632-2021-2.1.11-АР_07.04.050-П-00-00"]
["(локальная смета)"]
["на Архитектурные решения, 07.04.050 Конвейерная галерея №11 (код SAP 01.02.008) код ГП 2.1.11"]
["(наименование работ и затрат, наименование объекта)"]
[null,"Основание:","1632-2021-2.1.11-АР_0_0_RU_IFC"]
[]
["№ п/п","Обоснование","Наименование работ и затрат","Ед. изм.","Кол-во","Цена за ед.измерения работ, руб. с НДС","Всего, стоимость работ,руб. с НДС","Цена за ед.измерения материалов, руб. с НДС","Всего, стоимость материалов, руб. с НДС","Итого, руб. с НДС"]
["1","2","3","4","5",6,7,8,9,10]
["Раздел 2. Дверные проемы",null,null,null,null,null,null,null,null,{"$f":"G12+I12","v":0}]
["6","ТЕР09-04-012-01","Установка металлических дверных блоков в готовые проемы","1 м2 проема",8.4,null,null,null,null,0]
["7","ТЦ_07.1.01.03_50_5020088027_05.08.2024_02\nАналог ТССЦ-203-8146 1429,18/1397,12=2%","Дверь ДСН 1000-2100","шт",4,null,null,null,null,{"$f":"G14+I14","v":0}]
["8","ТЕР15-01-070-02","Облицовка: дверных проемов в наружных стенах откосной планкой из оцинкованной стали с полимерным покрытием с установкой наличников из оцинкованной стали с полимерным покрытием","1 м2 проемов",8.4,null,null,null,null,0]
["Раздел 3. Снегозадерживающие устройства",null,null,null,null,null,null,null,null,0]
["9","ТЕР12-01-012-01","Ограждение кровель перилами","100 м ограждения",1.84,null,null,null,null,0]
["10","ТЦ_11.3.02.02_78_7804606806_25.01.2024_02\nАналог ТССЦ-101-7317  128,60/126,01=2%","Металлическое ограждение","м",184,null,null,null,null,0]
["Раздел 4. Водосточная система",null,null,null,null,null,null,null,null,0]
["11","ТЕР12-01-009-02","Устройство желобов: подвесных","100 м желобов",1.86,null,null,null,null,0]
["12","ТЦ_12.1.01.05_78_7804550906_25.01.2024_02\nАналог ТССЦ-203-0960 5219,18/5114,28=2%","Водосточный желоб  д.185х3000","м",186,null,null,null,null,0]
["13","ТЦ_12.1.01.05_78_7804550906_25.01.2024_02\nАналог ТССЦ-203-0960 5219,18/5114,28=2%","185 мм Крюк желоба под профлист на болтовом\nсоединении RAL 7004\nМебельный болт М8х30 - 2 шт; Гайка М8 - 2 шт;\nШайба М8 - 2\nшт; Шайба уплотнительная - 2 шт","шт",186,null,null,null,null,0]
["14","ТЕР12-01-008-01","Устройство обделок на фасадах (наружные подоконники, пояски, балконы и др.): включая водосточные трубы, с изготовлением элементов труб","100 м2фасада (без вычета проемов)",4.4249999999999998,null,null,null,null,0]
["15","ТЕР12-01-008-02","Устройство обделок на фасадах (наружные подоконники, пояски, балконы и др.): без водосточных труб","100 м2фасада (без вычета проемов)",-4.4249999999999998,null,null,null,null,0]
["16","ТЦ_12.1.01.05_78_7804550906_25.01.2024_02\nАналог ТССЦ-203-0960 5219,18/5114,28=2%","150 мм Труба 3000 мм RAL 7004","м",228,null,null,null,null,0]
["17","ТЦ_12.1.01.05_78_7804550906_25.01.2024_02\nАналог ТССЦ-203-0960 5219,18/5114,28=2%","150 мм Охват на площадке (прут- 10х100мм;\nплощадка- 2,5х100х50мм) (черная полоса) RAL\n7004\nБолт 6х30 - 2 шт; Гайка М6 - 2 шт; Шайба М6 - 4\nшт","шт",228,null,null,null,null,0]
["18","ТЦ_12.1.01.05_78_7804550906_25.01.2024_02\nАналог ТССЦ-203-0960 5219,18/5114,28=2%","150 мм Труба 3000 мм RAL 7004","м",228,null,null,null,null,0]
["19","ТЦ_12.1.01.05_78_7804550906_25.01.2024_02\nАналог ТССЦ-203-0960 5219,18/5114,28=2%","150 мм Охват на площадке (прут- 10х100мм;\nплощадка- 2,5х100х50мм) (черная полоса) RAL\n7004\nБолт 6х30 - 2 шт; Гайка М6 - 2 шт; Шайба М6 - 4\nшт","шт",228,null,null,null,null,0]
["20","ТЕР16-07-002-01","Установка воронок водосточных","1 воронка",10,null,null,null,null,0]
["21","ТЦ_12.1.01.05_78_7804550906_25.01.2024_02\nАналог ТССЦ-203-0960 5219,18/5114,28=2%","150 мм Воронка под желоб (верх 185мм.) RAL\n7004Водосточный желоб  д.185х3000","шт",10,null,null,null,null,0]
[null,null,"Всего, руб. с НДС",null,null,null,{"$f":"SUM(G12:G30)","v":0},null,{"$f":"SUM(I12:I30)","v":0},{"$f":"SUM(J12:J30)","v":0}]
[null,null,"Всего, руб. без НДС",null,null,null,{"$f":"G31/1.2","v":0},null,{"$f":"I31/1.2","v":0},{"$f":"J31/1.2","v":0}]

{"sheet":"1632-2021-2.1.2,2.1.7-АР3","index":14,"n_rows":30,"n_cols":10,"rows_kept":30,"cut":false,"hidden":false,"merged":[]}
[]
["Терминал по перевалке минеральных удобрений в морском торговом порту Усть-Луга. Береговые объекты терминала"]
["(наименование стройки)"]
["1632-2021-2.1.2, 2.1.7-АР3_07.04.041-П-00-00"]
["(локальная смета)"]
["на Архитектурные решения, 07.04.041 Конвейерная галерея №2 (код SAP 01.02.010) код ГП 2.1.2"]
["(наименование работ и затрат, наименование объекта)"]
[null,"Основание:","1632-2021-2.1.2, 2.1.7-АР1_0_0_RU_IFС"]
[]
["№ п/п","Обоснование","Наименование работ и затрат","Ед. изм.","Кол-во","Цена за ед.измерения работ, руб. с НДС","Всего, стоимость работ,руб. с НДС","Цена за ед.измерения материалов, руб. с НДС","Всего, стоимость материалов, руб. с НДС","Итого, руб. с НДС"]
["1","2","3","4","5",6,7,8,9,10]
["Раздел 2. Кровля",null,null,null,null,null,null,null,null,{"$f":"G12+I12","v":0}]
["Монтаж кровельного покрытия  из профнастила учтен в разделе КМ",null,null,null,null,null,null,null,null,0]
["1632-2021-2.1.2, 2.1.7-АР3.  ( в осях 15-23 )",null,null,null,null,null,null,null,null,0]
["1","ТЕР11-01-009-02","Устройство тепло- и звукоизоляции сплошной из плит: древесноволокнистых // прим. ЦСП в 2 слоя","100 м2 изолируемой поверхности",1.379,null,null,null,null,0]
["2","ТЦ_01.6.01.10_78_7810994931_08.02.2024_02","ЦСП 13200х1200х8","м2",284.07,null,null,null,null,0]
["3","ТЕР12-01-002-09","Устройство кровель плоских из наплавляемых материалов: в два слоя","100 м2 кровли",1.379,null,null,null,null,0]
["4","ТЦ_12.0.00.00_78_7826181040_08.02.2024_02","Техноэласт Пламя Стоп","м2",157.21,null,null,null,null,0]
["5","ТЦ_12.0.00.00_78_7802585999_08.02.2024_02","Техноэласт ЭПП","м2",159.96,null,null,null,null,0]
["Раздел 3. Дверные проемы"]
["1632-2021-2.1.2, 2.1.7-АР3.  ( в осях 15-23 )"]
["6","ТЕР09-04-012-01","Установка металлических дверных блоков в готовые проемы","1 м2 проема",4.2,null,null,null,null,0]
["7","ТЦ_07.1.01.03_78_7841375755_25.01.2024_02","Дверь стальная наружная 1000х2100","шт",2,null,null,null,null,0]
["8","ТЕР09-04-013-01","Установка противопожарных дверей: однопольных глухих","1 м2 проема",2.1,null,null,null,null,0]
["9","ТЦ_07.1.01.03_78_7841375755_25.01.2024_02","Дверь противопожарная металлическая: однопольная ДПМ-01/30, размером 1000х2100 мм","шт",1,null,null,null,null,0]
["10","ТССЦ-101-0961","Закрыватель дверной гидравлический рычажный в алюминиевом корпусе","шт.",3,null,null,null,null,0]
["11","ТССЦ-101-6976","Замок электромагнитный универсальный сдвиговый AL-400S","шт.",3,null,null,null,null,0]
["12","ТЕР15-01-070-02","Облицовка: дверных проемов в наружных стенах откосной планкой из оцинкованной стали с полимерным покрытием с установкой наличников из оцинкованной стали с полимерным покрытием","1 м2 проемов",6.3,null,null,null,null,0]
[null,null,"Всего, руб. с НДС",null,null,null,{"$f":"SUM(G15:G28)","v":0},null,{"$f":"SUM(I15:I28)","v":0},{"$f":"SUM(J15:J28)","v":0}]
[null,null,"Всего, руб. без НДС",null,null,null,{"$f":"G29/1.2","v":0},null,{"$f":"I29/1.2","v":0},{"$f":"J29/1.2","v":0}]

{"sheet":"1632-2021-2.1.2,2.1.7-АР2","index":15,"n_rows":30,"n_cols":10,"rows_kept":30,"cut":false,"hidden":false,"merged":[]}
[]
["Терминал по перевалке минеральных удобрений в морском торговом порту Усть-Луга. Береговые объекты терминала"]
["(наименование стройки)"]
["1632-2021-2.1.2, 2.1.7-АР2-07.04.041-П-00-00"]
["(локальная смета)"]
["на Архитектурные решения, 07.04.041 Конвейерная галерея №2 (код SAP 01.02.010) код ГП 2.1.2"]
["(наименование работ и затрат, наименование объекта)"]
[null,"Основание:","1632-2021-2.1.2, 2.1.7-АР1_0_0_RU_IFС"]
[]
["№ п/п","Обоснование","Наименование работ и затрат","Ед. изм.","Кол-во","Цена за ед.измерения работ, руб. с НДС","Всего, стоимость работ,руб. с НДС","Цена за ед.измерения материалов, руб. с НДС","Всего, стоимость материалов, руб. с НДС","Итого, руб. с НДС"]
["1","2","3","4","5",6,7,8,9,10]
["Раздел 2. Кровля",null,null,null,null,null,null,null,null,{"$f":"G12+I12","v":0}]
["Монтаж кровельного покрытия  из профнастила учтен в разделе КМ",null,null,null,null,null,null,null,null,0]
["1632-2021-2.1.2, 2.1.7-АР2.  ( в осях 8-14 )",null,null,null,null,null,null,null,null,0]
["1","ТЕР11-01-009-02","Устройство тепло- и звукоизоляции сплошной из плит: древесноволокнистых // прим. ЦСП","100 м2 изолируемой поверхности",1.32,null,null,null,null,0]
["2","ТЦ_01.6.01.10_78_7810994931_08.02.2024_02\nАналог ТССЦ-101-5068 25,77/24,64=2%","ЦСП 13200х1200х8","м2",271.92,null,null,null,null,0]
["3","ТЕР12-01-002-09","Устройство кровель плоских из наплавляемых материалов: в два слоя","100 м2 кровли",1.32,null,null,null,null,0]
["4","ТЦ_12.0.00.00_78_7826181040_08.02.2024_02\nАналог ТССЦ-101-4724 26,31/25,55=2%","Техноэласт Пламя Стоп","м2",150.47999999999999,null,null,null,null,0]
["5","ТЦ_12.0.00.00_78_7802585999_08.02.2024_02\nАналог ТССЦ-101-4702 22,34/21,66=3%","Техноэласт ЭПП","м2",153.12,null,null,null,null,0]
["Раздел 3. Дверные проемы"]
["1632-2021-2.1.2, 2.1.7-АР2.  ( в осях 8-14 )"]
["6","ТЕР09-04-012-01","Установка металлических дверных блоков в готовые проемы","1 м2 проема",4.2,null,null,null,null,0]
["7","ТЦ_07.1.01.03_78_7841375755_25.01.2024_02","Дверь стальная наружная  (правая) 1000х2100","шт",2,null,null,null,null,0]
["8","ТЕР09-04-013-01","Установка противопожарных дверей: однопольных глухих","1 м2 проема",2.1,null,null,null,null,0]
["9","ТЦ_07.1.01.03_78_7841375755_25.01.2024_02","Дверь противопожарная металлическая: однопольная ДПМ-01/30, размером 1000х2100 мм","шт",1,null,null,null,null,0]
["10","ТССЦ-101-0961","Закрыватель дверной гидравлический рычажный в алюминиевом корпусе","шт.",3,null,null,null,null,0]
["11","ТССЦ-101-6976","Замок электромагнитный универсальный сдвиговый AL-400S","шт.",3,null,null,null,null,0]
["12","ТЕР15-01-070-02","Облицовка: дверных проемов в наружных стенах откосной планкой из оцинкованной стали с полимерным покрытием с установкой наличников из оцинкованной стали с полимерным покрытием","1 м2 проемов",6.3,null,null,null,null,0]
[null,null,"Всего, руб. с НДС",null,null,null,{"$f":"SUM(G12:G28)","v":0},null,{"$f":"SUM(I12:I28)","v":0},{"$f":"SUM(J12:J28)","v":0}]
[null,null,"Всего, руб. без НДС",null,null,null,{"$f":"G29/1.2","v":0},null,{"$f":"I29/1.2","v":0},{"$f":"J29/1.2","v":0}]

{"sheet":"1632-2021-3.1-АС","index":16,"n_rows":70,"n_cols":10,"rows_kept":70,"cut":false,"hidden":false,"merged":[]}
[]
["Терминал по перевалке минеральных удобрений в морском торговом порту Усть-Луга. Береговые объекты терминала"]
["(наименование стройки)"]
["1632-2021-3.1-АС_07.03.010-П-00-00"]
["(локальная смета)"]
["на Архитектурно-строительные решения, 07.03.010 Крытый склад № 1 (код SAP 01.01.001) код ГП 3.1"]
["(наименование работ и затрат, наименование объекта)"]
[null,"Основание:","1632-2021-3.1-АС   Арх.№ 15788"]
[]
["№ п/п","Обоснование","Наименование работ и затрат","Ед. изм.","Кол-во","Цена за ед.измерения работ, руб. с НДС","Всего, стоимость работ,руб. с НДС","Цена за ед.измерения материалов, руб. с НДС","Всего, стоимость материалов, руб. с НДС","Итого, руб. с НДС"]
["1","2","3","4","5",6,7,8,9,10]
["Раздел 1. Кровля",null,null,null,null,null,null,null,null,{"$f":"G12+I12","v":0}]
["Кровельное покрытие  из профнастила ( Спецификация профнастила в осях А-Б, Б-В. лист.2.1)",null,null,null,null,null,null,null,null,0]
["Кровельное покрытие пристроек. ( Спецификация покрытия пристроек лист 2.3)",null,null,null,null,null,null,null,null,0]
["Сэндвич-панели толщ.200 мм",null,null,null,null,null,null,null,null,0]
["Снегозадержатель ( спецификация на стальные изделия лист. 22)",null,null,null,null,null,null,null,null,0]
["1","ТЕР12-01-012-01","Ограждение кровель перилами // прим.","100 м ограждения",16.7256,null,null,null,null,0]
["2","ТЦ_08.3.08.02_77_7721040281_03.09.2024_02\nАналог ТССЦ-101-3716 5950,69/5786,99=2%","Сталь угловая 35х3","т",4.4734999999999996,null,null,null,null,0]
["3","ТЦ_08.3.07.01_78_7814712017_03.09.2024_02\nАналог ТССЦ-101-4677 8181,64/7974,20=2%","Сталь полосовая 40х3","т",0.52507999999999999,null,null,null,null,0]
["4","ТЦ_23.3.09.00_77_9718158840_03.09.2024_02\nАналог ТССЦ-103-2014 98,60/96,47=2%","Труба стальная электросварная прямошовная   д.20х1,8","т",2.70444,null,null,null,null,0]
["5","ТЕР13-06-003-01","Очистка поверхности щетками","1 м2 очищаемой поверхности",562.70000000000005,null,null,null,null,0]
["6","ТЕР13-06-004-01","Обеспыливание поверхности","1 м2 обеспыливаемой поверхности",562.70000000000005,null,null,null,null,0]
["7","ТЕР13-07-001-01","Обезжиривание поверхностей аппаратов и трубопроводов диаметром до 500 мм: бензином","100 м2 обезжириваемой поверхности",5.6269999999999998,null,null,null,null,0]
["8","ТЕР13-03-002-04","Огрунтовка металлических поверхностей за один раз: грунтовкой ГФ-021","100 м2 окрашиваемой поверхности",5.6269999999999998,null,null,null,null,0]
["9",null,"Порошковая окраска","м2",562.66999999999996,null,null,null,null,0]
["Фасонные элементы  ( спецификация лист 2.9)"]
["10","ТЕР12-01-010-01","Устройство мелких покрытий (брандмауэры, парапеты, свесы и т.п.) из листовой оцинкованной стали // фасонные элементы","100 м2 покрытия",13.829000000000001,null,null,null,null,0]
["11","ТЦ_08.3.05.00_66_6658410173_03.09.2024_02\nАналог ТССЦ-101-7554 7108,41/6921,07=2%","Прокат стальной тонколистовой AISI 304 толщ.1,5 мм (Ф32-116 шт., Ф33-26 шт.) S=241,6м2  ( 11,78 кг/м2)","т",3.2848999999999999,null,null,null,null,0]
["12","ТЦ_08.3.05.00_77_7746342969_03.09.2024_02\nАналог ТССЦ-101-7554 7108,41/6921,07=2%","Прокат стальной тонколистовой AISI 304 толщ.0,7 мм  ( 5,6 кг/м2)","т",6.1826999999999996,null,null,null,null,0]
["Раздел 2. Стены"]
["Стеновое ограждение из профнастила   ( Спецификация профнастила на стеновое ограждение Лист2.1, 2.2, 2.3)"]
["Раздел 3. Цокольная стена  ( спецификация лист 23)"]
["13","ТЕР06-01-035-01","Устройство поясов: в опалубке","100 м3 железобетона в деле",0.3624,null,null,null,null,0]
["14","ТЦ_04.1.02.00_78_7806468968_22.05.2024_02\nАналог ТССЦ-401-0009 738,51/661,68=2%","Бетон кл. В25","м3",36.78,null,null,null,null,0]
["15","ТЦ_59.1.08.04_78_7805706257_03.09.2024_02\nАналог ТССЦ-204-0110 10116,56/9871,18=2%","Сталь арматурная кл. А500С диам.10мм","т",3.2650000000000001,null,null,null,null,0]
["16","ТЦ_59.1.08.04_78_7805706257_03.09.2024_02\nАналог ТССЦ-204-0001 6770,08/6590,31=2%","Сталь арматурная кл. А240 диам.6мм","т",0.11600000000000001,null,null,null,null,0]
["17","ТЕР08-01-003-07","Гидроизоляция боковая обмазочная битумная в 2 слоя по выровненной поверхности бутовой кладки, кирпичу, бетону","100 м2 изолируемой поверхности",3.76,null,null,null,null,0]
["18","ТЦ_01.2.03.05_78_7806100839_03.09.2024_02\nАналог ТССЦ-113-2227 10,06/9,76=2%","Праймер битумный  ( расход 0,25 кг/м2)","кг",94,null,null,null,null,0]
["19","ТЦ_59.1.12.00_77_7702521529_23.05.2024_02\nАналог ТССЦ-101-7066 191,65/187,83=2%","Битумно-полимерная мастика  (2 слоя)  расход 2,5кг/м2 в один слой толщ.1 мм","кг",1880,null,null,null,null,0]
["20","ТЕР07-05-039-01","Устройство герметизации горизонтальных и вертикальных стыков стеновых панелей прокладками на клее в один ряд// прим.","100 м шва",8.64,null,null,null,null,0]
["21","ТЦ_01.7.19.06_38_3849082746_22.05.2024_02\nАналог ТССЦ-101-3990 8,50/8,30=2%","Бентонитовый шнур","м.п",864,null,null,null,null,0]
["22","ТЕР41-01-013-05","Уплотнение деформационного шва прочими вертикальными уплотнениями: из резиновой диафрагмы","100 м уплотнения",0.18,null,null,null,null,0]
["23","ТЦ_01.7.19.06_38_3849082746_22.05.2024_02\nАналог ТССЦ-101-2954 4,21/4,12=2%","Уплотнитель \"Вилотерм\" д.70мм","м.п",18,null,null,null,null,0]
["24","ТССЦ-101-8043","Герметик УТ-37 для герметизации стыков  (плотность 1100кг/м3) // высокопрочный герметик","т",7.9200000000000007E-2,null,null,null,null,0]
["25","ТЕР46-08-012-04","Установка анкеров в отверстия глубиной 100 мм с применением смесей серии MASTERFLOW, диаметр анкера: 16 мм // прим. 14 мм","100 шт.",55.2,null,null,null,null,0]
["26","ТЦ_14.1.06.06_77_7723889433_22.05.2024_02\nАналог ТССЦ-509-4614 91,65/89,83=2%","Химический анкер Sormat ITH 410 Wi ( расход 10 мл. на 1 анкер)","шт",135,null,null,null,null,0]
["Обетонирование опор на высоту 300 мм  (1632-2021-3.1-АС. Лист 23.)"]
["27","ТЕР46-01-008-01","Обетонирование: колонн  // прим.   ( S=(0,425+0,36)*2*0,3=0,471м2 )","1 м3",0.311,null,null,null,null,0]
["Раздел 4. Монтаж металлоконструкций"]
["28","ТЕРм38-01-002-03","Монорельсы, балки и другие аналогичные конструкции промышленных зданий, сборка с помощью: лебедок электрических (с установкой и снятием их в процессе работы)","1 т конструкций",null,null,null,null,null,{"$f":"G50+I50","v":0}]
["29","ТЕР09-04-006-01","Монтаж фахверка // прим.","1 т конструкций",2.6709999999999998,null,null,null,null,0]
["30","ТЦ_08.3.11.00_78_7811724832_03.09.2024_02\nАналог ТССЦ-101-1019 4515,56/4380,00=2%","Швеллеры стальные гнутые равнополочные 20П","т",4.2999999999999997E-2,null,null,null,null,0]
["31","ТЦ_08.3.08.02_78_7811229179_03.09.2024_02\nАналог ТССЦ-101-5451 4,79/4,65=2%","Сталь угловая L=50х3  AISI","т",1.452,null,null,null,null,0]
["32","ТЦ_08.3.05.03_78_7811229179_03.09.2024_02\nАналог ТССЦ-101-1627 5514,76/5359,61=2%","Сталь листовая холоднокатаная 0,5 мм","т",1.177,null,null,null,null,0]
["Раздел 5. Забирки проемов  (1632-2021-3.1-АС. Лист 37,38)"]
["33","ТЕР10-01-010-01","Установка элементов каркаса: из брусьев // щиты ЗБ1","1 м3 древесины в конструкции",25.855,null,null,null,null,0]
["Закладные детали"]
["34","ТЕРм38-01-006-05","Сборка с помощью лебедок электрических (с установкой и снятием их в процессе работы): листовые конструкции массой до 0,5 т (бачки, течки, воронки, желоба, лотки и пр.)","1 т конструкций",2.5680000000000001,null,null,null,null,0]
["35","ТЕР06-01-015-06","Установка стальных конструкций, остающихся в теле бетона // прим. закладные детали щитов забирки","1 т",2.5680000000000001,null,null,null,null,0]
["36","ТЦ_08.3.05.03_78_7810046550_03.09.2024_02\nАналог ТССЦ-101-1627 5514,76/5359,61=2%","Сталь листовая горячекатаная t=6","т",0.53200000000000003,null,null,null,null,0]
["37","ТЦ_59.1.08.04_77_7811628889_23.05.2024_02\nАналог ТССЦ-204-0001 6770,08/6590,31=2%","Прокат арматурный  А240  д.20 мм","т",0.46800000000000003,null,null,null,null,0]
["Антикоррозийная защита закладных деталей"]
["38","ТЕР13-03-002-04","Огрунтовка металлических поверхностей за один раз: грунтовкой ГФ-021","100 м2 окрашиваемой поверхности",0.74470000000000003,null,null,null,null,0]
["39","ТЦ_01.1.00.00_78_7811634949_01.11.2024_02\nАналог ТССЦ-113-0021 18353,45/17895,65=2%","Грунтовка: ГФ-021 красно-коричневая","кг",8.9364000000000008,null,null,null,null,0]
["40","ТЕР13-03-004-26","Окраска металлических огрунтованных поверхностей: эмалью ПФ-115","100 м2 окрашиваемой поверхности",0.74470000000000003,null,null,null,null,0]
["41","ТЦ_01.13.00.00_78_7802348846_01.11.2024_02\nАналог ТССЦ-113-0246 25096,77/24506,75=2%","Эмаль ПФ-115 серая","кг",14.1493,null,null,null,null,0]
["Раздел 6. Перевозка материалов"]
["Перевозка материалов (металл 140 км. ОП \"МКМ-СПб\")"]
[null,null,"Всего, руб. с НДС",null,null,null,{"$f":"SUM(G14:G68)","v":0},null,{"$f":"SUM(I14:I68)","v":0},{"$f":"SUM(J14:J68)","v":0}]
[null,null,"Всего, руб. без НДС",null,null,null,{"$f":"G69/1.2","v":0},null,{"$f":"I69/1.2","v":0},{"$f":"J69/1.2","v":0}]

{"sheet":"1632-2021-3.3-АР.СУБ","index":17,"n_rows":102,"n_cols":10,"rows_kept":102,"cut":false,"hidden":false,"merged":[]}
[]
["Терминал по перевалке минеральных удобрений в морском торговом порту Усть-Луга. Береговые объекты терминала"]
["(наименование стройки)"]
["1632-2021-3.3-АР.СУБ_07.03.012-П-01-02"]
["(локальная смета)"]
["на Архитектурные решения, 07.03.012 Купольный склад  (код SAP 01.01.005) код ГП 3.3.1"]
["(наименование работ и затрат, наименование объекта)"]
[null,"Основание:","632-2021-3.3-АР.СУБ_2_0_RU_IFC"]
[]
["№ п/п","Обоснование","Наименование работ и затрат","Ед. изм.","Кол-во","Цена за ед.измерения работ, руб. с НДС","Всего, стоимость работ,руб. с НДС","Цена за ед.измерения материалов, руб. с НДС","Всего, стоимость материалов, руб. с НДС","Итого, руб. с НДС"]
["1","2","3","4","5",6,7,8,9,10]
["Раздел 1. Ворота и дверные проемы (1632-2021-3.3-АР лист 03)",null,null,null,null,null,null,null,null,{"$f":"G12+I12","v":0}]
["Противопожарные двери",null,null,null,null,null,null,null,null,0]
["1","ТЕР09-04-013-01","Установка противопожарных дверей: однопольных глухих","1 м2 проема",34.020000000000003,null,null,null,null,0]
["2","ТЦ_07.1.01.01_77_5020088027_10.01.2024_01\nАналог ТССЦ-203-8122 2128,34/2082,91=2%","Дверь противопожарная ДП 21-9 п EI-45 890х2090мм","шт",13,null,null,null,null,0]
["3","ТЦ_07.1.01.01_77_5020088027_10.01.2024_01\nАналог ТССЦ-203-8122 2128,34/2082,91=2%","Дверь противопожарная ДП 21-9 л EI-45 890х2090мм","шт",5,null,null,null,null,0]
["Металлические двери"]
["5","ТЕР09-04-012-01","Установка металлических дверных блоков в готовые проемы","1 м2 проема",44.16,null,null,null,null,0]
["6","ТЦ_07.1.01.03_78_7810347194_10.01.2024_01\nАналог ТССЦ-203-8122 2128,34/2082,91=2%","Дверь металлическая ДН 21-9 п","шт",18,null,null,null,null,0]
["7","ТЦ_07.1.01.03_78_7810347194_10.01.2024_01\nАналог ТССЦ-203-8122 2128,34/2082,91=2%","Дверь металлическая ДН 21-9 л","шт",13,null,null,null,null,0]
["Ворота"]
["9","ТЕРм17-01-095-01","Ворота шторные с приводом подъема","1 шт.",12,null,null,null,null,0]
["11","ТЕРм38-01-002-03","Монорельсы, балки и другие аналогичные конструкции промышленных зданий, сборка с помощью: лебедок электрических (с установкой и снятием их в процессе работы)","1 т конструкций",6.2596800000000004,null,null,null,null,0]
["12","ТЦ_11.2.05.00_78_7804612905_18.11.2023_01","Ворота промышленные 6000х4500 в комплекте с эл. приводом","шт",12,null,null,null,null,0]
["13","ТЦ_59.1.07.00_78_4716043676_15.08.2023_02","Швеллер 40П","т",6.5100670000000003,null,null,null,null,0]
["Перевозка материалов (металл 140 км. ОП \"МКМ-СПб\")"]
["14",null,"Металлопрокат, трубопрокат и металлоконструкции","т",6.5100670000000003,null,null,null,null,0]
["15","ТССЦпг-03-02-01-140","Перевозка строительных грузов (кроме массовых навалочных, перевозимых автомобилями-самосвалами, а также бетонных и железобетонных изделий, стеновых и перегородочных материалов, лесоматериалов круглых и пиломатериалов, включенных в таблицу 03-01), бортовым автомобилем грузоподъемностью 5 т, на расстояние до 140 км I класс груза","1 т груза",6.5100670000000003,null,null,null,null,0]
["16","ТССЦпг-01-01-02-015","Разгрузочные работы при автомобильных перевозках: металлических конструкций массой до 1 т","1 т груза",6.5100670000000003,null,null,null,null,0]
["Раздел 2. Полы (1632-2021-3.3-АР лист 6)"]
["17","ТЕР13-08-009-01","Шлифовка бетонных поверхностей","100 м2 шлифуемой поверхности",138.97200000000001,null,null,null,null,0]
["18","ТЕР13-03-006-02","Гидроизоляция поверхности бетонных и железобетонных конструкций в два слоя защитными покрытиями серии MASTERSEAL: горизонтальной","100 м2 поверхности",138.97200000000001,null,null,null,null,0]
["19","ТЦ_01.7.08.05_78_5029069967_11.01.2023_02\nАналог ТССЦ-402-0195 89,08/87,28=2%","Гидроизоляционная проникающая смесь Пенетрон","кг",13897.2,null,null,null,null,0]
["20","ТССЦ-411-0001","Вода","м3",5558.88,null,null,null,null,0]
["Раздел 3. Ограждение крыши (1632-2021-3.3-АР лист 13)"]
["21","ТЕР12-01-012-01","Ограждение кровель перилами","100 м ограждения",8.0039999999999996,null,null,null,null,0]
["22","ТЕРм38-01-004-06","Сборка с помощью лебедок электрических (с установкой и снятием их в процессе работы): лестницы прямолинейные и криволинейные с ограждением","1 т конструкций",3.8819400000000002,null,null,null,null,0]
["23","ТЦ_59.1.08.04_47_7718134701_18.07.2023_02","Горячекатаная арматурная сталь гладкая класса А-I, диаметром: 16 мм","т",1.9449719999999999,null,null,null,null,0]
["24","ТЦ_59.1.08.04_47_7718134701_18.07.2023_02","Горячекатаная арматурная сталь гладкая класса А-I, диаметром: 14 мм","т",1.936968,null,null,null,null,0]
["Раздел 4. Лестница Л1  (1632-2021-3.3-АР лист 14)"]
["25","ТЕР09-03-029-01","Монтаж лестниц прямолинейных и криволинейных, пожарных с ограждением","1 т конструкций",2.0303300000000002,null,null,null,null,0]
["26","ТССЦ-110-0009","Болты сборочные с гайками и шайбами по классу прочности: 10.9","т",2.639E-2,null,null,null,null,0]
["27","ТЕРм38-01-004-06","Сборка с помощью лебедок электрических (с установкой и снятием их в процессе работы): лестницы прямолинейные и криволинейные с ограждением","1 т конструкций",1.95224,null,null,null,null,0]
["28","ТЦ_59.1.07.00_78_4716043676_15.08.2023_02","Уголок равнополочный 75*6","т",1.2843199999999999,null,null,null,null,{"$f":"G44+I44","v":0}]
["29","ТЦ_59.1.07.00_78_4716043676_15.08.2023_02","Прокат листовой 6мм","т",1.504E-2,null,null,null,null,0]
["30","ТЦ_59.1.08.04_47_7718134701_18.07.2023_02","Горячекатаная арматурная сталь гладкая класса А-I, диаметром: 16 мм","т",0.23039999999999999,null,null,null,null,0]
["31","ТЦ_59.1.07.00_78_7805793002_15.08.2023_02","Лист ПВЛ ПВ508","т",0.11287999999999999,null,null,null,null,0]
["Перевозка материалов (металл 140 км. ОП \"МКМ-СПб\")"]
["32",null,"Металлопрокат, трубопрокат и металлоконструкции","т",1.4122399999999999,null,null,null,null,0]
["33","ТССЦпг-03-02-01-140","Перевозка строительных грузов (кроме массовых навалочных, перевозимых автомобилями-самосвалами, а также бетонных и железобетонных изделий, стеновых и перегородочных материалов, лесоматериалов круглых и пиломатериалов, включенных в таблицу 03-01), бортовым автомобилем грузоподъемностью 5 т, на расстояние до 140 км I класс груза","1 т груза",1.4122399999999999,null,null,null,null,0]
["34","ТССЦпг-01-01-02-015","Разгрузочные работы при автомобильных перевозках: металлических конструкций массой до 1 т","1 т груза",1.4122399999999999,null,null,null,null,0]
["Антикоррозионная обработка"]
["35","ФЕР13-03-002-04","Огрунтовка металлических поверхностей за один раз: грунтовкой ГФ-021","100 м2",0.52710500000000005,null,null,null,null,0]
["36","ТЦ_14.2.00.00_78_7839431434_12.01.2024_02\nАналог ТССЦ-113-0021 18353,45/17895,65=3%","Грунтовка ИЗОЛЭП-mastic","кг",4.7,null,null,null,null,0]
["37","ФЕР13-03-004-26","Окраска металлических огрунтованных поверхностей: эмалью ПФ-115 (за 2 раза) К=2","100 м2",0.52710500000000005,null,null,null,null,0]
["38","ТЦ_14.2.00.00_78_7839431434_12.01.2024_02\nАналог ТССЦ-113-0246 25096,77/24506,75=2%","ПОЛИТОН-УР(УФ)","кг",4.7,null,null,null,null,0]
["Раздел 5. Отбойник (1632-2021-3.3-АР лист 15-24шт)"]
["39","ТЕР09-03-040-01","Монтаж защитных ограждений оборудования","1 т конструкций",3.0575999999999999,null,null,null,null,0]
["40","ТЕРм38-01-002-03","Монорельсы, балки и другие аналогичные конструкции промышленных зданий, сборка с помощью: лебедок электрических (с установкой и снятием их в процессе работы)","1 т конструкций",2.94,null,null,null,null,0]
["41","ТЦ_59.1.07.00_78_4716043676_15.08.2023_02","Прокат листовой 4мм","т",4.5600000000000002E-2,null,null,null,null,0]
["42","ТЦ_59.1.07.00_78_4716043676_15.08.2023_02","Прокат листовой 20мм","т",0.76319999999999999,null,null,null,null,0]
["43","ТЦ_59.1.07.00_78_6670501081_12.01.2024_02","Труба 250х10 L=1500","шт",144,null,null,null,null,0]
["Перевозка материалов (металл 140 км. ОП \"МКМ-СПб\")"]
["44",null,"Металлопрокат, трубопрокат и металлоконструкции","т",2.94,null,null,null,null,0]
["45","ТССЦпг-03-02-01-140","Перевозка строительных грузов (кроме массовых навалочных, перевозимых автомобилями-самосвалами, а также бетонных и железобетонных изделий, стеновых и перегородочных материалов, лесоматериалов круглых и пиломатериалов, включенных в таблицу 03-01), бортовым автомобилем грузоподъемностью 5 т, на расстояние до 140 км I класс груза","1 т груза",2.94,null,null,null,null,0]
["46","ТССЦпг-01-01-02-015","Разгрузочные работы при автомобильных перевозках: металлических конструкций массой до 1 т","1 т груза",2.94,null,null,null,null,0]
["Антикоррозионная обработка"]
["47","ФЕР13-03-002-04","Огрунтовка металлических поверхностей за один раз: грунтовкой ГФ-021","100 м2",0.7056,null,null,null,null,0]
["48","ТЦ_14.2.00.00_78_7839431434_12.01.2024_02\nАналог ТССЦ-113-0021 18353,45/17895,65=3%","Грунтовка ИЗОЛЭП-mastic","кг",6.4,null,null,null,null,0]
["49","ФЕР13-03-004-26","Окраска металлических огрунтованных поверхностей: эмалью ПФ-115 (за 2 раза) К=2","100 м2",0.7056,null,null,null,null,0]
["50","ТЦ_14.2.00.00_78_7839431434_12.01.2024_02\nАналог ТССЦ-113-0246 25096,77/24506,75=2%","ПОЛИТОН-УР(УФ)","кг",12.7,null,null,null,null,0]
["Колонны"]
["51","ТЕР09-03-002-01","Монтаж колонн одноэтажных и многоэтажных зданий и крановых эстакад высотой: до 25 м цельного сечения массой до 1,0 т","1 т конструкций",2.1902400000000002,null,null,null,null,0]
["52","ТЕРм38-01-002-03","Монорельсы, балки и другие аналогичные конструкции промышленных зданий, сборка с помощью: лебедок электрических (с установкой и снятием их в процессе работы)","1 т конструкций",2.1059999999999999,null,null,null,null,0]
["53","ТЦ_59.1.07.00_78_7805793002_15.08.2023_02","Профиль гн. 80*5","т",1.89072,null,null,null,null,{"$f":"G75+I75","v":0}]
["54","ТЦ_59.1.07.00_78_7805793002_15.08.2023_02","Профиль гн. 80*4","т",0.29952000000000001,null,null,null,null,0]
["Балки"]
["55","ТЕР09-03-002-12","Монтаж балок, ригелей перекрытия, покрытия и под установку оборудования многоэтажных зданий при высоте здания: до 25 м","1 т конструкций",3.1075200000000001,null,null,null,null,0]
["56","ТЕРм38-01-002-03","Монорельсы, балки и другие аналогичные конструкции промышленных зданий, сборка с помощью: лебедок электрических (с установкой и снятием их в процессе работы)","1 т конструкций",2.988,null,null,null,null,0]
["57","ТЦ_59.1.07.00_78_7805793002_15.08.2023_02","Профиль гн. 80*4","т",1.53504,null,null,null,null,0]
["58","ТЦ_59.1.07.00_78_4716043676_15.08.2023_02","Профиль гн. 60*4","т",1.5724800000000001,null,null,null,null,{"$f":"G81+I81","v":0}]
["Связи"]
["59","ТЕР09-03-014-01","Монтаж связей и распорок из одиночных и парных уголков, гнутосварных профилей для пролетов: до 24 м при высоте здания до  25 м","1 т конструкций",0.24335999999999999,null,null,null,null,0]
["60","ТЕРм38-01-002-03","Монорельсы, балки и другие аналогичные конструкции промышленных зданий, сборка с помощью: лебедок электрических (с установкой и снятием их в процессе работы)","1 т конструкций",0.23400000000000001,null,null,null,null,0]
["61","ТЦ_59.1.07.00_78_4716043676_15.08.2023_02","Профиль гн. 50*4","т",0.24335999999999999,null,null,null,null,0]
["Антикоррозионная обработка"]
["62","ФЕР13-03-002-04","Огрунтовка металлических поверхностей за один раз: грунтовкой ГФ-021","100 м2",1.54512,null,null,null,null,0]
["63","ТЦ_14.2.00.00_78_7839431434_12.01.2024_02\nАналог ТССЦ-113-0021 18353,45/17895,65=3%","Грунтовка ИЗОЛЭП-mastic","кг",13.9,null,null,null,null,0]
["64","ФЕР13-03-004-26","Окраска металлических огрунтованных поверхностей: эмалью ПФ-115 (за 2 раза) К=2","100 м2",1.54512,null,null,null,null,0]
["65","ТЦ_14.2.00.00_78_7839431434_12.01.2024_02\nАналог ТССЦ-113-0246 25096,77/24506,75=2%","ПОЛИТОН-УР(УФ)","кг",27.8,null,null,null,null,0]
["Покрытия"]
["Перевозка материалов (металл 140 км. ОП \"МКМ-СПб\")"]
["73",null,"Металлопрокат, трубопрокат и металлоконструкции","т",7.8479999999999999,null,null,null,null,0]
["74","ТССЦпг-03-02-01-140","Перевозка строительных грузов (кроме массовых навалочных, перевозимых автомобилями-самосвалами, а также бетонных и железобетонных изделий, стеновых и перегородочных материалов, лесоматериалов круглых и пиломатериалов, включенных в таблицу 03-01), бортовым автомобилем грузоподъемностью 5 т, на расстояние до 140 км I класс груза","1 т груза",7.8479999999999999,null,null,null,null,0]
["75","ТССЦпг-01-01-02-015","Разгрузочные работы при автомобильных перевозках: металлических конструкций массой до 1 т","1 т груза",7.8479999999999999,null,null,null,null,0]
["Раздел 7. Быстросъемная ограждающая конструкция (лист 18 том 1632-2021-3.3-АР-2шт)"]
["77","ТЕР10-01-001-10","Укладка панелей и покрытий длиной 6 м площадью до 10 м2","1 конструкция",2,null,null,null,null,0]
["78","ТССЦ-102-0289","Доски антисептированные обрезные длиной 4-6,5 м, шириной 75-150 мм, толщиной 32-40 мм II сорта","м3",0.15773999999999999,null,null,null,null,0]
["10","ТЦ_59.1.07.00_78_4716043676_17.08.2023_02","Прокат листовой 5мм","т",0.1024,null,null,null,null,0]
["76","ТССЦ-102-0268","Фанера бакелизированная марки ФБС, толщиной 14-18 мм","м3",0.36941800000000002,null,null,null,null,0]
[null,null,"Всего, руб. с НДС",null,null,null,{"$f":"SUM(G13:G100)","v":0},null,{"$f":"SUM(I13:I100)","v":0},{"$f":"SUM(J13:J100)","v":0}]
[null,null,"Всего, руб. без НДС",null,null,null,{"$f":"G101/1.2","v":0},null,{"$f":"I101/1.2","v":0},{"$f":"J101/1.2","v":0}]

{"sheet":"3-1632-2021-2.1.2,2.1.7-АР2","index":18,"n_rows":58,"n_cols":10,"rows_kept":58,"cut":false,"hidden":false,"merged":[]}
[]
["Терминал по перевалке минеральных удобрений в морском торговом порту Усть-Луга. Береговые объекты терминала"]
["(наименование стройки)"]
["1632-2021-2.1.2, 2.1.7-АР2-07.04.046-П-00-02"]
["(локальная смета)"]
["на Архитектурные решения, Конвейерная галерея №7 в осях 8-14"]
["(наименование работ и затрат, наименование объекта)"]
[null,"Основание:","1632-2021-2.1.2, 2.1.7-АР2_0_0_RU_IFС"]
[]
["№ п/п","Обоснование","Наименование работ и затрат","Ед. изм.","Кол-во","Цена за ед.измерения работ, руб. с НДС","Всего, стоимость работ,руб. с НДС","Цена за ед.измерения материалов, руб. с НДС","Всего, стоимость материалов, руб. с НДС","Итого, руб. с НДС"]
["1","2","3","4","5",6,7,8,9,10]
["Раздел 2. Кровля",null,null,null,null,null,null,null,null,{"$f":"G12+I12","v":0}]
["Монтаж кровельного покрытия  из профнастила учтен в разделе КМ",null,null,null,null,null,null,null,null,0]
["1632-2021-2.1.2, 2.1.7-АР2.  ( в осях 8-14 )",null,null,null,null,null,null,null,null,0]
["1","ТЕР11-01-009-02","Устройство тепло- и звукоизоляции сплошной из плит: древесноволокнистых // прим. ЦСП","100 м2 изолируемой поверхности",2.1339999999999999,null,null,null,null,0]
["2","ТЦ_01.6.01.10_78_7810994931_08.02.2024_02\nАналог ТССЦ-101-5068 25,77/24,64=2%","ЦСП 3200х1200х8","м2",439.6,null,null,null,null,0]
["3","ТЕР12-01-002-09","Устройство кровель плоских из наплавляемых материалов: в два слоя","100 м2 кровли",2.1339999999999999,null,null,null,null,0]
["4","ТЦ_12.0.00.00_78_7826181040_08.02.2024_02\nАналог ТССЦ-101-4724 26,31/25,55=2%","Техноэласт Пламя Стоп","м2",243.28,null,null,null,null,0]
["5","ТЦ_12.0.00.00_78_7826181040_08.02.2024_02\nАналог ТССЦ-101-4702 22,24/21,66=2%","Техноэласт ЭПП","м2",247.54,null,null,null,null,0]
["6","ТЕР12-01-009-02","Устройство желобов: подвесных","100 м желобов",0.51400000000000001,null,null,null,null,0]
["7","ТЦ_12.1.01.00_78_7804606806_25.01.2024_02\nАналог ТССЦ-203-0960 5219,18/5114,28=2%","Желоб водосточный D185х3000","шт",17,null,null,null,null,0]
["8","ТЦ_12.1.01.00_78_7804606806_25.01.2024_02\nАналог ТССЦ-301-5881 61,11/59,89=2%","Держатель желоба","шт",86,null,null,null,null,0]
["9","ТЕР12-01-008-01","Устройство обделок на фасадах (наружные подоконники, пояски, балконы и др.): включая водосточные трубы, с изготовлением элементов труб// прим.","100 м2фасада (без вычета проемов)",2.1339999999999999,null,null,null,null,0]
["10","ТЦ_12.1.01.00_78_7804606806_25.01.2024_02\nАналог ТССЦ-301-5867 217,71/213,27=2%","Труба водосточная D150х2000мм","шт",80,null,null,null,null,0]
["11","ТЦ_12.1.01.00_78_7804606806_25.01.2024_02\nАналогТССЦ-301-5610 297,90/291,82=2%","Крепление трубы","шт",160,null,null,null,null,0]
["12","ТЦ_12.1.01.00_78_7804606806_25.01.2024_02\nАналог ТССЦ-203-0960 5219,18/5114,28=2%","Колено гофрированное","шт",16,null,null,null,null,0]
["13","ТЦ_12.1.01.00_78_7804606806_25.01.2024_02\nАналог ТССЦ-203-0960 5219,18/5114,28=2%","Заглушка","шт",2,null,null,null,null,0]
["14","ТЦ_12.1.01.00_78_7804606806_25.01.2024_02\nАналог ТССЦ-115-0931  8,37/8,08=3%","Воронки выпускные D185/150","шт",8,null,null,null,null,0]
["15","ТЕР12-01-012-01","Ограждение кровель перилами // прим.","100 м ограждения",0.52300000000000002,null,null,null,null,0]
["16","ТЦ_12.1.01.00_78_7804606806_25.01.2024_02\nАналог ТССЦ-101-7317  128,60/126,01=2%","Снегозадержатель трубчатый (L=3 м. в комплекте с креплением)","шт",18,null,null,null,null,0]
["Раздел 3. Окна",null,null,null,null,null,null,null,null,0]
["1632-2021-2.1.2, 2.1.7-АР2.  ( в осях 8-14 )",null,null,null,null,null,null,null,null,0]
["17","ТЕР10-01-034-05","Установка в жилых и общественных зданиях оконных блоков из ПВХ профилей: поворотных (откидных, поворотно-откидных) с площадью проема до 2 м2 двухстворчатых","100 м2 проемов",5.6000000000000001E-2,null,null,null,null,0]
["18","ТЦ_07.1.02.00_78_7840318754_30.01.2024_02\nАналог ТССЦ-203-0978  4253,53/4168,26=2%","Оконный блок  1000х1400","шт",4,null,null,null,null,0]
["19","ТЕР15-01-070-01","Облицовка: оконных проемов в наружных стенах откосной планкой из оцинкованной стали с полимерным покрытием с устройством водоотлива оконного из оцинкованной стали с полимерным покрытием","1 м2 проемов",5.6,null,null,null,null,0]
["Раздел 4. Дверные проемы",null,null,null,null,null,null,null,null,0]
["1632-2021-2.1.2, 2.1.7-АР2.  ( в осях 8-14 )",null,null,null,null,null,null,null,null,0]
["20","ТЕР09-04-012-01","Установка металлических дверных блоков в готовые проемы","1 м2 проема",10.5,null,null,null,null,0]
["21","ТЦ_07.1.01.03_78_7841375755_25.01.2024_02\nАналог ТССЦ-203-8123  2466,49/2414,02=2%","Дверь стальная наружная  (левая, правая) 1000х2100","шт",5,null,null,null,null,0]
["22","ТЕР09-04-013-01","Установка противопожарных дверей: однопольных глухих","1 м2 проема",4.2,null,null,null,null,0]
["23","ТЦ_07.1.01.03_78_7841375755_25.01.2024_02\nАналог ТССЦ-203-8123  2466,49/2414,02=2%","Дверь противопожарная металлическая: однопольная ДПС-01/60, размером 1000х2100 мм","шт",2,null,null,null,null,0]
["24","ТЕР15-01-070-02","Облицовка: дверных проемов в наружных стенах откосной планкой из оцинкованной стали с полимерным покрытием с установкой наличников из оцинкованной стали с полимерным покрытием","1 м2 проемов",14.7,null,null,null,null,0]
["Раздел 5. Полы",null,null,null,null,null,null,null,null,0]
["1632-2021-2.1.2, 2.1.7-АР2.  ( в осях 8-14 )",null,null,null,null,null,null,null,null,0]
["Тип 1.  S=380 м2.",null,null,null,null,null,null,null,null,0]
["25","ТЕР11-01-011-03","Устройство стяжек: бетонных толщиной 20 мм","100 м2 стяжки",3.8,null,null,null,null,{"$f":"G46+I46","v":0}]
["26","ТЕР11-01-011-04","Устройство стяжек: на каждые 5 мм изменения толщины стяжки добавлять или исключать к расценке 11-01-011-03 // до толщ. 50-150 мм","100 м2 стяжки",3.8,null,null,null,null,0]
["27","ТЦ_59.1.04.01_47_4707009037_09.09.2024_02\nАналог ТССЦ-401-0008  699,49/623,42=2%","Бетон  В22,5","м3",38.76,null,null,null,null,0]
["28","ТЕР06-01-015-10","Армирование подстилающих слоев и набетонок","1 т",0.66500000000000004,null,null,null,null,0]
["29","ТЦ_08.4.02.05_47_7718134701_09.09.2024_02\nАналог ТССЦ-101-3891 21,17/20,58=2%","Сетка арм. 100х100 4Вр1","м2",380,null,null,null,null,0]
["30","ТЕР11-01-020-03","Устройство покрытий поливинилацетатных: толщиной 3 мм // прим. покрытие полимерное","100 м2 покрытия",3.8,null,null,null,null,0]
["Тип 2.  S=1518,8 м2.",null,null,null,null,null,null,null,null,0]
["31","ТЕР11-01-011-03","Устройство стяжек: бетонных толщиной 20 мм","100 м2 стяжки",15.188000000000001,null,null,null,null,0]
["32","ТЕР11-01-011-04","Устройство стяжек: на каждые 5 мм изменения толщины стяжки добавлять или исключать к расценке 11-01-011-03 // до толщ. 30 мм","100 м2 стяжки",15.188000000000001,null,null,null,null,0]
["33","ТЦ_59.1.04.01_47_4707009037_09.09.2024_02\nАналог ТССЦ-401-0008  699,49/623,42=2%","Бетон  В22,5","м3",46.475000000000001,null,null,null,null,0]
["34","ТЕР11-01-020-03","Устройство покрытий поливинилацетатных: толщиной 3 мм // прим. покрытие полимерное","100 м2 покрытия",15.188000000000001,null,null,null,null,0]
[null,null,"Всего, руб. с НДС",null,null,null,{"$f":"SUM(G13:G56)","v":0},null,{"$f":"SUM(I13:I56)","v":0},{"$f":"SUM(J13:J56)","v":0}]
[null,null,"Всего, руб. без НДС",null,null,null,{"$f":"G57/1.2","v":0},null,{"$f":"I57/1.2","v":0},{"$f":"J57/1.2","v":0}]

{"sheet":"1632-2021-3.1-АР","index":19,"n_rows":133,"n_cols":10,"rows_kept":133,"cut":false,"hidden":false,"merged":[]}
[]
["Терминал по перевалке минеральных удобрений в морском торговом порту Усть-Луга. Береговые объекты терминала"]
["(наименование стройки)"]
["1632-2021-3.1-АР_07.03.010-П-00-00"]
["(локальная смета)"]
["на Архитектурно-строительные решения, 07.03.010 Крытый склад № 1 (код SAP 01.01.001) код ГП 3.1"]
["(наименование работ и затрат, наименование объекта)"]
[null,"Основание:","1632-2021-3.1-АР.СУБ_0_E_RU_IFR"]
[]
["№ п/п","Обоснование","Наименование работ и затрат","Ед. изм.","Кол-во","Цена за ед.измерения работ, руб. с НДС","Всего, стоимость работ,руб. с НДС","Цена за ед.измерения материалов, руб. с НДС","Всего, стоимость материалов, руб. с НДС","Итого, руб. с НДС"]
["1","2","3","4","5",6,7,8,9,10]
["Раздел 1. Кровля, (1632-2021-3.1-АР.СУБ, л. 11)",null,null,null,null,null,null,null,null,{"$f":"G12+I12","v":0}]
["Тип 2",null,null,null,null,null,null,null,null,0]
["1","ТЕР12-01-017-01","Устройство выравнивающих стяжек: цементно-песчаных толщиной  15 мм, (hср.=(30+120)/2=75 мм)","100 м2 стяжки",0.33079999999999998,null,null,null,null,0]
["2","ТЕР12-01-017-02","Устройство выравнивающих стяжек: на каждый 1 мм изменения толщины добавлять или исключать к расценке 12-01-017-01, (добавить 60 мм)","100 м2 стяжки",0.33079999999999998,null,null,null,null,0]
["3","ТЕР06-01-015-10","Армирование подстилающих слоев и набетонок","1 т",0.10299999999999999,null,null,null,null,0]
["4","ТЦ_08.4.02.05_77_9728005353_01.07.2024_02\nАналог ТССЦ-101-3891 21,17/20,58=2%","Сетка арматурная Ø5А1 шаг 100х100, (вес=3,1 кг/м²) а","м2",36.39,null,null,null,null,0]
["5","ТЕР12-01-002-09","Устройство кровель плоских из наплавляемых материалов: в два слоя","100 м2 кровли",0.33079999999999998,null,null,null,null,0]
["6","ТЦ_12.1.02.00_78_7709331654_01.07.2024_02\nАналог ТССЦ-101-4703 26,13/25,43=2%","ТЕХНОЭЛАСТ ЭКП, (расход - 115 м² на 100 м² изолируемой поверхности при толщине 4,2 (±0,1) мм, k=1,15)","м2",38.04,null,null,null,null,0]
["7","ТЦ_12.1.02.00_77_5009056896_01.07.2027_02\nаналог ТССЦ-101-4705 22,61/21,98=2%","ТЕХНОЭЛАСТ ФИКС, (расход - 116 м² на 100 м² изолируемой поверхности при толщине 3,0 (±0,1) мм, k=1,16)","м2",38.369999999999997,null,null,null,null,0]
["Раздел 2. Прегородки из газосиликатных блоков, (1632-2021-3.1-АР.СУБ, л. 6)"]
["8","ТЕР08-04-003-02","Кладка перегородок из газобетонных блоков на клее толщиной: 100 мм при высоте этажа свыше 4 м","100 м2 перегородок",0.36109999999999998,null,null,null,null,0]
["9","ТЕР15-01-080-03","Устройство наружной теплоизоляции зданий с тонкой штукатуркой по утеплителю толщиной плит до: 120 мм","100 м2",0.40329999999999999,null,null,null,null,0]
["10","ТССЦ-104-0734","Плиты минераловатные на синтетическом связующем Техно (ТУ 5762-043-17925162-2006), марки: ТЕХНОФАС","м3",5.42,null,null,null,null,0]
["11","ТЕР08-04-003-03","Кладка перегородок из газобетонных блоков на клее толщиной: 200 мм при высоте этажа до 4 м","100 м2 перегородок",0.60529999999999995,null,null,null,null,0]
["Раздел 3. Дверные проемы и ворота. Склад 1, (1632-2021-3.1-АР.СУБ, л. 11)"]
["Ворота"]
["12","ТЕР09-04-011-01","Монтаж каркасов ворот большепролетных зданий, ангаров и др. без механизмов открывания, (вес=42,44 кг/м²)","1 т конструкций",2.1648000000000001,null,null,null,null,0]
["13","ТЕРм11-05-001-01","Механизм исполнительный, масса: до 20 кг","1 шт.",2,null,null,null,null,0]
["14","ТЦ_08.1.06.01_78_7816035755_28.06.2024_02\nАналог ТССЦ-201-0257 19748,34/19547,12=2%","В-1/1. Промышленные подъемно-секционные\nворота с вертикальным подъемом 5300×4530","шт.",1,null,null,null,null,{"$f":"G30+I30","v":0}]
["15","ТЦ_08.1.06.01_78_7816035755_28.06.2024_02\nАналог ТССЦ-201-0257 19748,34/19547,12=2%","В-1/2. Промышленные подъемно-секционные\nворота с вертикальным подъемом 6000×4500","шт",1,null,null,null,null,0]
["16","ТЕР10-01-010-01\n(прим.Заполнение-забирка из бруса)","Установка элементов каркаса: из брусьев, (В-1/3. Заполнение - забирка из бруса, 4500×3400)","1 м3 древесины в конструкции",7.34,null,null,null,null,0]
["17","ТЕР09-04-011-01","Монтаж каркасов ворот большепролетных зданий, ангаров и др. без механизмов открывания, (вес=42,44 кг/м²)","1 т конструкций",6.8514999999999997,null,null,null,null,0]
["18","ТЕРм11-05-001-01","Механизм исполнительный, масса: до 20 кг","1 шт.",7,null,null,null,null,0]
["19","ТЦ_08.1.06.01_78_7816035755_28.06.2024_02\nАналог ТССЦ-201-0257 19748,34/19547,12=2%","В-1/4. Промышленные подъемно-секционные\nворота с вертикальным подъемом 5200×4550","шт",6,null,null,null,null,0]
["20","ТЦ_08.1.06.01_78_7816035755_28.06.2024_02\nАналог ТССЦ-201-0254 12240,10/12119,12=2%","В-1/5. Ворота промышленные распашные SG-S 4300×4530","шт",1,null,null,null,null,0]
["Дверь ПВХ"]
["21","ТЕР10-01-047-01","Установка блоков из ПВХ в наружных и внутренних дверных проемах: в каменных стенах площадью проема до 3 м2","100 м2 проемов",1.89E-2,null,null,null,null,0]
["22","ТЦ_09.4.03.00_43_4345452380_28.06.2024_02\nАналог ТССЦ-203-0649 1853,89/1814,33=2%","Д-1/1. ДПВ 21-9 Г,П,Оп,Пр,Р дверной блок из\nПВХ-профилей внутренний однопольный\nраспашной глухой, правое откр., с порогом 900×2100","шт",1,null,null,null,null,0]
["23","ТЕР09-04-012-01","Установка металлических дверных блоков в готовые проемы","1 м2 проема",37.17,null,null,null,null,0]
["24","ТЦ_09.4.03.00_43_4345452380_28.06.2024_02\nАналог ТССЦ-203-8118 2304,38/2255,09=2%","ДН-1/1. ДСН,А,Оп,Пр,Брг,Н,М3,О проем 1000х2100\n(h) дверной стальной блок наружный\nглухой однопольный, обычное исполнение,\nправое откр. наружу, без порога","шт",11,null,null,null,null,0]
["25","ТЦ_09.4.03.00_43_4345452380_28.06.2024_02\nАналог ТССЦ-203-8118 2304,38/2255,09=2%","ДН-1/3. ДСН,А,Оп,Пр,Брг,Н,М3,О проем 1000х2100\n(h) дверной стальной блок наружный\nглухой однопольный, обычное исполнение,\nправое откр. наружу, без порога","шт",4,null,null,null,null,0]
["26","ТЦ_09.4.03.00_43_4345452380_28.06.2024_02\nАналог ТССЦ-203-8118 2304,38/2255,09=2%","ДН-1/4. ДСН,А,Оп,Пр,Брг,Н,М3,О проем 900х2100\n(h) дверной стальной блок наружный\nглухой однопольный, обычное исполнение,\nправое откр. наружу, без порога","шт",1,null,null,null,null,0]
["27","ТЦ_09.4.03.00_43_4345452380_28.06.2024_02\nАналог ТССЦ-203-8118 2304,38/2255,09=2%","ДН-1/5. ДСН,А,Оп,Л,Брг,Н,М3,О проем 900х2100(h)\nдверной стальной блок наружный глухой\nоднопольный, обычное исполнение, левое\nоткр. наружу, без порога","шт",1,null,null,null,null,0]
["28","ТЦ_09.4.03.00_43_4345452380_28.06.2024_02\nАналог ТССЦ-203-8118 2304,38/2255,09=2%","ДН-1/6. ДСН,А,Оп,Л,Брг,Н,М3,О проем 900х2100(h)\nдверной стальной блок наружный глухой\nоднопольный, обычное исполнение, левое\nоткр. наружу, без порога","шт",1,null,null,null,null,0]
["29","ТЕР09-04-013-01","Установка противопожарных дверей: однопольных глухих","1 м2 проема",7.98,null,null,null,null,0]
["30","ТЦ_09.4.03.00_43_4345452380_28.06.2024_02\nАналог ТССЦ-203-8116 2097,51/2052,68=2%","ДС-1/1. ДПМ-Пульс-01/30К 21-9 проем\n900х2100(h) наружная противопожарная\nглухая однопольная дверь EI 30, левое\nоткр.","шт",2,null,null,null,null,0]
["31","ТЦ_09.4.03.00_43_4345452380_28.06.2024_02\nАналог ТССЦ-203-8116 2097,51/2052,68=2%","ДС-1/2. ДПМ-Пульс-01/60К 21-10 проем\n1000х2100(h) внутр противопожарная\nостекл. до 25% однопольная дверь EI 60,\nправое откр.","шт",2,null,null,null,null,0]
["Раздел 4. Оконные блоки. Склад 1, (1632-2021-3.1-АР.СУБ, л. 15)"]
["32","ТЕР09-04-009-04","Монтаж оконных блоков: из алюминиевых многокамерных профилей с герметичными стеклопакетами","100 м2",0.39,null,null,null,null,0]
["33","ТЦ_09.4.03.00_78_7804659220_28.06.2024_01\nАналог  ТССЦ-206-1408 715,91/700,12=2%","ОК-1/1. ГОСТ 21519-2022 ОА ПП СПО оконный\nблок из полых алюминиевых профилей с\nоднокамерным стеклопакетом 1000×1500","шт",26,null,null,null,null,0]
["Раздел 5. Полы, (1632-2021-3.1-АР.СУБ, л. 16)"]
["Тип 1, (S=21026,0 м²)"]
["34","ТЕР13-03-001-11","Огрунтовка бетонных и оштукатуренных поверхностей: грунт-шпатлевкой ЭП-0010, первый слой","100 м2 окрашиваемой поверхности",210.26,null,null,null,null,0]
["35","ТЦ_14.5.00.00_66_7423014913_01.07.2024_02\nАналог ТССЦ-101-7434 11,75/11,43=2%","Пенетрирующая грунтовка СК-БЕТОН, (131–175 г/м² — теоретический расход пенетрирующей грунтовки «СК-БЕТОН» на 30–40 мкм покрытия, k=0,131)","кг",2754.41,null,null,null,null,{"$f":"G55+I55","v":0}]
["36","ТЕР13-03-003-21","Окраска огрунтованных бетонных и оштукатуренных поверхностей: эмалью ПФ-133","100 м2 окрашиваемой поверхности",210.26,null,null,null,null,0]
["37","ТЦ_14.5.00.00_66_7423014913_01.07.2024_02\nАналог ТССЦ-101-7434 11,75/11,43=2%","Промежуточный слой сантикоррозионным наполнением \"железной слюдкой\" СК-ЭПОКСИД-MIO, (Теоретический расход грунт-эмали «СК-ЭПОКСИД-MIO» на 100–200 мкм покрытия —  208–416 г/м², k=0,333)","кг",7001.66,null,null,null,null,0]
["38","ТЕР13-03-003-21","Окраска огрунтованных бетонных и оштукатуренных поверхностей: эмалью ПФ-133","100 м2 окрашиваемой поверхности",210.26,null,null,null,null,0]
["39","ТЦ_14.5.00.00_66_7423014913_01.07.2024_02\nАналог ТССЦ-113-8122 16,10/15,68=2%","Эмаль СК-ПРОТЕКТ, (168–315 г/м² — расход полиуретановой эмали «СК-ПРОТЕКТ» на 1 м² при толщине слоя 80–120 мкм, k=0,315)","кг",6623.19,null,null,null,null,0]
["Тип 2, (S=46,4 м²)"]
["40","ТЕР11-01-011-01","Устройство стяжек: цементных толщиной 20 мм, (h=36 мм)","100 м2 стяжки",0.46400000000000002,null,null,null,null,0]
["41","ТЕР11-01-011-02","Устройство стяжек: на каждые 5 мм изменения толщины стяжки добавлять или исключать к расценке 11-01-011-01, (добавить 16 мм)","100 м2 стяжки",0.46400000000000002,null,null,null,null,0]
["42","ТЦ_04.3.02.13_78_4706056309_01.07.2024_02\nАналог ТССЦ-402-0143 1344,67/1270,81=2%","Смесь цементно-песчаная М-150, (расход на 1 м³ раствора составляет 1500–1800 кг сухой смеси, + 5–10% запаса на усадку и возможные потери)","кг",3373.54,null,null,null,null,0]
["43","ТЦ_04.3.02.13_78_7802348846_01.07.2024_02\nАналог ТССЦ-402-0563 5,24/5,09=2%","Фиброволокно, (расход для стяжки — 0,6–1 кг/м³, k=0,8)","кг",13.36,null,null,null,null,0]
["44","ТЕР11-01-027-03","Устройство покрытий на цементном растворе из плиток: керамических для полов одноцветных с красителем","100 м2 покрытия",0.46400000000000002,null,null,null,null,0]
["45","ТЦ_04.3.02.14_78_7722753969_01.07.2024_02\nРасход 0,55кг/м2 Аналог ТССЦ-101-1971 5803,08/5630,04=2%","Расшивка швов CERESITCE 40 AQUASTATIC, (0,4–0,7 кг/м² — ориентировочный расход цементной затирки Ceresit CE 40, k=0,55)","кг",25.52,null,null,null,null,0]
["Тип 3, (S=4,4 м²)"]
["46","ТЕР26-01-041-05","Изоляция изделиями из пенопласта насухо холодных поверхностей покрытий и перекрытий, (h=100 мм)","1 м3 изоляции",0.44,null,null,null,null,0]
["47","ТЦ_01.7.14.00_78_7811728040_01.07.2024_02\nАналог ТССЦ-104-0128 1603,12/1567,87=2%","Экструзионный пенополистирол ТЕХНОНИКОЛЬ CARBONECO","м3",0.44879999999999998,null,null,null,null,0]
["48","ТЕР11-01-050-01","Устройство пароизоляции из полиэтиленовой пленки в один слой насухо","100 м2 поверхности",4.3999999999999997E-2,null,null,null,null,0]
["49","ТЦ_01.7.07.12_78_7840511719_01.07.2024_02\nАналог ТССЦ-113-2020 3,7/3,62=2%","Пленка ТЕХНОНИКОЛЬ АЛЬФА БАРЬЕР 1.0","м2",5.3856000000000002,null,null,null,null,0]
["50","ТЕР11-01-011-01","Устройство стяжек: цементных толщиной 20 мм","100 м2 стяжки",4.3999999999999997E-2,null,null,null,null,0]
["51","ТЦ_04.3.02.13_78_4706056309_01.07.2024_02\nАналог ТССЦ-402-0143 1344,67/1270,81=2%","Смесь цементно-песчаная М-150, (расход на 1 м³ раствора составляет 1500–1800 кг сухой смеси, + 5–10% запаса на усадку и возможные потери)","кг",177.72,null,null,null,null,0]
["52","ТЕР11-01-004-05","Устройство гидроизоляции обмазочной: в один слой толщиной 2 мм, (h=4 мм)","100 м2 изолируемой поверхности",7.1900000000000006E-2,null,null,null,null,{"$f":"G74+I74","v":0}]
["53","ТЦ_12.0.00.00_77_7705935398_01.07.2024_02\nРасход 2,8 кг/2мм/м2","Гидроизоляция проникающего действия EKW400, (2,6–3,0 кг/м² — расход гидроизоляции ЕК W400 при толщине слоя нанесения 2 мм, k=2,8)","кг",40.26,null,null,null,null,0]
["54","ТЕР11-01-027-03","Устройство покрытий на цементном растворе из плиток: керамических для полов одноцветных с красителем","100 м2 покрытия",4.3999999999999997E-2,null,null,null,null,0]
["55","ТЦ_04.3.02.14_78_7722753969_01.07.2024_02\nРасход 0,55кг/м2 Аналог ТССЦ-101-1971 5803,08/5630,04=2%","Расшивка швов CERESIT CE 40 AQUASTATIC, (0,4–0,7 кг/м² — ориентировочный расход цементной затирки Ceresit CE 40, k=0,55)","кг",2.42,null,null,null,null,0]
["Тип 4, (S=30,4 м²)"]
["56","ТЕР26-01-041-05","Изоляция изделиями из пенопласта насухо холодных поверхностей покрытий и перекрытий, (h=100 мм)","1 м3 изоляции",3.04,null,null,null,null,0]
["57","ТЦ_01.7.14.00_78_7811728040_01.07.2024_02\nАналог ТССЦ-104-0128 1603,12/1567,87=2%","Экструзионный пенополистирол ТЕХНОНИКОЛЬ CARBONECO","м3",3.1008,null,null,null,null,0]
["58","ТЕР11-01-050-01","Устройство пароизоляции из полиэтиленовой пленки в один слой насухо","100 м2 поверхности",0.30399999999999999,null,null,null,null,0]
["59","ТЦ_01.7.07.12_78_7840511719_01.07.2024_02\nАналог ТССЦ-113-2020 3,7/3,62=2%","Пленка ТЕХНОНИКОЛЬ АЛЬФА БАРЬЕР 1.0","м2",37.209600000000002,null,null,null,null,0]
["60","ТЕР11-01-011-01","Устройство стяжек: цементных толщиной 20 мм, (Стяжка-цементно-песч. раствор М150 с уклоном - от 20)","100 м2 стяжки",0.30399999999999999,null,null,null,null,0]
["61","ТЦ_04.3.02.13_78_4706056309_01.07.2024_02\nАналог ТССЦ-402-0143 1344,67/1270,81=2%","Смесь цементно-песчаная М-150, (расход на 1 м³ раствора составляет 1500–1800 кг сухой смеси, + 5–10% запаса на усадку и возможные потери)","кг",7128,null,null,null,null,0]
["62","ТЕР11-01-004-05","Устройство гидроизоляции обмазочной: в один слой толщиной 2 мм, (h=4 мм)","100 м2 изолируемой поверхности",0.30399999999999999,null,null,null,null,0]
["63","ТЦ_12.0.00.00_77_7705935398_01.07.2024_02\nРасход 2,8 кг/2мм/м2","Гидроизоляция проникающего действия EKW400, (2,6–3,0 кг/м² — расход гидроизоляции ЕК W400 при толщине слоя нанесения 2 мм, k=2,8)","кг",170.24,null,null,null,null,0]
["64","ТЕР11-01-027-03","Устройство покрытий на цементном растворе из плиток: керамических для полов одноцветных с красителем","100 м2 покрытия",0.30399999999999999,null,null,null,null,0]
["65","ТЦ_04.3.02.14_78_7722753969_01.07.2024_02\nРасход 0,55кг/м2 Аналог ТССЦ-101-1971 5803,08/5630,04=2%","Расшивка швов CERESITCE 40 AQUASTATIC, (0,4–0,7 кг/м² — ориентировочный расход цементной затирки Ceresit CE 40, k=0,55)","кг",16.72,null,null,null,null,0]
["Тип 5, (S=42,1 м²)"]
["66","ТЕР26-01-041-05","Изоляция изделиями из пенопласта насухо холодных поверхностей покрытий и перекрытий, (h=100 мм)","1 м3 изоляции",4.21,null,null,null,null,0]
["67","ТЦ_01.7.14.00_78_7811728040_01.07.2024_02\nАналог ТССЦ-104-0128 1603,12/1567,87=2%","Экструзионный пенополистирол ТЕХНОНИКОЛЬ CARBONECO","м3",4.2942,null,null,null,null,0]
["68","ТЕР11-01-050-01","Устройство пароизоляции из полиэтиленовой пленки в один слой насухо","100 м2 поверхности",0.42099999999999999,null,null,null,null,0]
["69","ТЦ_01.7.07.12_78_7840511719_01.07.2024_02\nАналог ТССЦ-113-2020 3,7/3,62=2%","Пленка ТЕХНОНИКОЛЬ АЛЬФА БАРЬЕР 1.0","м2",51.5304,null,null,null,null,0]
["70","ТЕР11-01-011-01","Устройство стяжек: цементных толщиной 20 мм, (h=37 мм)","100 м2 стяжки",0.42099999999999999,null,null,null,null,0]
["71","ТЕР11-01-011-02\nДо 37 мм","Устройство стяжек: на каждые 5 мм изменения толщины стяжки добавлять или исключать к расценке 11-01-011-01, (добавить 17 мм)","100 м2 стяжки",0.42099999999999999,null,null,null,null,0]
["72","ТЦ_04.3.02.13_78_4706056309_01.07.2024_02\nАналог ТССЦ-402-0143 1344,67/1270,81=2%","Смесь цементно-песчаная М-150, (расход на 1 м³ раствора составляет 1500–1800 кг сухой смеси, + 5–10% запаса на усадку и возможные потери)","кг",3145.93,null,null,null,null,0]
["73","ТЕР11-01-027-03","Устройство покрытий на цементном растворе из плиток: керамических для полов одноцветных с красителем","100 м2 покрытия",0.42099999999999999,null,null,null,null,0]
["74","ТЦ_04.3.02.14_78_7722753969_01.07.2024_02\nРасход 0,55кг/м2 Аналог ТССЦ-101-1971 5803,08/5630,04=2%","Расшивка швов CERESITCE 40 AQUASTATIC, (0,4–0,7 кг/м² — ориентировочный расход цементной затирки Ceresit CE 40, k=0,55)","кг",23.16,null,null,null,null,0]
["Тип 6, (S=7,4 м²)"]
["75","ТЕР13-03-001-11","Огрунтовка бетонных и оштукатуренных поверхностей: грунт-шпатлевкой ЭП-0010, первый слой","100 м2 окрашиваемой поверхности",7.3999999999999996E-2,null,null,null,null,0]
["76","ТЦ_14.5.00.00_66_7423014913_01.07.2024_02\nАналог ТССЦ-101-7434 11,75/11,43=2%","Пенетрирующая грунтовка СК-БЕТОН, (131–175 г/м² — теоретический расход пенетрирующей грунтовки «СК-БЕТОН» на 30–40 мкм покрытия)","кг",0.97,null,null,null,null,0]
["77","ТЕР13-03-003-21","Окраска огрунтованных бетонных и оштукатуренных поверхностей: эмалью ПФ-133","100 м2 окрашиваемой поверхности",7.3999999999999996E-2,null,null,null,null,0]
["78","ТЦ_14.5.00.00_66_7423014913_01.07.2024_02\nАналог ТССЦ-101-7434 11,75/11,43=2%","Промежуточный слой сантикоррозионным наполнением \"железной слюдкой\" СК-ЭПОКСИД-MIO, (Теоретический расход грунт-эмали «СК-ЭПОКСИД-MIO» на 100–200 мкм покрытия —  208–416 г/м²)","кг",2.46,null,null,null,null,0]
["79","ТЕР13-03-003-21","Окраска огрунтованных бетонных и оштукатуренных поверхностей: эмалью ПФ-133","100 м2 окрашиваемой поверхности",7.3999999999999996E-2,null,null,null,null,0]
["80","ТЦ_14.5.00.00_66_7423014913_01.07.2024_02\nАналог ТССЦ-113-8122 16,10/15,68=2%","Эмаль СК-ПРОТЕКТ, (168–315 г/м² — расход полиуретановой эмали «СК-ПРОТЕКТ» на 1 м² при толщине слоя 80–120 мкм)","кг",2.33,null,null,null,null,0]
["Раздел 6. Внутренняя отделка, (1632-2021-3.1-АР.СУБ, л. 17)"]
["Стены на отм. +0,000"]
["81","ТЕР15-02-016-03","Штукатурка поверхностей внутри здания цементно-известковым или цементным раствором по камню и бетону: улучшенная стен","100 м2 оштукатуриваемой поверхности",8.5259999999999998,null,null,null,null,0]
["82","ТЕР15-04-005-03","Окраска поливинилацетатными водоэмульсионными составами улучшенная: по штукатурке стен","100 м2 окрашиваемой поверхности",8.5259999999999998,null,null,null,null,0]
["83","ТЕР15-01-019-07","Гладкая облицовка стен, столбов, пилястр и откосов (без карнизных, плинтусных и угловых плиток) с установкой плиток туалетного гарнитура на клее из сухих смесей: по кирпичу и бетону","100 м2 поверхности облицовки",0.59399999999999997,null,null,null,null,{"$f":"G110+I110","v":0}]
["Потолок на отм. +0,000"]
["84","ТЕР09-04-006-04","Монтаж ограждающих конструкций стен: из многослойных панелей заводской готовности при высоте здания до 50 м","100 м2",0.11799999999999999,null,null,null,null,0]
["85","ТЦ_07.2.05.05_50_5050134337_20.05.2024_02\nАналог ТССЦ-201-1184 292,62/285,37=2%","Сэндвич-панели кровельные без отделки, толщ. 200 мм","м2",12.39,null,null,null,null,0]
["Потолок на отм. +27,500"]
["86","ТЕР15-02-019-04","Сплошное выравнивание внутренних поверхностей (однослойное оштукатуривание)из сухих растворных смесей толщиной до 10 мм: потолков","100 м2 оштукатуриваемой поверхности",0.23200000000000001,null,null,null,null,0]
["87","ТССЦ-101-4243","Грунтовка воднодисперсионная CERESIT CT 17, (расход — 0,1–0,2 л/м² в зависимости от впитывающей способности основания)","л",4.6399999999999997,null,null,null,null,0]
["88","ТЕР15-04-005-02","Окраска поливинилацетатными водоэмульсионными составами простая по штукатурке и сборным конструкциям: потолков, подготовленным под окраску","100 м2 окрашиваемой поверхности",0.23200000000000001,null,null,null,null,0]
["Раздел 7. Водосточная система, (1632-2021-3.1-АР.СУБ, л. 2, 18)"]
["89","ТЕР12-01-008-01","Устройство обделок на фасадах (наружные подоконники, пояски, балконы и др.): включая водосточные трубы, с изготовлением элементов труб","100 м2фасада (без вычета проемов)",142.52000000000001,null,null,null,null,0]
["90","ТЕР12-01-008-02","Устройство обделок на фасадах (наружные подоконники, пояски, балконы и др.): без водосточных труб","100 м2фасада (без вычета проемов)",-142.52000000000001,null,null,null,null,0]
["91","ТЦ_12.1.01.05_50_5038168072_01.07.2024_02\nАналог ТССЦ-301-5842 232,99/228,23=2%","ТН МВС, желоб водосточный 125 мм, 3 п.м, ТЕХНОНИКОЛЬ","шт.",258,null,null,null,null,0]
["92","ТЦ_12.1.01.05_50_7709331654_01.07.2024_02\nАналог ТССЦ-301-3302 306,50/300,38=2%","ТН МВС, воронка желоба, ТЕХНОНИКОЛЬ","шт.",42,null,null,null,null,0]
["93","ТЦ_12.1.01.05_50_5038168072_01.07.2024_02\nАналог ТССЦ-301-5865 326,57/319,92=2%","ТН МВС, труба d 90 мм, 3 м.п., ТЕХНОНИКОЛЬ","шт.",170,null,null,null,null,0]
["94","ТЦ_12.1.01.05_50_5038168072_01.07.2024_02\nАналог ТССЦ-301-5865 326,57/319,92=2%","ТН МВС, труба d 90 мм,1 м.п., ТЕХНОНИКОЛЬ","шт.",77,null,null,null,null,0]
["95","ТЦ_24.1.02.01_50_5038168072_01.07.2024_02\nАналог ТССЦ-301-5865 326,57/319,92=2%","ТН МВС, хомут трубы, ТЕХНОНИКОЛЬ","шт.",580,null,null,null,null,0]
["96","ТЦ_08.1.02.07_50_5038168072_01.07.2024_02\nАналог ТССЦ-301-5865 326,57/319,92=2%","ТН МВС, крепление хомута с дюбелем 100 ТЕХНОНИКОЛЬ","шт.",580,null,null,null,null,0]
["97","ТЦ_23.8.04.06_50_5038168072_01.07.2024_02\nАналог ТССЦ-301-5875 97,40/95,47=2%","ТН МВС, отвод трубы, ТЕХНОНИКОЛЬ","шт.",42,null,null,null,null,0]
["98","ТЦ_12.1.01.05_50_7709331654_01.07.2024_02\nАналог ТССЦ-301-5875 97,40/95,47=2%","ТН МВС, колено трубы 60°","шт.",96,null,null,null,null,0]
["99","ТЦ_12.1.01.05_50_5038168072_01.07.2024_02\nАналог ТССЦ-301-5846 34,37/33,69=2%","ТН МВС, кронштейн желоба усиленный","шт.",1290,null,null,null,null,0]
["100","ТЦ_12.1.01.05_50_7709331654_01.07.2024_02\nАналог ТССЦ-301-5846 34,37/33,69=2%","ТН МВС, соединитель желоба","шт.",249,null,null,null,null,0]
["101","ТЦ_12.1.01.05_50_7709331654_01.07.2024_02\nАналог ТССЦ-301-5846 34,37/33,69=2%","ТН МВС, заглушка универсальная","шт.",24,null,null,null,null,0]
[null,null,"Всего, руб. с НДС",null,null,null,{"$f":"SUM(G12:G131)","v":0},null,{"$f":"SUM(I12:I131)","v":0},{"$f":"SUM(J12:J131)","v":0}]
[null,null,"Всего, руб. без НДС",null,null,null,{"$f":"G132/1.2","v":0},null,{"$f":"I132/1.2","v":0},{"$f":"J132/1.2","v":0}]

{"sheet":"1632-2021-2.1.4-АР","index":20,"n_rows":31,"n_cols":10,"rows_kept":31,"cut":false,"hidden":false,"merged":[]}
[]
["Терминал по перевалке минеральных удобрений в морском торговом порту Усть-Луга. Береговые объекты терминала"]
["(наименование стройки)"]
["1632-2021-2.1.4-АР_07.04.043-П-01-01"]
["(локальная смета)"]
["на Архитектурные решения, 07.04.040 Конвейерная галерея №1 (код SAP 01.02.006) код ГП 2.1.1"]
["(наименование работ и затрат, наименование объекта)"]
[null,"Основание:","1632-2021-2.1.3-АР_07.04.042"]
[]
["№ п/п","Обоснование","Наименование работ и затрат","Ед. изм.","Кол-во","Цена за ед.измерения работ, руб. с НДС","Всего, стоимость работ,руб. с НДС","Цена за ед.измерения материалов, руб. с НДС","Всего, стоимость материалов, руб. с НДС","Итого, руб. с НДС"]
["1","2","3","4","5",6,7,8,9,10]
["Раздел 1. Фасадные работы",null,null,null,null,null,null,null,null,{"$f":"G12+I12","v":0}]
["Раздел 2. Дверные проемы",null,null,null,null,null,null,null,null,0]
["6","ТЕР09-04-012-01","Установка металлических дверных блоков в готовые проемы","1 м2 проема",8.4,null,null,null,null,0]
["7","ТЦ_07.1.01.03_78_7810347194_06.02.2024_02","Дверь ДСН 1000-2100","шт",4,null,null,null,null,0]
["8","ТЕР15-01-070-02","Облицовка: дверных проемов в наружных стенах откосной планкой из оцинкованной стали с полимерным покрытием с установкой наличников из оцинкованной стали с полимерным покрытием","1 м2 проемов",8.4,null,null,null,null,0]
["Раздел 3. Снегозадерживающие устройства",null,null,null,null,null,null,null,null,0]
["9","ТЕР12-01-012-01","Ограждение кровель перилами","100 м ограждения",1.63,null,null,null,null,0]
["10","ТЦ_11.3.02.02_78_7804606806_25.01.2024_02\nАналог ТССЦ-203-0960 5219,18/5114,28=2%","Снегодержатель","компл",28,null,null,null,null,0]
["Раздел 4. Водосточная система",null,null,null,null,null,null,null,null,0]
["11","ТЕР12-01-009-02","Устройство желобов: подвесных","100 м желобов",1.65,null,null,null,null,0]
["12","ТЦ_12.1.01.05_78_7804550906_25.01.2024_02\nАналог ТССЦ-203-0960 5219,18/5114,28=2%","Водосточный желоб  д.185х3000","шт",55,null,null,null,null,0]
["13","ТЦ_12.1.01.05_78_7804550906_25.01.2024_02\nАналог ТССЦ-203-0960 5219,18/5114,28=2%","185 мм Крюк желоба под профлист на болтовом\nсоединении RAL 7004\nМебельный болт М8х30 - 2 шт; Гайка М8 - 2 шт;\nШайба М8 - 2\nшт; Шайба уплотнительная - 2 шт","шт",165,null,null,null,null,0]
["14","ТЕР12-01-008-01","Устройство обделок на фасадах (наружные подоконники, пояски, балконы и др.): включая водосточные трубы, с изготовлением элементов труб","100 м2фасада (без вычета проемов)",1.02678,null,null,null,null,0]
["15","ТЕР12-01-008-02","Устройство обделок на фасадах (наружные подоконники, пояски, балконы и др.): без водосточных труб","100 м2фасада (без вычета проемов)",-1.02678,null,null,null,null,0]
["16","ТЦ_12.1.01.05_78_7804550906_25.01.2024_02\nАналог ТССЦ-203-0960 5219,18/5114,28=2%","150 мм Труба 3000 мм RAL 7004","м",218,null,null,null,null,0]
["17","ТЦ_12.1.01.05_78_7804550906_25.01.2024_02\nАналог ТССЦ-203-0960 5219,18/5114,28=2%","150 мм Охват на площадке (прут- 10х100мм;\nплощадка- 2,5х100х50мм) (черная полоса) RAL\n7004\nБолт 6х30 - 2 шт; Гайка М6 - 2 шт; Шайба М6 - 4\nшт","шт",218,null,null,null,null,0]
["18","ТЕР16-07-002-01","Установка воронок водосточных","1 воронка",10,null,null,null,null,0]
["19","ТЦ_12.1.01.05_78_7804550906_25.01.2024_02\nАналог ТССЦ-203-0960 5219,18/5114,28=2%","150 мм Воронка под желоб (верх 185мм.) RAL\n7004Водосточный желоб  д.185х3000","шт",10,null,null,null,null,0]
[null,null,"Всего, руб. с НДС",null,null,null,{"$f":"SUM(G14:G29)","v":0},null,{"$f":"SUM(I14:I29)","v":0},{"$f":"SUM(J14:J29)","v":0}]
[null,null,"Всего, руб. без НДС",null,null,null,{"$f":"G30/1.2","v":0},null,{"$f":"I30/1.2","v":0},{"$f":"J30/1.2","v":0}]

{"sheet":"1-1632-2021-2.1.2,2.1.7-АР3","index":21,"n_rows":96,"n_cols":10,"rows_kept":96,"cut":false,"hidden":false,"merged":[]}
[]
["Терминал по перевалке минеральных удобрений в морском торговом порту Усть-Луга. Береговые объекты терминала"]
["(наименование стройки)"]
["1632-2021-2.1.2, 2.1.7-АР3_07.04.046-П-00-00"]
["(локальная смета)"]
["на Архитектурные решения, Конвейерная галерея №7"]
["(наименование работ и затрат, наименование объекта)"]
[null,"Основание:","1632-2021-2.1.2, 2.1.7-АР1_0_0_RU_IFС"]
[]
["№ п/п","Обоснование","Наименование работ и затрат","Ед. изм.","Кол-во","Цена за ед.измерения работ, руб. с НДС","Всего, стоимость работ,руб. с НДС","Цена за ед.измерения материалов, руб. с НДС","Всего, стоимость материалов, руб. с НДС","Итого, руб. с НДС"]
["1","2","3","4","5",6,7,8,9,10]
["Раздел 2. Кровля",null,null,null,null,null,null,null,null,{"$f":"G12+I12","v":0}]
["Монтаж кровельного покрытия  из профнастила учтен в разделе КМ",null,null,null,null,null,null,null,null,0]
["1632-2021-2.1.2, 2.1.7-АР3.  ( в осях 15-23 )",null,null,null,null,null,null,null,null,0]
["1","ТЕР11-01-009-02","Устройство тепло- и звукоизоляции сплошной из плит: древесноволокнистых // прим. ЦСП в 2 слоя","100 м2 изолируемой поверхности",2.0409999999999999,null,null,null,null,0]
["2","ТЦ_01.6.01.10_78_7810994931_08.02.2024_02","ЦСП 13200х1200х8","м2",420.45,null,null,null,null,0]
["3","ТЕР12-01-002-09","Устройство кровель плоских из наплавляемых материалов: в два слоя","100 м2 кровли",2.0409999999999999,null,null,null,null,0]
["4","ТЦ_12.0.00.00_78_7826181040_08.02.2024_02","Техноэласт Пламя Стоп","м2",232.67,null,null,null,null,0]
["5","ТЦ_12.0.00.00_78_7826181040_08.02.2024_02","Техноэласт ЭПП","м2",236.76,null,null,null,null,0]
["6","ТЕР12-01-009-02","Устройство желобов: подвесных","100 м желобов",0.8,null,null,null,null,0]
["7","ТЦ_12.1.01.00_78_7804606806_25.01.2024_02","Желоб водосточный D185х3000","шт",27,null,null,null,null,0]
["8","ТЦ_12.1.01.00_78_7804606806_25.01.2024_02","Держатель желоба","шт",134,null,null,null,null,0]
["9","ТЕР12-01-008-01","Устройство обделок на фасадах (наружные подоконники, пояски, балконы и др.): включая водосточные трубы, с изготовлением элементов труб// прим.","100 м2фасада (без вычета проемов)",7.7809999999999997,null,null,null,null,0]
["10","ТЦ_12.1.01.00_78_7804606806_25.01.2024_02","Труба водосточная D150х2000мм","шт",121,null,null,null,null,0]
["11","ТЦ_12.1.01.00_78_7804606806_25.01.2024_02","Крепление трубы","шт",241,null,null,null,null,0]
["12","ТЦ_12.1.01.00_78_7804606806_25.01.2024_02","Колено гофрированное","шт",24,null,null,null,null,0]
["13","ТЦ_12.1.01.00_78_7804606806_25.01.2024_02","Заглушка","шт",6,null,null,null,null,0]
["14","ТЦ_12.1.01.00_78_7804606806_25.01.2024_02","Воронки выпускные D185/150","шт",11,null,null,null,null,0]
["15","ТЕР12-01-012-01","Ограждение кровель перилами // прим.","100 м ограждения",0.77,null,null,null,null,0]
["16","ТЦ_12.1.01.00_78_7804606806_25.01.2024_02","Снегозадержатель трубчатый (L=3 м. в комплекте с креплением)","шт",26,null,null,null,null,0]
["Раздел 3. Окна"]
["1632-2021-2.1.2, 2.1.7-АР3.  ( в осях 15-23 )"]
["18","ТЕР10-01-034-05","Установка в жилых и общественных зданиях оконных блоков из ПВХ профилей: поворотных (откидных, поворотно-откидных) с площадью проема до 2 м2 двухстворчатых","100 м2 проемов",0.1736,null,null,null,null,0]
["19","ТЦ_07.1.02.00_78_7840318754_30.01.2024_02","Оконный блок 1200х1400","шт",11,null,null,null,null,0]
["20","ТЕР15-01-070-01","Облицовка: оконных проемов в наружных стенах откосной планкой из оцинкованной стали с полимерным покрытием с устройством водоотлива оконного из оцинкованной стали с полимерным покрытием","1 м2 проемов",17.36,null,null,null,null,0]
["Раздел 4. Дверные проемы"]
["1632-2021-2.1.2, 2.1.7-АР3.  ( в осях 15-23 )"]
["21","ТЕР09-04-012-01","Установка металлических дверных блоков в готовые проемы","1 м2 проема",12.6,null,null,null,null,0]
["22","ТЦ_07.1.01.03_78_7841375755_25.01.2024_02","Дверь стальная наружная  (левая, правая) 1000х2100","шт",5,null,null,null,null,0]
["23","ТЦ_07.1.01.03_78_7841375755_25.01.2024_02","Дверь стальная внутренняя  (правая) 1000х2100","шт",1,null,null,null,null,0]
["24","ТЕР09-04-013-01","Установка противопожарных дверей: однопольных глухих","1 м2 проема",10.5,null,null,null,null,0]
["25","ТЦ_07.1.01.03_78_7841375755_25.01.2024_02","Дверь противопожарная металлическая: однопольная ДПС-01/60, размером 1000х2100 мм","шт",4,null,null,null,null,0]
["26","ТЦ_07.1.01.03_78_7841375755_25.01.2024_02","Дверь противопожарная металлическая: однопольная ДПС-01/30, размером 1000х2100 мм","шт",1,null,null,null,null,0]
["27","ТЕР15-01-070-02","Облицовка: дверных проемов в наружных стенах откосной планкой из оцинкованной стали с полимерным покрытием с установкой наличников из оцинкованной стали с полимерным покрытием","1 м2 проемов",23.1,null,null,null,null,0]
["Раздел 5. Полы"]
["1632-2021-2.1.2, 2.1.7-АР3.  (в осях 15-23 )"]
["Тип 1.  S=320,0 м2."]
["28","ТЕР11-01-011-03","Устройство стяжек: бетонных толщиной 20 мм","100 м2 стяжки",3.2,null,null,null,null,{"$f":"G48+I48","v":0}]
["29","ТЕР11-01-011-04","Устройство стяжек: на каждые 5 мм изменения толщины стяжки добавлять или исключать к расценке 11-01-011-03 // до толщ. 50-150 мм","100 м2 стяжки",3.2,null,null,null,null,0]
["30","ТЦ_59.1.04.01_47_4705078395_08.02.2024_02","Бетон  В22,5","м3",32.64,null,null,null,null,0]
["31","ТЕР06-01-015-10","Армирование подстилающих слоев и набетонок","1 т",0.56000000000000005,null,null,null,null,0]
["32","ТЦ_08.4.02.05_66_6686134976_08.02.2024_02","Сетка арм. 100х100 4Вр1","м2",320,null,null,null,null,0]
["33","ТЕР11-01-020-03","Устройство покрытий поливинилацетатных: толщиной 3 мм // прим. покрытие полимерное","100 м2 покрытия",3.2,null,null,null,null,0]
["Тип 2.  S=17,8 м2."]
["34","ТЕР11-01-011-03","Устройство стяжек: бетонных толщиной 20 мм","100 м2 стяжки",0.17799999999999999,null,null,null,null,0]
["35","ТЕР11-01-011-04","Устройство стяжек: на каждые 5 мм изменения толщины стяжки добавлять или исключать к расценке 11-01-011-03 // до толщ. 350 мм","100 м2 стяжки",0.17799999999999999,null,null,null,null,0]
["36","ТЦ_59.1.04.01_47_4705078395_08.02.2024_02","Бетон  В22,5","м3",6.3550000000000004,null,null,null,null,0]
["37","ТЕР06-01-015-10","Армирование подстилающих слоев и набетонок","1 т",3.1150000000000001E-2,null,null,null,null,0]
["38","ТЦ_08.4.02.05_66_6686134976_08.02.2024_02","Сетка арм. 100х100 4Вр1","м2",17.8,null,null,null,null,0]
["39","ТЕР11-01-020-03","Устройство покрытий поливинилацетатных: толщиной 3 мм // прим. покрытие полимерное","100 м2 покрытия",0.17799999999999999,null,null,null,null,0]
["Тип 3.  S=1261 м2."]
["40","ТЕР11-01-011-03","Устройство стяжек: бетонных толщиной 20 мм","100 м2 стяжки",12.61,null,null,null,null,0]
["41","ТЕР11-01-011-04","Устройство стяжек: на каждые 5 мм изменения толщины стяжки добавлять или исключать к расценке 11-01-011-03 // до толщ. 30 мм","100 м2 стяжки",12.61,null,null,null,null,0]
["42","ТЦ_59.1.04.01_47_4705078395_08.02.2024_02","Бетон  В22,5","м3",38.587000000000003,null,null,null,null,0]
["43","ТЕР11-01-020-03","Устройство покрытий поливинилацетатных: толщиной 3 мм // прим. покрытие полимерное","100 м2 покрытия",12.61,null,null,null,null,0]
["Тип 4.  S=22,7 м2."]
["44","ТЕР26-01-039-01","Изоляция покрытий и перекрытий изделиями из волокнистых и зернистых материалов насухо // толщ. 100 мм","1 м3 изоляции",2.27,null,null,null,null,0]
["45","ТССЦ-104-0111","Плиты или маты теплоизоляционные // прим.","м3",2.4516,null,null,null,null,0]
["46","ТЕР11-01-050-01","Устройство пароизоляции из полиэтиленовой пленки в один слой насухо","100 м2 поверхности",0.22700000000000001,null,null,null,null,0]
["47","ТЕР11-01-011-03","Устройство стяжек: бетонных толщиной 20 мм","100 м2 стяжки",0.22700000000000001,null,null,null,null,0]
["48","ТЕР11-01-011-04","Устройство стяжек: на каждые 5 мм изменения толщины стяжки добавлять или исключать к расценке 11-01-011-03 // до 50 мм","100 м2 стяжки",0.22700000000000001,null,null,null,null,0]
["49","ТЦ_59.1.04.01_47_4705078395_08.02.2024_02","Бетон  В22,5","м3",1.1579999999999999,null,null,null,null,0]
["50","ТЕР06-01-015-10","Армирование подстилающих слоев и набетонок","1 т",3.9725000000000003E-2,null,null,null,null,0]
["51","ТЦ_08.4.02.05_66_6686134976_08.02.2024_02","Сетка арм. 100х100 4Вр1","м2",22.7,null,null,null,null,0]
["52","ТЕР11-01-020-03","Устройство покрытий поливинилацетатных: толщиной 3 мм // прим. покрытие полимерное","100 м2 покрытия",0.22700000000000001,null,null,null,null,{"$f":"G75+I75","v":0}]
["Тип 6.  S=45,1 м2."]
["53","ТЕР11-01-015-07","Шлифовка бетонных или металлоцементных покрытий","100 м2 покрытия",0.45100000000000001,null,null,null,null,0]
["54","ТЕР11-01-015-08","Железнение цементных покрытий","100 м2 покрытия",0.45100000000000001,null,null,null,null,0]
["Тип 7.  S=14,1 м2."]
["55","ТЕР26-01-039-01","Изоляция покрытий и перекрытий изделиями из волокнистых и зернистых материалов насухо // толщ. 50 мм","1 м3 изоляции",0.70499999999999996,null,null,null,null,0]
["56","ТССЦ-104-0111","Плиты или маты теплоизоляционные // прим.","м3",0.76139999999999997,null,null,null,null,0]
["57","ТЕР11-01-050-01","Устройство пароизоляции из полиэтиленовой пленки в один слой насухо","100 м2 поверхности",0.14099999999999999,null,null,null,null,0]
["58","ТЕР11-01-011-03","Устройство стяжек: бетонных толщиной 20 мм","100 м2 стяжки",0.14099999999999999,null,null,null,null,0]
["59","ТЕР11-01-011-04","Устройство стяжек: на каждые 5 мм изменения толщины стяжки добавлять или исключать к расценке 11-01-011-03 // до 50-100 мм","100 м2 стяжки",0.14099999999999999,null,null,null,null,0]
["60","ТЦ_59.1.04.01_47_4705078395_08.02.2024_02","Бетон  В22,5","м3",1.079,null,null,null,null,0]
["61","ТЕР06-01-015-10","Армирование подстилающих слоев и набетонок","1 т",2.4674999999999999E-2,null,null,null,null,0]
["62","ТЦ_08.4.02.05_66_6686134976_08.02.2024_02","Сетка арм. 100х100 4Вр1","м2",14.1,null,null,null,null,{"$f":"G87+I87","v":0}]
["63","ТЕР11-01-020-03","Устройство покрытий поливинилацетатных: толщиной 3 мм // прим. покрытие полимерное","100 м2 покрытия",0.14099999999999999,null,null,null,null,0]
["Раздел 6. Отделка"]
["Цоколь"]
["1632-2021-2.1.2, 2.1.7-АР3.  (в осях 15-23 )"]
["64","ТЕР11-01-015-07","Шлифовка бетонных или металлоцементных покрытий // прим.","100 м2 покрытия",0.375,null,null,null,null,0]
["65","ТЕР15-04-015-02","Окраска фасадов с люлек с подготовкой поверхности: силикатная // прим.","100 м2 фасада",0.375,null,null,null,null,0]
["Окраска конструкций стен и потолков из профлиста, учтена в сметах к разделу КМ"]
[null,null,"Всего, руб. с НДС",null,null,null,{"$f":"SUM(G13:G94)","v":0},null,{"$f":"SUM(I13:I94)","v":0},{"$f":"SUM(J13:J94)","v":0}]
[null,null,"Всего, руб. без НДС",null,null,null,{"$f":"G95/1.2","v":0},null,{"$f":"I95/1.2","v":0},{"$f":"J95/1.2","v":0}]

{"sheet":"1632-2021-2.1.5-АР","index":22,"n_rows":27,"n_cols":10,"rows_kept":27,"cut":false,"hidden":false,"merged":[]}
[]
["Терминал по перевалке минеральных удобрений в морском торговом порту Усть-Луга. Береговые объекты терминала"]
["(наименование стройки)"]
["1632-2021-2.1.5-АР_07.04.044-П-00-00"]
["(локальная смета)"]
["на Архитектурные решения, 07.04.040 Конвейерная галерея №1 (код SAP 01.02.006) код ГП 2.1.1"]
["(наименование работ и затрат, наименование объекта)"]
[null,"Основание:","1632-2021-2.1.5-АР_0_0_RU_IFC"]
[]
["№ п/п","Обоснование","Наименование работ и затрат","Ед. изм.","Кол-во","Цена за ед.измерения работ, руб. с НДС","Всего, стоимость работ,руб. с НДС","Цена за ед.измерения материалов, руб. с НДС","Всего, стоимость материалов, руб. с НДС","Итого, руб. с НДС"]
["1","2","3","4","5",6,7,8,9,10]
["Раздел 2. Дверные проемы",null,null,null,null,null,null,null,null,{"$f":"G12+I12","v":0}]
["7","ТЕР09-04-012-01","Установка металлических дверных блоков в готовые проемы","1 м2 проема",8.4,null,null,null,null,0]
["Раздел 3. Снегозадерживающие устройства"]
["9","ТЕР12-01-012-01","Ограждение кровель перилами","100 м ограждения",1.56,null,null,null,null,0]
["10","ТЦ_11.3.02.02_78_7804606806_25.01.2024_02","Металлическое ограждение","м",156,null,null,null,null,0]
["Раздел 4. Водосточная система"]
["11","ТЕР12-01-009-02","Устройство желобов: подвесных","100 м желобов",1.56,null,null,null,null,0]
["12","ТЦ_12.1.01.05_78_7804550906_25.01.2024_02\nАналог ТССЦ-203-0960 5219,18/5114,28=2%","Водосточный желоб  д.185х3000","м",156,null,null,null,null,0]
["13","ТЦ_12.1.01.05_78_7804550906_25.01.2024_02\nАналог ТССЦ-203-0960 5219,18/5114,28=2%","185 мм Крюк желоба под профлист на болтовом\nсоединении RAL 7004\nМебельный болт М8х30 - 2 шт; Гайка М8 - 2 шт;\nШайба М8 - 2\nшт; Шайба уплотнительная - 2 шт","шт",156,null,null,null,null,0]
["14","ТЕР12-01-008-01","Устройство обделок на фасадах (наружные подоконники, пояски, балконы и др.): включая водосточные трубы, с изготовлением элементов труб","100 м2фасада (без вычета проемов)",3.7549999999999999,null,null,null,null,0]
["15","ТЦ_12.1.01.05_78_7804550906_25.01.2024_02\nАналог ТССЦ-203-0960 5219,18/5114,28=2%","150 мм Труба 3000 мм RAL 7004","м",102,null,null,null,null,0]
["16","ТЦ_12.1.01.05_78_7804550906_25.01.2024_02\nАналог ТССЦ-203-0960 5219,18/5114,28=2%","150 мм Охват на площадке (прут- 10х100мм;\nплощадка- 2,5х100х50мм) (черная полоса) RAL\n7004\nБолт 6х30 - 2 шт; Гайка М6 - 2 шт; Шайба М6 - 4\nшт","шт",102,null,null,null,null,0]
["17","ТЕР16-07-002-01","Установка воронок водосточных","1 воронка",10,null,null,null,null,0]
["18","ТЦ_12.1.01.05_78_7804550906_25.01.2024_02\nАналог ТССЦ-203-0960 5219,18/5114,28=2%","150 мм Воронка под желоб (верх 185мм.) RAL\n7004Водосточный желоб  д.185х3000","шт",10,null,null,null,null,0]
[null,null,"Всего, руб. с НДС",null,null,null,{"$f":"SUM(G13:G25)","v":0},null,{"$f":"SUM(I13:I25)","v":0},{"$f":"SUM(J13:J25)","v":0}]
[null,null,"Всего, руб. без НДС",null,null,null,{"$f":"G26/1.2","v":0},null,{"$f":"I26/1.2","v":0},{"$f":"J26/1.2","v":0}]

{"sheet":"1632-2021-2.1.12-АР","index":23,"n_rows":59,"n_cols":10,"rows_kept":59,"cut":false,"hidden":false,"merged":[]}
[]
["Терминал по перевалке минеральных удобрений в морском торговом порту Усть-Луга. Береговые объекты терминала"]
["(наименование стройки)"]
["1632-2021-2.1.12-АР_07.04.051-П-00-00"]
["(локальная смета)"]
["на Архитектурные решения, 07.04.051 Конвейрная галерея №12 (код SAP 01.02.015) код ГП 2.1.12"]
["(наименование работ и затрат, наименование объекта)"]
[null,"Основание:","1632-2021-2.1.12-АР_0_0_RU_IFС"]
[]
["№ п/п","Обоснование","Наименование работ и затрат","Ед. изм.","Кол-во","Цена за ед.измерения работ, руб. с НДС","Всего, стоимость работ,руб. с НДС","Цена за ед.измерения материалов, руб. с НДС","Всего, стоимость материалов, руб. с НДС","Итого, руб. с НДС"]
["1","2","3","4","5",6,7,8,9,10]
["Раздел 2. Кровля",null,null,null,null,null,null,null,null,{"$f":"G12+I12","v":0}]
["Кровля плоская",null,null,null,null,null,null,null,null,0]
["1","ТЕР12-01-009-02","Устройство желобов: подвесных","100 м желобов",1.95,null,null,null,null,0]
["2","ТЦ_12.1.01.00_78_7804606806_25.01.2024_02\nАналог ТССЦ-203-0960 5219,18/5114,28=2%","Желоб водосточный D185х3000","шт",65,null,null,null,null,0]
["3","ТЦ_12.1.01.00_78_7804606806_25.01.2024_02\nАналог ТССЦ-301-5881 61,11/59,89=2%","Держатель желоба","шт",260,null,null,null,null,0]
["4","ТЕР12-01-012-01","Ограждение кровель перилами // прим. Устройство труб водосточных","100 м ограждения",0.21,null,null,null,null,0]
["5","ТЦ_12.1.01.00_78_7804606806_25.01.2024_02\nАналог ТССЦ-301-5867 217,71/213,27=2%","Труба водосточная D150х2000мм","шт",10,null,null,null,null,0]
["6","ТЦ_12.1.01.00_78_7804606806_25.01.2024_02\nАналогТССЦ-301-5610 297,90/291,82=2%","Крепление трубы","шт",54,null,null,null,null,0]
["7","ТЦ_12.1.01.00_78_7804606806_25.01.2024_02\nАналог ТССЦ-203-0960 5219,18/5114,28=2%","Колено гофрированное","шт",24,null,null,null,null,0]
["8","ТЦ_12.1.01.00_78_7804606806_25.01.2024_02\nАналог ТССЦ-203-0960 5219,18/5114,28=2%","Заглушка","шт",8,null,null,null,null,0]
["9","ТЦ_12.1.01.00_78_7804606806_25.01.2024_02\nАналог ТССЦ-115-0931  8,37/8,08=3%","Воронки выпускные D185/150","шт",12,null,null,null,null,0]
["10","ТЦ_12.1.01.00_78_7804606806_25.01.2024_02\nАналог ТССЦ-301-5899 87,84/86,06=2%","Колено сливное  D150","шт",12,null,null,null,null,0]
["11","ТЕР12-01-012-01","Ограждение кровель перилами // прим.","100 м ограждения",1.5434000000000001,null,null,null,null,0]
["12","ТЦ_12.1.01.00_78_7804606806_25.01.2024_02\nАналог ТССЦ-101-7317  128,60/126,01=2%","Снегозадержатель трубчатый (L=3 м. в комплекте с креплением)","шт",51,null,null,null,null,0]
["Раздел 3. Дверные проемы и ворота"]
["13","ТЕР09-04-012-01","Установка металлических дверных блоков в готовые проемы","1 м2 проема",8.4,null,null,null,null,0]
["14","ТЦ_07.1.01.03_78_7810347194_06.02.2024_02\nАналог ТССЦ-203-8146 1429,18/1397,12=2%","Дверь стальная  наружная ( утепленая) 1000х2100 правого открывания","шт",2,null,null,null,null,0]
["15","ТЦ_07.1.01.03_78_7810347194_06.02.2024_02\nАналог ТССЦ-203-8146 1429,18/1397,12=2%","Дверь стальная  наружная  1000х2100 левого открывания","шт",2,null,null,null,null,0]
["16","ТЕР09-04-012-02","Установка дверного доводчика к металлическим дверям","1 шт.",4,null,null,null,null,0]
["17","ТЕР15-01-070-02","Облицовка: дверных проемов в наружных стенах откосной планкой из оцинкованной стали с полимерным покрытием с установкой наличников из оцинкованной стали с полимерным покрытием","1 м2 проемов",8.4,null,null,null,null,0]
["Раздел 4. Полы"]
["Тип 1.Учтено в разделе КМ"]
["Тип 2.  S=106,35 м2"]
["18","ТЕР26-01-039-01","Изоляция покрытий и перекрытий изделиями из волокнистых и зернистых материалов насухо // толщ. 40 мм","1 м3 изоляции",4.2539999999999996,null,null,null,null,0]
["19","ТЦ_12.2.00.00_78_7802348846_15.02.2024_02\nАналог ТССЦ-104-0312 1048,25/1023,90=2%","Пеноплэкс Фундамент толщ. 40 мм","м3",4.3390000000000004,null,null,null,null,0]
["20","ТЕР11-01-005-01","Устройство гидроизоляции из полиэтиленовой пленки на бутилкаучуковом клее с защитой рубероидом,: первый слой","100 м2 изолируемой поверхности",1.0634999999999999,null,null,null,null,0]
["21","ТЕР11-01-011-03","Устройство стяжек: бетонных толщиной 20 мм","100 м2 стяжки",1.0634999999999999,null,null,null,null,0]
["22","ТЕР11-01-011-04","Устройство стяжек: на каждые 5 мм изменения толщины стяжки добавлять или исключать к расценке 11-01-011-03 // до толщ. 50 мм","100 м2 стяжки",1.0634999999999999,null,null,null,null,0]
["23","ТЦ_59.1.04.01_47_4705078395_08.02.2024_02\nАналог ТССЦ-401-0248 636,25/561,42=2%","Бетон  В22,5","м3",5.4240000000000004,null,null,null,null,0]
["24","ТЕР06-01-015-10","Армирование подстилающих слоев и набетонок","1 т",0.186,null,null,null,null,0]
["25","ТЦ_08.4.02.05_66_6686134976_08.02.2024_02\nАналог ТССЦ-101-3891 21,17/20,58=2%","Сетка арм. 100х100 4Вр1","м2",106.35,null,null,null,null,0]
["26","ТЕР11-01-020-03","Устройство покрытий поливинилацетатных: толщиной 3 мм // прим. покрытие полимерное","100 м2 покрытия",1.0634999999999999,null,null,null,null,0]
["Тип 2.  S=28,2 м2"]
["27","ТЕР26-01-039-01","Изоляция покрытий и перекрытий изделиями из волокнистых и зернистых материалов насухо // толщ. 40 мм","1 м3 изоляции",1.1279999999999999,null,null,null,null,{"$f":"G45+I45","v":0}]
["28","ТЦ_12.2.00.00_78_7802348846_15.02.2024_02\nАналог ТССЦ-104-0312 1048,25/1023,90=2%","Пеноплэкс Фундамент толщ. 40 мм","м3",1.151,null,null,null,null,0]
["29","ТЕР11-01-011-03","Устройство стяжек: бетонных толщиной 20 мм","100 м2 стяжки",0.28199999999999997,null,null,null,null,0]
["30","ТЕР11-01-011-04","Устройство стяжек: на каждые 5 мм изменения толщины стяжки добавлять или исключать к расценке 11-01-011-03 // до 50 мм","100 м2 стяжки",0.28199999999999997,null,null,null,null,0]
["31","ТЦ_59.1.04.01_47_4705078395_08.02.2024_02\nАналог ТССЦ-401-0248 636,25/561,42=2%","Бетон  В22,5","м3",1.4379999999999999,null,null,null,null,0]
["32","ТЕР06-01-015-10","Армирование подстилающих слоев и набетонок","1 т",4.9349999999999998E-2,null,null,null,null,0]
["33","ТЦ_08.4.02.05_66_6686134976_08.02.2024_02\nАналог ТССЦ-101-3891 21,17/20,58=2%","Сетка арм. 100х100 4Вр1","м2",28.2,null,null,null,null,0]
["34","ТЕР11-01-020-03","Устройство покрытий поливинилацетатных: толщиной 3 мм // прим. покрытие полимерное","100 м2 покрытия",0.28199999999999997,null,null,null,null,0]
["Раздел 5. Отделка"]
["Цоколь"]
["35","ТЕР11-01-015-07","Шлифовка бетонных или металлоцементных покрытий // прим. затирка поверхности цоколя","100 м2 покрытия",0.21,null,null,null,null,0]
["36","ТЕР15-04-015-02","Окраска фасадов с люлек с подготовкой поверхности: силикатная // прим.","100 м2 фасада",0.21,null,null,null,null,0]
["Окраска конструкций стен и потолков из профлиста, учтена в сметах к разделу КМ"]
[null,null,"Всего, руб. с НДС",null,null,null,{"$f":"SUM(G13:G57)","v":0},null,{"$f":"SUM(I13:I57)","v":0},{"$f":"SUM(J13:J57)","v":0}]
[null,null,"Всего, руб. без НДС",null,null,null,{"$f":"G58/1.2","v":0},null,{"$f":"I58/1.2","v":0},{"$f":"J58/1.2","v":0}]

{"sheet":"1632-2021-2.1.3","index":24,"n_rows":41,"n_cols":10,"rows_kept":41,"cut":false,"hidden":false,"merged":[]}
[]
["Терминал по перевалке минеральных удобрений в морском торговом порту Усть-Луга. Береговые объекты терминала"]
["(наименование стройки)"]
["1632-2021-2.1.3-АР_07.04.043-П-01-01"]
["(локальная смета)"]
["на Архитектурные решения, 07.04.042 Конвейерная галерея №3 (код SAP 01.02.011) код ГП 2.1.3"]
["(наименование работ и затрат, наименование объекта)"]
[null,"Основание:","1632-2021-2.1.3-АР_0_0_RU_IFC"]
[]
["№ п/п","Обоснование","Наименование работ и затрат","Ед. изм.","Кол-во","Цена за ед.измерения работ, руб. с НДС","Всего, стоимость работ,руб. с НДС","Цена за ед.измерения материалов, руб. с НДС","Всего, стоимость материалов, руб. с НДС","Итого, руб. с НДС"]
["1","2","3","4","5",6,7,8,9,10]
["Раздел 2. Дверные проемы",null,null,null,null,null,null,null,null,{"$f":"G12+I12","v":0}]
["3","ТЕР09-04-012-01","Установка металлических дверных блоков в готовые проемы","1 м2 проема",12.6,null,null,null,null,0]
["4","ТЦ_07.1.01.01_78_7810347194_06.02.2024_02","Дверь ДСН 1000-2100","шт",6,null,null,null,null,0]
["5","ТЕР15-01-070-02","Облицовка: дверных проемов в наружных стенах откосной планкой из оцинкованной стали с полимерным покрытием с установкой наличников из оцинкованной стали с полимерным покрытием","1 м2 проемов",12.6,null,null,null,null,0]
["Раздел 3. Оконные проемы"]
["6","ТЕР10-01-034-03","Установка в жилых и общественных зданиях оконных блоков из ПВХ профилей: поворотных (откидных, поворотно-откидных) с площадью проема до 2 м2 одностворчатых","100 м2 проемов",0.42,null,null,null,null,0]
["7","ТЦ_11.3.02.02_78_7804550906_25.01.2024_02","Оконный проем ОП-П-1400х100-ОЛ (6М1)-ПОТ","шт",30,null,null,null,null,0]
["Раздел 4. Снегозадерживающие устройства"]
["8","ТЕР12-01-012-01","Ограждение кровель перилами","100 м ограждения",4.1500000000000004,null,null,null,null,0]
["9","ТЦ_11.3.02.02_78_7804606806_25.01.2024_02\nАналог ТССЦ-203-0960 5219,18/5114,28=2%","Снегодержатель","компл",71,null,null,null,null,0]
["Раздел 5. Водосточная система"]
["10","ТЕР12-01-009-02","Устройство желобов: подвесных","100 м желобов",4.1500000000000004,null,null,null,null,0]
["11","ТЦ_12.1.01.05_78_7804550906_25.01.2024_02\nАналог ТССЦ-203-0960 5219,18/5114,28=2%","Водосточный желоб  д.185х3000","шт",138,null,null,null,null,0]
["12","ТЦ_12.1.01.05_78_7804550906_25.01.2024_02\nАналог ТССЦ-203-0960 5219,18/5114,28=2%","185 мм Заглушка желоба коттеджная RAL 7005","шт",2,null,null,null,null,0]
["13","ТЦ_12.1.01.05_78_7804550906_25.01.2024_02\nАналог ТССЦ-203-0960 5219,18/5114,28=2%","185 мм Крюк желоба под профлист на болтовом\nсоединении RAL 7004 Мебельный болт М8х30 - 2 шт; Гайка М8 - 2 шт; Шайба М8 - 2 шт; Шайба уплотнительная - 2 шт","шт",692,null,null,null,null,0]
["14","ТЕР12-01-008-01","Устройство обделок на фасадах (наружные подоконники, пояски, балконы и др.): включая водосточные трубы, с изготовлением элементов труб","100 м2фасада (без вычета проемов)",2.8848750000000001,null,null,null,null,0]
["15","ТЕР12-01-008-02","Устройство обделок на фасадах (наружные подоконники, пояски, балконы и др.): без водосточных труб","100 м2фасада (без вычета проемов)",-2.8848750000000001,null,null,null,null,0]
["16","ТЦ_12.1.01.05_78_7804550906_25.01.2024_02\nАналог ТССЦ-203-0960 5219,18/5114,28=2%","150 мм Труба 3000 мм RAL 7004","м",612.5,null,null,null,null,0]
["17","ТЦ_12.1.01.05_78_7804550906_25.01.2024_02\nАналог ТССЦ-203-0960 5219,18/5114,28=2%","150 мм Колено ГОФРИРОВАННОЕ RAL 7004","шт",125,null,null,null,null,0]
["18","ТЦ_12.1.01.05_78_7804550906_25.01.2024_02\nАналог ТССЦ-203-0960 5219,18/5114,28=2%","150 мм Охват на площадке (прут- 10х100мм;\nплощадка- 2,5х100х50мм) (черная полоса) RAL\n7004 Болт 6х30 - 2 шт; Гайка М6 - 2 шт; Шайба М6 - 4\nшт","шт",625,null,null,null,null,0]
["19","ТЕР16-07-002-01","Установка воронок водосточных","1 воронка",25,null,null,null,null,0]
["20","ТЦ_12.1.01.05_78_7804550906_25.01.2024_02\nАналог ТССЦ-203-0960 5219,18/5114,28=2%","150 мм Воронка под желоб (верх 185мм.) RAL\n7004 Водосточный желоб  д.185х3000","шт",25,null,null,null,null,0]
["Раздел 6. Кровля"]
["21","ТЕР12-01-017-05","Устройство выравнивающих стяжек: сборных из плоских асбестоцементных листов","100 м2 стяжки",52.7,null,null,null,null,0]
["22","ТЦ_01.6.01.10_78_7810994931_08.02.2024_02\nАналог ТССЦ-101-5068 25,77/24,64=2%","ЦСП 13200х1200х8, (в 2 слоя)","м2",10540,null,null,null,null,0]
["23","ТЕР12-01-002-09","Устройство кровель плоских из наплавляемых материалов: в два слоя","100 м2 кровли",52.7,null,null,null,null,0]
["24","ТЦ_12.0.00.00_78_7826181040_08.02.2024_02\nАналог ТССЦ-101-4724 26,31/25,55=2%","Техноэласт Пламя Стоп","м2",6008,null,null,null,null,0]
["25","ТЦ_12.0.00.00_78_7802585999_08.02.2024_02\nАналог ТССЦ-101-4702 22,24/21,66=2%","Техноэласт ЭПП","м2",6113,null,null,null,null,0]
[null,null,"Всего, руб. с НДС",null,null,null,{"$f":"SUM(G12:G39)","v":0},null,{"$f":"SUM(I12:I39)","v":0},{"$f":"SUM(J12:J39)","v":0}]
[null,null,"Всего, руб. без НДС",null,null,null,{"$f":"G40/1.2","v":0},null,{"$f":"I40/1.2","v":0},{"$f":"J40/1.2","v":0}]

{"sheet":"1632-2021-3.3.9-АР","index":25,"n_rows":77,"n_cols":10,"rows_kept":77,"cut":false,"hidden":false,"merged":[]}
[]
["Терминал по перевалке минеральных удобрений в морском торговом порту Усть-Луга. Береговые объекты терминала."]
["(наименование стройки)"]
[]
["1632-2021-3.3.9-АР-03.02.080-П-00-00"]
["(локальная смета)"]
["на Архитектурные решения, 03.02.080 Электропомещение купольного склада (ЭП-7) (код SAP 02.05.001.09) код ГП 3.3.9"]
["(наименование работ и затрат, наименование объекта)"]
[null,"Основание:","1632-2021-3.3.9-АР"]
["№ п/п","Обоснование","Наименование работ и затрат","Ед. изм.","Кол-во","Цена за ед.измерения работ, руб. с НДС","Всего, стоимость работ,руб. с НДС","Цена за ед.измерения материалов, руб. с НДС","Всего, стоимость материалов, руб. с НДС","Итого, руб. с НДС"]
["1","2","3","4","5",6,7,8,9,10]
["Раздел 1. Фасад"]
["1","ТЕР15-01-080-02","Устройство наружной теплоизоляции зданий с тонкой штукатуркой по утеплителю толщиной плит до: 100 мм // прим. толщ. плит утеплителя 70 мм.","100 м2",2.52,null,null,null,null,{"$f":"G13+I13","v":0}]
["2","ТССЦ-104-0495","Плиты минераловатные \"Фасад Баттс\" ROCKWOOL  ( толщ. 70 мм.)","м3",19.760000000000002,null,null,null,null,0]
["3","ТЕР15-04-019-06","Окраска фасадов акриловыми составами: с лесов краскопультами с подготовкой поверхности","100 м2 окрашиваемой поверхности",2.52,null,null,null,null,0]
["Цоколь"]
["4","ТЕР26-01-037-01","Изоляция изделиями из волокнистых и зернистых материалов на битуме холодных поверхностей: стен и колонн прямоугольных","1 м3 изоляции",2.88,null,null,null,null,0]
["5","ТЦ_12.2.05.10_77_7727280635_06.05.2024_02","Теплоизоляция Роквул Бетон Элемент БАТТС- 100 мм","м3",2.97,null,null,null,null,0]
["6","ТЕР06-01-024-01","Устройство стен подвалов и подпорных стен: бетонных // прим. толщ. 100 мм","100 м3 бетона, бутобетона и железобетона в деле",2.8799999999999999E-2,null,null,null,null,0]
["7","ТЕР15-04-019-06","Окраска фасадов акриловыми составами: с лесов краскопультами с подготовкой поверхности","100 м2 окрашиваемой поверхности",0.28799999999999998,null,null,null,null,0]
["Раздел 2. Кровля"]
["8","ТЕР11-01-011-05","Устройство стяжек: легкобетонных толщиной 20 мм","100 м2 стяжки",0.55000000000000004,null,null,null,null,0]
["9","ТЕР11-01-011-06","Устройство стяжек: на каждые 5 мм изменения толщины стяжки добавлять или исключать к расценке 11-01-011-05 // толщ.30-120 мм","100 м2 стяжки",0.55000000000000004,null,null,null,null,0]
["10","ТССЦ-401-0303","Бетон легкий на пористых заполнителях, объемная масса 1800 кг/м3, крупность заполнителя: более 10 мм, класс В5 (М75)","м3",4.2074999999999996,null,null,null,null,0]
["11","ТЕР12-01-015-01","Устройство пароизоляции: оклеечной в один слой","100 м2 изолируемой поверхности",0.55000000000000004,null,null,null,null,0]
["12","ТЦ_12.1.00.00_77_7702521529_06.05.2024_02","Пароизоляция Бикрост","м2",60.5,null,null,null,null,0]
["13","ТЕР12-01-013-03","Утепление покрытий плитами: из минеральной ваты или перлита на битумной мастике в один слой // толщ. 60 мм","100 м2 утепляемого покрытия",0.55000000000000004,null,null,null,null,0]
["14","ТССЦ-104-0496","Плиты минераловатные \"Руф Баттс\" ROCKWOOL // прим.","м3",3.399,null,null,null,null,0]
["15","ТЕР12-01-013-04","Утепление покрытий плитами: на каждый последующий слой добавлять к расценке 12-01-013-03 // толщ. 40 мм","100 м2 утепляемого покрытия",0.55000000000000004,null,null,null,null,0]
["16","ТССЦ-104-0497","Плиты минераловатные \"Руф Баттс В\" ROCKWOOL // прим.","м3",2.266,null,null,null,null,{"$f":"G30+I30","v":0}]
["17","ТЕР11-01-011-07","Устройство стяжек: из плит древесноволокнистых // в 2 слоя","100 м2 стяжки",0.55000000000000004,null,null,null,null,0]
["18","ТЦ_12.1.01.00_78_7802348846_06.05.2024_02","ЦСП-1 3200х1200х12мм","м2",110,null,null,null,null,0]
["19","ТЕР12-01-002-09","Устройство кровель плоских из наплавляемых материалов: в два слоя","100 м2 кровли",0.55000000000000004,null,null,null,null,0]
["20","ТССЦ-101-4702","Техноэласт: ЭПП","м2",63.8,null,null,null,null,0]
["21","ТССЦ-101-4724","Техноэласт: Пламя-Стоп ЭКП","м2",62.7,null,null,null,null,0]
["22","ТЕР12-01-004-05","Устройство примыканий кровель из наплавляемых материалов к стенам и парапетам высотой: более 600 мм с одним фартуком","100 м примыканий",0.32,null,null,null,null,0]
["23","ТССЦ-101-4724","Техноэласт: Пламя-Стоп ЭКП","м2",60.48,null,null,null,null,0]
["24","ТЕР12-01-010-01","Устройство мелких покрытий (брандмауэры, парапеты, свесы и т.п.) из листовой оцинкованной стали","100 м2 покрытия",0.16,null,null,null,null,0]
["25","ТЕР12-01-012-01","Ограждение кровель перилами // прим. устройство  труб водосточных","100 м",0.15,null,null,null,null,0]
["26","ТЦ_08.1.02.22_77_7724464867_06.05.2024_02","Труба водосточная  Д.150х2000мм","шт",8,null,null,null,null,0]
["27","ТЕР16-07-002-01","Установка воронок водосточных","1 воронка",2,null,null,null,null,0]
["28","ТЦ_08.1.02.01_77_7702521529_06.05.2024_01","Воронка парапетная кровельная д.110мм.","шт",2,null,null,null,null,0]
["Раздел 3. Отделочные работы  ( ведомость отделки помещений лист.2)"]
["Потолки"]
["29","ТЕР15-04-007-02","Окраска водно-дисперсионными акриловыми составами улучшенная: по штукатурке потолков","100 м2 окрашиваемой поверхности",1.1000000000000001,null,null,null,null,0]
["Стены"]
["30","ТЕР15-04-007-05","Окраска водно-дисперсионными акриловыми составами высококачественная: по штукатурке стен // прим.","100 м2 окрашиваемой поверхности",2.3050000000000002,null,null,null,null,0]
["Раздел 4. Полы"]
["Тип 1  S=110м2"]
["31","ТЕР11-01-011-03","Устройство стяжек: бетонных толщиной 20 мм","100 м2 стяжки",1.1000000000000001,null,null,null,null,0]
["32","ТЕР11-01-011-04","Устройство стяжек: на каждые 5 мм изменения толщины стяжки добавлять или исключать к расценке 11-01-011-03 // толщ. 30 мм.","100 м2 стяжки",1.1000000000000001,null,null,null,null,0]
["33","ТЦ_59.1.04.01_47_4705078395_06.05.2024_02","Бетон В22,5","м2",3.3660000000000001,null,null,null,null,0]
["34","ТЕР11-01-020-03","Устройство покрытий поливинилацетатных: толщиной 3 мм // прим.","100 м2 покрытия",1.1000000000000001,null,null,null,null,0]
["Раздел 5. Дверные проемы"]
["35","ТЕР09-04-012-01","Установка металлических дверных блоков в готовые проемы","1 м2 проема",8.4,null,null,null,null,0]
["36","ТЦ_07.1.01.03_36_3665148789_06.05.2024_02","Дверной блок металлический однопольный 1000х2100мм утепленный(правого, левого открывания)","шт",4,null,null,null,null,{"$f":"G56+I56","v":0}]
["37","ТССЦ-101-6976","Замок электромагнитный универсальный сдвиговый AL-400S// прим.","шт.",4,null,null,null,null,0]
["38","ТЕР09-04-012-02","Установка дверного доводчика к металлическим дверям","1 шт.",4,null,null,null,null,0]
["39","ТССЦ-101-0961","Закрыватель дверной гидравлический рычажный в алюминиевом корпусе","шт.",4,null,null,null,null,0]
["40","ТЕР15-01-070-02","Облицовка: дверных проемов в наружных стенах откосной планкой из оцинкованной стали с полимерным покрытием с установкой наличников из оцинкованной стали с полимерным покрытием","1 м2 проемов",8.4,null,null,null,null,0]
["Раздел 6. Оконные проемы"]
["41","ТЕР10-01-034-03","Установка в жилых и общественных зданиях оконных блоков из ПВХ профилей: поворотных (откидных, поворотно-откидных) с площадью проема до 2 м2 одностворчатых","100 м2 проемов",0.03,null,null,null,null,0]
["42","ТЦ_11.3.02.00_78_780205142430_06.05.2024_02","ОК-1. Оконный блок из ПВХ профилей с поворотно-откидными створками и однокамерным стеклопакетом  600х1000мм","шт",5,null,null,null,null,0]
["43","ТЕР15-01-070-01","Облицовка: оконных проемов в наружных стенах откосной планкой из оцинкованной стали с полимерным покрытием с устройством водоотлива оконного из оцинкованной стали с полимерным покрытием","1 м2 проемов",3,null,null,null,null,0]
["Раздел 7. Отмостка"]
["44","ТЕР27-04-001-04","Устройство подстилающих и выравнивающих слоев оснований: из щебня","100 м3 материала основания (в плотном теле)",3.3599999999999998E-2,null,null,null,null,0]
["45","ТЦ_02.2.01.03_78_7811628889_07.05.2024_02","Щебень фр.20-40","м3",3.6960000000000002,null,null,null,null,0]
["46","ТЕР11-01-002-09","Устройство подстилающих слоев: бетонных","1 м3 подстилающего слоя",2.016,null,null,null,null,0]
["47","ТЦ_04.1.02.00_47_4705078395_07.05.2024_02","Бетон В15 F75","м3",3.6960000000000002,null,null,null,null,0]
["48","ТЕР06-01-015-10","Армирование подстилающих слоев и набетонок","1 т",0.1166,null,null,null,null,0]
["49","ТЦ_08.4.02.05_78_7816587756_07.05.2024_02","Сетка арм. 100х100 6 Вр1","м2",33.6,null,null,null,null,0]
["50","ТЕР11-01-009-01","Устройство тепло- и звукоизоляции сплошной из плит: или матов минераловатных или стекловолокнистых","100 м2 изолируемой поверхности",0.33600000000000002,null,null,null,null,0]
["51","ТЦ_12.2.03.00_77_7733669490_07.05.2024_02","Пеноплэкс 31С   50 мм","м2",34.607999999999997,null,null,null,null,0]
["52","ТЕР27-07-001-01","Устройство асфальтобетонных покрытий дорожек и тротуаров однослойных из литой мелкозернистой асфальтобетонной смеси толщиной 3 см","100 м2 покрытия",0.33600000000000002,null,null,null,null,0]
["53","ТЕР27-07-001-02","На каждые 0,5 см изменения толщины покрытия добавлять к  расценке 27-07-001-01 // до толщины 2,5 см.","100 м2 покрытия",-0.33600000000000002,null,null,null,null,0]
[null,null,"Всего, руб. с НДС",null,null,null,{"$f":"SUM(G13:G75)","v":0},null,{"$f":"SUM(I13:I75)","v":0},{"$f":"SUM(J13:J75)","v":0}]
[null,null,"Всего, руб. без НДС",null,null,null,{"$f":"G76/1.2","v":0},null,{"$f":"I76/1.2","v":0},{"$f":"J76/1.2","v":0}]